{"text_format":"1","workbook":"xlsx","n_sheets":2,"sheets":["Sheet1","Sheet2"],"not_rendered":{"charts":0,"images":1,"macros":1,"external_links":0,"defined_names":0,"comments":0,"pivot_tables":0},"unopened":[],"bounds":{"document_bytes":16777216,"sheet_cells":100000,"rows_first":2000,"rows_last":500,"rows_between":2000,"halvings":0,"cell_chars":16384,"cell_head_chars":4096},"cells_cut":0,"cells_raw":0,"read":"whole","date_system":"1900"}

{"sheet":"Sheet1","index":0,"n_rows":41,"n_cols":28,"rows_kept":41,"cut":false,"hidden":false,"merged":[]}
[]
[null,null,null,null,null,"■"]
[null,null,null,null,null,"■"]
[null,null,null,null,null,"■"]
[null,null,null,null,null,"■"]
[null,null,null,null,null,"■"]
[null,null,null,null,null,"■"]
[null,null,null,null,null,"■",null,null,null,null,null,9]
[null,null,null,null,null,"■",null,null,null,null,null,8]
[null,null,null,null,null,"■",null,null,null,null,null,7,null,null,null,null,"■"]
[null,null,null,null,null,"■",null,null,null,null,null,6,null,null,null,null,"■"]
[null,null,null,null,null,"■",null,null,null,null,null,5,null,null,null,null,"■"]
[null,null,null,null,null,"■",null,null,null,null,null,4,"■",null,null,null,"■",null,null,null,"■"]
[null,null,null,null,null,"■",null,null,null,null,null,3,"■",null,null,null,"■",null,null,null,"■"]
[null,null,null,null,null,"■",null,null,null,null,null,2,"■",null,null,null,"■",null,null,null,"■"]
[null,null,null,null,null,"■",null,null,null,null,null,1,"■",null,null,null,"■",null,null,null,"■"]
[null,1,2,3,4,5,6,7,8,9,null,null,1,2,3,4,5,6,7,8,9]
[]
[]
[]
[null,null,null,null,"■","■"]
[5,null,null,"■","■","■"]
[4,null,null,"■","■","■",null,null,null,"■",null,4,"【Ａ】"]
[3,null,null,"■","■","■",null,null,null,"■",null,3,null,null,null,null,"■"]
[2,null,null,"■","■","■",null,null,null,"■",null,2,null,null,"■","■","□","■","■"]
[1,null,null,"■","■","■",null,null,null,"■",null,1,"■","■","■","■","■","■","■","■","■"]
[null,1,2,3,4,5,6,7,8,9,null,null,1,2,3,4,5,6,7,8,9]
[]
[null,{"$f":"COUNTA(B19:B26)","v":0},{"$f":"COUNTA(C19:C26)","v":0},5,6,6,0,0,0,4,null,null,null,null,null,null,null,null,null,null,null,null,null,"　枚"]
[null,null,null,null,null,null,null,null,null,null,null,6,null,null,null,null,null,null,null,null,null,null,null,6]
[null,null,null,null,null,null,null,null,null,null,{"$f":"SUM(B29:J29)","v":21},5,"【Ｂ】",null,null,null,null,null,null,null,null,null,null,5]
[null,{"$f":"B27*B29","v":0},{"$f":"C27*C29","v":0},15,24,30,0,0,0,36,null,4,null,null,"■",null,null,null,null,null,"■",null,null,4]
[null,null,null,null,null,null,null,null,null,null,{"$f":"SUM(B32:J32)","v":105},3,null,null,"■",null,null,null,null,null,"■",null,null,3]
[null,null,null,null,null,null,null,null,null,null,null,2,null,null,"■","□","■",null,null,null,"■",null,null,2]
[null,null,null,null,null,null,null,null,null,null,null,1,"■","■","■","■","■","■",null,null,"■",null,null,1]
[null,null,null,null,null,null,null,null,null,null,null,null,1,2,3,4,5,6,7,8,9,null,null,null,"1","4","7","10"]
[]
[null,null,null,null,null,null,null,null,null,null,null,null,{"$f":"COUNTA(M28:M35)","v":2},{"$f":"COUNTA(N28:N35)","v":1},4,2,2,1,0,0,4]
[null,null,null,null,null,null,null,null,null,null,null,null,null,null,null,null,null,null,null,null,null,{"$f":"SUM(M38:U38)","v":16}]
[null,null,null,null,null,null,null,null,null,null,null,null,{"$f":"M36*M38","v":2},{"$f":"N36*N38","v":2},12,8,10,6,0,0,36]
[null,null,null,null,null,null,null,null,null,null,null,null,null,null,null,null,null,null,null,null,null,{"$f":"SUM(M40:U40)","v":76}]

{"sheet":"Sheet2","index":1,"n_rows":2035,"n_cols":27,"rows_kept":2035,"cut":false,"hidden":false,"merged":[[15,15,15,16],[14,2,14,4],[15,3,15,4],[15,7,15,8],[15,11,15,12],[14,11,14,12]]}
[]
[]
[]
[]
[]
[null,null,null,null,null,null,null,null,null,null,null,null,null,null,null,null,null,null,9,9,1,5,5,0,0,0,4]
[null,null,null,null,null,null,null,null,null,null,null,null,null,null,null,null,null,null,8,9,1,5,5,0,0,0,4]
[null,null,null,null,null,null,null,null,null,null,null,null,null,null,null,null,null,null,7,9,1,5,5,0,0,0,4]
[null,null,null,null,null,null,null,null,null,null,null,null,null,null,null,null,null,null,7,9,1,5,5,0,0,0,4]
[null,null,null,null,null,null,null,null,null,null,null,null,null,null,null,null,null,null,6,6,4,5,5,0,0,0,4]
[null,null,null,null,null,null,null,null,null,null,null,null,null,null,null,null,null,null,6,5,5,5,5,0,1,1,1]
[null,null,null,null,null,null,null,null,null,null,null,null,null,null,null,null,null,null,5,5,5,5,5,1,1,1,1]
[null,null,null,null,null,null,null,null,null,null,null,null,null,null,null,null,null,null,5,4,6,5,5,2,0,0,2]
[100,null,null,null,null,null,null,null,null,null,null,null,null,null,null,null,null,null,5,4,6,5,5,2,0,0,2]
[null,"Aを並べ変える","Ａ",null,null,"Bの","B",null,null,"Ｃの","C","※Ｃ＝10-B",null,null,null,null,null,null,4,3,7,5,5,0,0,0,4]
[null,"乱数",null,"計算スペース",null,"乱数",null,{"$f":"D16","v":"計算スペース"},null,"乱数",null,{"$f":"H16","v":"計算スペース"},null,"乱数",null,{"$f":"L16","v":"計算スペース"},null,null,4,3,7,5,5,0,0,0,4]
[1,{"$f":"RAND()","v":0.1619918529364065},9,0.24689942368626028,6,{"$f":"RAND()","v":0.92514460973244972},9,7.1317641959621314E-2,4,{"$f":"RAND()","v":0.28013716518711251},{"$f":"10-G17","v":1},1.1378311667761154E-2,1,{"$f":"RAND()","v":0.88240675391135404},5,0.13134129540719219,5,null,3,3,7,5,5,0,0,0,4]
[2,{"$f":"RAND()","v":0.68468864950485009},8,0.3117248648652694,9,{"$f":"RAND()","v":0.98913013336735045},9,8.0094295086271527E-2,9,{"$f":"RAND()","v":0.25647992057444857},{"$f":"10-G18","v":1},7.6314601454419817E-2,9,{"$f":"RAND()","v":0.68987783929536117},5,0.21047695523531096,5,null,3,3,7,5,5,0,0,0,4]
[3,0.98267497742832011,7,0.33606253441901757,7,0.22036701348693821,9,8.5812260524875006E-2,3,0.33549970643819071,1,9.0504130444284292E-2,1,0.66428183145619091,5,0.25237465521042224,5,null,2,2,8,5,5,0,0,0,4]
[4,0.85202857081947714,7,0.34820363728422155,3,0.20930706806471355,9,0.18990711269729632,4,0.19070976908029613,1,0.1698067752567004,6,0.72497605893975436,5,0.3424093204426536,5,null,1,1,9,5,5,0,0,0,4]
[5,0.26846987729240313,6,0.51768071377309632,2,0.36807117532098543,6,0.31300170052551357,6,0.62677996567708583,4,0.25431381395490382,5,0.36899672482056822,5,0.3581708030919375,5]
[6,0.35174015136402126,6,0.52941593028522349,8,0.3123877939881835,5,0.35152033536562555,1,0.39454503715128686,5,0.26190733653597187,5,0.58456865512108069,5,0.36663159703162151,5]
[7,9.8503618706512364E-2,5,0.56181366914255482,7,0.23835779105233434,5,0.35309029873144371,3,0.87360099570023353,5,0.3127138304832916,1,0.14688510623813889,5,0.4641881117145894,5]
[8,0.4252807709473766,5,0.59534475837869283,5,0.25814304067731852,4,0.37391844453337986,5,0.38048596625027653,6,0.38410986640722788,7,0.98973995561969874,5,0.52483213016578456,5]
[9,0.49082733491447317,5,0.59621595262174265,1,0.77252876572295714,4,0.38173346064025937,3,0.45927677996259431,6,0.52267816734534489,4,0.1742739053651583,5,0.58258052893856549,5]
[10,0.80932049166453224,4,0.59638458024081697,4,0.47049721631782393,3,0.58517370245794897,2,0.10854893419037137,7,0.61683551138922377,7,8.3118909813612141E-2,5,0.60331095025381121,5]
[11,7.0307904011600253E-2,4,0.6412989008318728,5,0.8104874450044034,3,0.65944543768601627,9,0.51065709954988892,7,0.65379985411551111,7,0.54258904306284461,5,0.63519702685967383,5]
[12,0.19686771958254901,3,0.726967906683192,3,0.97207115378731324,3,0.70257717896347582,9,0.90231297323092396,7,0.71832359467373064,1,0.43201766024637744,5,0.7177069449032154,5]
[13,1.2293258404005303E-2,3,0.78187070040921813,5,1.4300025752644441E-2,3,0.77030371148304178,3,0.10973193704493367,7,0.88124523184808656,8,0.48359727360355209,5,0.85763329881350836,5]
[14,7.3857142271924969E-2,2,0.86464557347055171,6,0.66339641008138273,2,0.8534094812362617,9,0.28039259361278512,8,0.890917464507749,6,0.42256635388947272,5,0.87192638673853129,5]
[15,0.91894801655490588,1,0.97320254942329754,4,0.30702736319520041,1,0.98158002264235511,5,9.2128532202168323E-2,9,0.99339286436263596,7,0.98971131076294927,5,0.97933086106155287,5]
[]
[]
[null,"それぞれ、計算スペースに、値のコピーをしてから、乱数の大きさの順に並び変えて、カードを出した順とみなします。"]
[]
[null,"乱数のところは、そのたびごとに再計算されるので、計算スペースのところは異なります。"]
[]
[1,2,3,4,5,6,7,8,9,10,11,12,13,14,15,16,17,18,19,20,21,22,23,24,25,26,27]
[null,null,{"$f":"SUM(C41:C140)","v":1449},{"$f":"SUM(D41:D140)","v":1737},2048,722,null,null,null,null,null,null,null,null,null,null,null,null,"A","B","C","D"]
[null,null,"A","B","C","D"]
[null,1,9,18,19,13,{"$f":"SUM(C41:F41)","v":59},null,null,null,null,null,null,null,null,null,null,null,5,2,1,5,5,2,0,0,2]
[null,2,15,17,21,6,{"$f":"SUM(C42:F42)","v":59},null,null,null,null,null,null,null,null,null,null,null,9,9,7,5,9,2,2,0,0]
[null,3,13,13,27,6,59,null,null,null,null,null,null,null,null,null,null,null,5,3,5,5,5,1,0,1,1]
[null,4,20,14,16,10,60,null,null,null,null,null,null,null,null,null,null,null,4,3,8,5,8,0,0,4,0]
[null,5,16,14,20,9,59,null,null,null,null,null,null,null,null,null,null,null,6,9,1,5,9,0,4,0,0]
[null,6,9,20,19,11,59,null,null,null,null,null,null,null,null,null,null,null,5,3,6,5,6,0,0,4,0]
[null,7,16,16,22,6,60,null,null,null,null,null,null,null,null,null,null,null,4,1,5,5,5,0,0,2,2]
[null,8,12,14,20,14,60,null,null,null,null,null,null,null,null,null,null,null,3,6,4,5,6,0,4,0,0]
[null,9,15,17,25,2,59,null,null,null,null,null,null,null,null,null,null,null,6,5,7,5,7,0,0,4,0]
[null,10,16,16,16,12,60,null,null,null,null,null,null,null,null,null,null,null,7,9,7,5,9,0,4,0,0]
[null,11,11,21,18,9,59,null,null,null,null,null,null,null,null,null,null,null,8,5,7,5,8,4,0,0,0]
[null,12,16,20,14,10,60,null,null,null,null,null,null,null,null,null,null,null,1,4,9,5,9,0,0,4,0]
[null,13,11,21,18,9,59,null,null,null,null,null,null,null,null,null,null,null,2,4,1,5,5,0,0,0,4]
[null,14,14,16,28,2,60,null,null,null,null,null,null,null,null,null,null,null,3,3,1,5,5,0,0,0,4]
[null,15,19,22,11,7,59,null,null,null,null,null,null,null,null,null,null,null,7,9,6,5,9,0,4,0,0]
[null,16,12,14,28,6,60]
[null,17,14,14,24,8,60,null,null,null,null,null,null,null,null,null,null,null,null,null,null,null,null,{"$f":"SUM(X41:X55)","v":9},{"$f":"SUM(Y41:Y55)","v":18},19,13]
[null,18,11,17,27,5,60]
[null,19,19,16,17,7,59]
[null,20,16,16,16,12,60]
[null,21,8,22,26,4,60,null,null,null,null,null,null,null,null,null,null,null,5,3,7,5,7,0,0,4,0]
[null,22,18,16,20,6,60,null,null,null,null,null,null,null,null,null,null,null,2,4,9,5,9,0,0,4,0]
[null,23,18,16,18,8,60,null,null,null,null,null,null,null,null,null,null,null,9,9,7,5,9,2,2,0,0]
[null,24,4,16,30,10,60,null,null,null,null,null,null,null,null,null,null,null,5,9,6,5,9,0,4,0,0]
[null,25,14,22,20,4,60,null,null,null,null,null,null,null,null,null,null,null,6,6,6,5,6,1,1,1,0]
[null,26,6,18,24,12,60,null,null,null,null,null,null,null,null,null,null,null,6,2,5,5,6,4,0,0,0]
[null,27,12,15,25,7,59,null,null,null,null,null,null,null,null,null,null,null,5,3,7,5,7,0,0,4,0]
[null,28,14,18,24,4,60,null,null,null,null,null,null,null,null,null,null,null,4,5,1,5,5,0,2,0,2]
[null,29,14,22,20,4,60,null,null,null,null,null,null,null,null,null,null,null,3,1,7,5,7,0,0,4,0]
[null,30,10,18,22,10,60,null,null,null,null,null,null,null,null,null,null,null,7,9,4,5,9,0,4,0,0]
[null,31,10,15,25,9,59,null,null,null,null,null,null,null,null,null,null,null,8,3,1,5,8,4,0,0,0]
[null,32,16,18,18,8,60,null,null,null,null,null,null,null,null,null,null,null,4,4,1,5,5,0,0,0,4]
[null,33,16,18,24,2,60,null,null,null,null,null,null,null,null,null,null,null,7,3,5,5,7,4,0,0,0]
[null,34,16,18,20,6,60,null,null,null,null,null,null,null,null,null,null,null,1,9,1,5,9,0,4,0,0]
[null,35,11,17,18,13,59,null,null,null,null,null,null,null,null,null,null,null,3,5,8,5,8,0,0,4,0]
[null,36,12,18,18,12,60]
[null,37,16,14,18,12,60]
[null,38,14,18,20,8,60]
[null,39,14,20,18,8,60]
[null,40,14,20,20,6,60]
[null,41,18,14,26,2,60,null,null,null,null,null,null,null,null,null,null,null,6,2,5,5,6,4,0,0,0]
[null,42,19,20,15,5,59,null,null,null,null,null,null,null,null,null,null,null,4,1,5,5,5,0,0,2,2]
[null,43,22,18,16,4,60,null,null,null,null,null,null,null,null,null,null,null,7,3,1,5,7,4,0,0,0]
[null,44,12,16,19,11,58,null,null,null,null,null,null,null,null,null,null,null,8,5,1,5,8,4,0,0,0]
[null,45,16,18,20,6,60,null,null,null,null,null,null,null,null,null,null,null,6,9,6,5,9,0,4,0,0]
[null,46,12,16,18,14,60,null,null,null,null,null,null,null,null,null,null,null,5,4,7,5,7,0,0,4,0]
[null,47,16,18,22,4,60,null,null,null,null,null,null,null,null,null,null,null,3,5,7,5,7,0,0,4,0]
[null,48,18,16,16,10,60,null,null,null,null,null,null,null,null,null,null,null,7,9,4,5,9,0,4,0,0]
[null,49,8,18,24,10,60,null,null,null,null,null,null,null,null,null,null,null,5,3,8,5,8,0,0,4,0]
[null,50,14,15,20,10,59,null,null,null,null,null,null,null,null,null,null,null,4,6,7,5,7,0,0,4,0]
[null,51,19,17,16,6,58,null,null,null,null,null,null,null,null,null,null,null,1,9,1,5,9,0,4,0,0]
[null,52,12,20,24,4,60,null,null,null,null,null,null,null,null,null,null,null,3,3,6,5,6,0,0,4,0]
[null,53,12,20,14,14,60,null,null,null,null,null,null,null,null,null,null,null,9,9,9,5,9,1,1,1,0]
[null,54,11,17,20,11,59,null,null,null,null,null,null,null,null,null,null,null,2,3,1,5,5,0,0,0,4]
[null,55,18,16,18,8,60,null,null,null,null,null,null,null,null,null,null,null,5,4,7,5,7,0,0,4,0]
[null,56,17,15,26,1,59]
[null,57,14,19,17,9,59]
[null,58,16,18,16,10,60]
[null,59,21,16,17,5,59]
[null,60,15,20,15,9,59]
[null,61,11,17,27,5,60,null,null,null,null,null,null,null,null,null,null,null,5,9,6,5,9,0,4,0,0]
[null,62,17,22,15,5,59,null,null,null,null,null,null,null,null,null,null,null,3,9,7,5,9,0,4,0,0]
[null,63,24,16,8,12,60,null,null,null,null,null,null,null,null,null,null,null,9,9,7,5,9,2,2,0,0]
[null,64,11,17,28,3,59,null,null,null,null,null,null,null,null,null,null,null,5,4,6,5,6,0,0,4,0]
[null,65,17,17,22,3,59,null,null,null,null,null,null,null,null,null,null,null,7,6,5,5,7,4,0,0,0]
[null,66,20,19,13,6,{"$f":"SUM(C106:F106)","v":58},null,null,null,null,null,null,null,null,null,null,null,6,3,1,5,6,4,0,0,0]
[null,67,17,15,16,11,59,null,null,null,null,null,null,null,null,null,null,null,8,5,7,5,8,4,0,0,0]
[null,68,14,15,19,11,59,null,null,null,null,null,null,null,null,null,null,null,1,2,8,5,8,0,0,4,0]
[null,69,12,14,24,10,60,null,null,null,null,null,null,null,null,null,null,null,4,1,7,5,7,0,0,4,0]
[null,70,14,18,22,6,60,null,null,null,null,null,null,null,null,null,null,null,4,3,4,5,5,0,0,0,4]
[null,71,12,16,28,4,60,null,null,null,null,null,null,null,null,null,null,null,5,3,1,5,5,2,0,0,2]
[null,72,14,20,20,6,60,null,null,null,null,null,null,null,null,null,null,null,6,4,5,5,6,4,0,0,0]
[null,73,16,14,26,4,60,null,null,null,null,null,null,null,null,null,null,null,7,5,9,5,9,0,0,4,0]
[null,74,13,20,21,5,59,null,null,null,null,null,null,null,null,null,null,null,2,9,1,5,9,0,4,0,0]
[null,75,20,14,22,4,60,null,null,null,null,null,null,null,null,null,null,null,3,3,1,5,5,0,0,0,4]
[null,76,16,16,20,8,60]
[null,77,20,16,16,8,60]
[null,78,16,16,24,4,60]
[null,79,16,16,20,8,60]
[null,80,18,16,20,6,60]
[null,81,10,22,22,6,60,null,null,null,null,null,null,null,null,null,null,null,3,9,8,5,9,0,4,0,0]
[null,82,16,20,20,4,60,null,null,null,null,null,null,null,null,null,null,null,9,9,5,5,9,2,2,0,0]
[null,83,19,14,21,5,59,null,null,null,null,null,null,null,null,null,null,null,6,6,6,5,6,1,1,1,0]
[null,84,18,19,19,3,59,null,null,null,null,null,null,null,null,null,null,null,3,5,6,5,6,0,0,4,0]
[null,85,14,16,24,6,60,null,null,null,null,null,null,null,null,null,null,null,2,4,7,5,7,0,0,4,0]
[null,86,19,17,17,7,60,null,null,null,null,null,null,null,null,null,null,null,7,1,7,5,7,2,0,2,0]
[null,87,12,16,26,6,60,null,null,null,null,null,null,null,null,null,null,null,8,3,1,5,8,4,0,0,0]
[null,88,12,20,24,4,60,null,null,null,null,null,null,null,null,null,null,null,4,9,4,5,9,0,4,0,0]
[null,89,10,17,23,8,58,null,null,null,null,null,null,null,null,null,null,null,1,3,1,5,5,0,0,0,4]
[null,90,15,17,22,5,59,null,null,null,null,null,null,null,null,null,null,null,7,3,7,5,7,2,0,2,0]
[null,91,20,21,15,3,59,null,null,null,null,null,null,null,null,null,null,null,6,9,9,5,9,0,2,2,0]
[null,92,16,18,18,8,60,null,null,null,null,null,null,null,null,null,null,null,4,3,7,5,7,0,0,4,0]
[null,93,16,15,21,7,59,null,null,null,null,null,null,null,null,null,null,null,5,5,5,5,5,1,1,1,1]
[null,94,7,19,24,9,59,null,null,null,null,null,null,null,null,null,null,null,5,4,1,5,5,2,0,0,2]
[null,95,14,20,24,2,60,null,null,null,null,null,null,null,null,null,null,null,5,2,1,5,5,2,0,0,2]
[null,96,12,20,20,8,60]
[null,97,8,18,24,10,60]
[null,98,19,19,18,3,59]
[null,99,6,16,21,15,58]
[null,100,17,17,21,4,59]
[null,null,null,null,null,null,null,null,null,null,null,null,null,null,null,null,null,null,7,3,8,5,8,0,0,4,0]
[null,null,null,null,null,null,null,null,null,null,null,null,null,null,null,null,null,null,4,3,1,5,5,0,0,0,4]
[null,null,null,null,null,null,null,null,null,null,null,null,null,null,null,null,null,null,7,3,6,5,7,4,0,0,0]
[null,null,null,null,null,null,null,null,null,null,null,null,null,null,null,null,null,null,6,5,7,5,7,0,0,4,0]
[null,null,null,null,null,null,null,null,null,null,null,null,null,null,null,null,null,null,5,6,5,5,6,0,4,0,0]
[null,null,null,null,null,null,null,null,null,null,null,null,null,null,null,null,null,null,6,9,1,5,9,0,4,0,0]
[null,null,null,null,null,null,null,null,null,null,null,null,null,null,null,null,null,null,2,1,6,5,6,0,0,4,0]
[null,null,null,null,null,null,null,null,null,null,null,null,null,null,null,null,null,null,5,4,5,5,5,1,0,1,1]
[null,null,null,null,null,null,null,null,null,null,null,null,null,null,null,null,null,null,8,9,7,5,9,0,4,0,0]
[null,null,null,null,null,null,null,null,null,null,null,null,null,null,null,null,null,null,9,2,9,5,9,2,0,2,0]
[null,null,null,null,null,null,null,null,null,null,null,null,null,null,null,null,null,null,5,3,4,5,5,2,0,0,2]
[null,null,null,null,null,null,null,null,null,null,null,null,null,null,null,null,null,null,3,4,1,5,5,0,0,0,4]
[null,null,null,null,null,null,null,null,null,null,null,null,null,null,null,null,null,null,3,9,1,5,9,0,4,0,0]
[null,null,null,null,null,null,null,null,null,null,null,null,null,null,null,null,null,null,4,5,7,5,7,0,0,4,0]
[null,null,null,null,null,null,null,null,null,null,null,null,null,null,null,null,null,null,1,9,7,5,9,0,4,0,0]
[]
[]
[]
[]
[]
[null,null,null,null,null,null,null,null,null,null,null,null,null,null,null,null,null,null,4,1,8,5,8,0,0,4,0]
[null,null,null,null,null,null,null,null,null,null,null,null,null,null,null,null,null,null,7,9,5,5,9,0,4,0,0]
[null,null,null,null,null,null,null,null,null,null,null,null,null,null,null,null,null,null,6,4,1,5,6,4,0,0,0]
[null,null,null,null,null,null,null,null,null,null,null,null,null,null,null,null,null,null,3,5,7,5,7,0,0,4,0]
[null,null,null,null,null,null,null,null,null,null,null,null,null,null,null,null,null,null,5,3,9,5,9,0,0,4,0]
[null,null,null,null,null,null,null,null,null,null,null,null,null,null,null,null,null,null,4,4,7,5,7,0,0,4,0]
[null,null,null,null,null,null,null,null,null,null,null,null,null,null,null,null,null,null,5,9,7,5,9,0,4,0,0]
[null,null,null,null,null,null,null,null,null,null,null,null,null,null,null,null,null,null,7,3,7,5,7,2,0,2,0]
[null,null,null,null,null,null,null,null,null,null,null,null,null,null,null,null,null,null,6,9,6,5,9,0,4,0,0]
[null,null,null,null,null,null,null,null,null,null,null,null,null,null,null,null,null,null,2,3,6,5,6,0,0,4,0]
[null,null,null,null,null,null,null,null,null,null,null,null,null,null,null,null,null,null,5,3,4,5,5,2,0,0,2]
[null,null,null,null,null,null,null,null,null,null,null,null,null,null,null,null,null,null,1,2,1,5,5,0,0,0,4]
[null,null,null,null,null,null,null,null,null,null,null,null,null,null,null,null,null,null,8,5,1,5,8,4,0,0,0]
[null,null,null,null,null,null,null,null,null,null,null,null,null,null,null,null,null,null,3,9,5,5,9,0,4,0,0]
[null,null,null,null,null,null,null,null,null,null,null,null,null,null,null,null,null,null,9,6,1,5,9,4,0,0,0]
[]
[]
[]
[]
[]
[null,null,null,null,null,null,null,null,null,null,null,null,null,null,null,null,null,null,7,5,5,5,7,4,0,0,0]
[null,null,null,null,null,null,null,null,null,null,null,null,null,null,null,null,null,null,6,6,7,5,7,0,0,4,0]
[null,null,null,null,null,null,null,null,null,null,null,null,null,null,null,null,null,null,3,1,9,5,9,0,0,4,0]
[null,null,null,null,null,null,null,null,null,null,null,null,null,null,null,null,null,null,8,9,7,5,9,0,4,0,0]
[null,null,null,null,null,null,null,null,null,null,null,null,null,null,null,null,null,null,3,2,1,5,5,0,0,0,4]
[null,null,null,null,null,null,null,null,null,null,null,null,null,null,null,null,null,null,1,4,5,5,5,0,0,2,2]
[null,null,null,null,null,null,null,null,null,null,null,null,null,null,null,null,null,null,5,3,6,5,6,0,0,4,0]
[null,null,null,null,null,null,null,null,null,null,null,null,null,null,null,null,null,null,2,4,1,5,5,0,0,0,4]
[null,null,null,null,null,null,null,null,null,null,null,null,null,null,null,null,null,null,9,9,8,5,9,2,2,0,0]
[null,null,null,null,null,null,null,null,null,null,null,null,null,null,null,null,null,null,5,5,7,5,7,0,0,4,0]
[null,null,null,null,null,null,null,null,null,null,null,null,null,null,null,null,null,null,7,3,1,5,7,4,0,0,0]
[null,null,null,null,null,null,null,null,null,null,null,null,null,null,null,null,null,null,4,9,7,5,9,0,4,0,0]
[null,null,null,null,null,null,null,null,null,null,null,null,null,null,null,null,null,null,5,9,4,5,9,0,4,0,0]
[null,null,null,null,null,null,null,null,null,null,null,null,null,null,null,null,null,null,4,3,1,5,5,0,0,0,4]
[null,null,null,null,null,null,null,null,null,null,null,null,null,null,null,null,null,null,6,3,6,5,6,2,0,2,0]
[]
[]
[]
[]
[]
[null,null,null,null,null,null,null,null,null,null,null,null,null,null,null,null,null,null,3,3,7,5,7,0,0,4,0]
[null,null,null,null,null,null,null,null,null,null,null,null,null,null,null,null,null,null,5,9,1,5,9,0,4,0,0]
[null,null,null,null,null,null,null,null,null,null,null,null,null,null,null,null,null,null,5,2,1,5,5,2,0,0,2]
[null,null,null,null,null,null,null,null,null,null,null,null,null,null,null,null,null,null,3,3,7,5,7,0,0,4,0]
[null,null,null,null,null,null,null,null,null,null,null,null,null,null,null,null,null,null,7,5,8,5,8,0,0,4,0]
[null,null,null,null,null,null,null,null,null,null,null,null,null,null,null,null,null,null,8,1,1,5,8,4,0,0,0]
[null,null,null,null,null,null,null,null,null,null,null,null,null,null,null,null,null,null,4,6,5,5,6,0,4,0,0]
[null,null,null,null,null,null,null,null,null,null,null,null,null,null,null,null,null,null,6,3,4,5,6,4,0,0,0]
[null,null,null,null,null,null,null,null,null,null,null,null,null,null,null,null,null,null,2,3,6,5,6,0,0,4,0]
[null,null,null,null,null,null,null,null,null,null,null,null,null,null,null,null,null,null,5,9,6,5,9,0,4,0,0]
[null,null,null,null,null,null,null,null,null,null,null,null,null,null,null,null,null,null,1,9,1,5,9,0,4,0,0]
[null,null,null,null,null,null,null,null,null,null,null,null,null,null,null,null,null,null,6,4,7,5,7,0,0,4,0]
[null,null,null,null,null,null,null,null,null,null,null,null,null,null,null,null,null,null,4,5,7,5,7,0,0,4,0]
[null,null,null,null,null,null,null,null,null,null,null,null,null,null,null,null,null,null,7,4,5,5,7,4,0,0,0]
[null,null,null,null,null,null,null,null,null,null,null,null,null,null,null,null,null,null,9,9,9,5,9,1,1,1,0]
[]
[]
[]
[]
[]
[null,null,null,null,null,null,null,null,null,null,null,null,null,null,null,null,null,null,5,2,7,5,7,0,0,4,0]
[null,null,null,null,null,null,null,null,null,null,null,null,null,null,null,null,null,null,1,4,1,5,5,0,0,0,4]
[null,null,null,null,null,null,null,null,null,null,null,null,null,null,null,null,null,null,7,3,5,5,7,4,0,0,0]
[null,null,null,null,null,null,null,null,null,null,null,null,null,null,null,null,null,null,5,6,7,5,7,0,0,4,0]
[null,null,null,null,null,null,null,null,null,null,null,null,null,null,null,null,null,null,3,3,5,5,5,0,0,2,2]
[null,null,null,null,null,null,null,null,null,null,null,null,null,null,null,null,null,null,2,1,7,5,7,0,0,4,0]
[null,null,null,null,null,null,null,null,null,null,null,null,null,null,null,null,null,null,3,3,1,5,5,0,0,0,4]
[null,null,null,null,null,null,null,null,null,null,null,null,null,null,null,null,null,null,5,3,1,5,5,2,0,0,2]
[null,null,null,null,null,null,null,null,null,null,null,null,null,null,null,null,null,null,4,9,4,5,9,0,4,0,0]
[null,null,null,null,null,null,null,null,null,null,null,null,null,null,null,null,null,null,7,4,1,5,7,4,0,0,0]
[null,null,null,null,null,null,null,null,null,null,null,null,null,null,null,null,null,null,8,5,7,5,8,4,0,0,0]
[null,null,null,null,null,null,null,null,null,null,null,null,null,null,null,null,null,null,4,9,6,5,9,0,4,0,0]
[null,null,null,null,null,null,null,null,null,null,null,null,null,null,null,null,null,null,6,9,6,5,9,0,4,0,0]
[null,null,null,null,null,null,null,null,null,null,null,null,null,null,null,null,null,null,9,5,9,5,9,2,0,2,0]
[null,null,null,null,null,null,null,null,null,null,null,null,null,null,null,null,null,null,6,9,8,5,9,0,4,0,0]
[]
[]
[]
[]
[]
[null,null,null,null,null,null,null,null,null,null,null,null,null,null,null,null,null,null,5,5,4,5,5,1,1,0,1]
[null,null,null,null,null,null,null,null,null,null,null,null,null,null,null,null,null,null,5,3,8,5,8,0,0,4,0]
[null,null,null,null,null,null,null,null,null,null,null,null,null,null,null,null,null,null,5,3,7,5,7,0,0,4,0]
[null,null,null,null,null,null,null,null,null,null,null,null,null,null,null,null,null,null,6,9,7,5,9,0,4,0,0]
[null,null,null,null,null,null,null,null,null,null,null,null,null,null,null,null,null,null,4,3,1,5,5,0,0,0,4]
[null,null,null,null,null,null,null,null,null,null,null,null,null,null,null,null,null,null,8,9,7,5,9,0,4,0,0]
[null,null,null,null,null,null,null,null,null,null,null,null,null,null,null,null,null,null,4,4,7,5,7,0,0,4,0]
[null,null,null,null,null,null,null,null,null,null,null,null,null,null,null,null,null,null,3,6,5,5,6,0,4,0,0]
[null,null,null,null,null,null,null,null,null,null,null,null,null,null,null,null,null,null,9,5,1,5,9,4,0,0,0]
[null,null,null,null,null,null,null,null,null,null,null,null,null,null,null,null,null,null,7,3,5,5,7,4,0,0,0]
[null,null,null,null,null,null,null,null,null,null,null,null,null,null,null,null,null,null,1,9,6,5,9,0,4,0,0]
[null,null,null,null,null,null,null,null,null,null,null,null,null,null,null,null,null,null,2,2,1,5,5,0,0,0,4]
[null,null,null,null,null,null,null,null,null,null,null,null,null,null,null,null,null,null,6,1,6,5,6,2,0,2,0]
[null,null,null,null,null,null,null,null,null,null,null,null,null,null,null,null,null,null,7,9,1,5,9,0,4,0,0]
[null,null,null,null,null,null,null,null,null,null,null,null,null,null,null,null,null,null,3,4,9,5,9,0,0,4,0]
[]
[]
[]
[]
[]
[null,null,null,null,null,null,null,null,null,null,null,null,null,null,null,null,null,null,4,2,1,5,5,0,0,0,4]
[null,null,null,null,null,null,null,null,null,null,null,null,null,null,null,null,null,null,5,9,7,5,9,0,4,0,0]
[null,null,null,null,null,null,null,null,null,null,null,null,null,null,null,null,null,null,3,3,8,5,8,0,0,4,0]
[null,null,null,null,null,null,null,null,null,null,null,null,null,null,null,null,null,null,5,9,7,5,9,0,4,0,0]
[null,null,null,null,null,null,null,null,null,null,null,null,null,null,null,null,null,null,6,1,7,5,7,0,0,4,0]
[null,null,null,null,null,null,null,null,null,null,null,null,null,null,null,null,null,null,1,5,1,5,5,0,2,0,2]
[null,null,null,null,null,null,null,null,null,null,null,null,null,null,null,null,null,null,8,5,5,5,8,4,0,0,0]
[null,null,null,null,null,null,null,null,null,null,null,null,null,null,null,null,null,null,4,9,7,5,9,0,4,0,0]
[null,null,null,null,null,null,null,null,null,null,null,null,null,null,null,null,null,null,7,4,6,5,7,4,0,0,0]
[null,null,null,null,null,null,null,null,null,null,null,null,null,null,null,null,null,null,3,6,1,5,6,0,4,0,0]
[null,null,null,null,null,null,null,null,null,null,null,null,null,null,null,null,null,null,9,9,6,5,9,2,2,0,0]
[null,null,null,null,null,null,null,null,null,null,null,null,null,null,null,null,null,null,2,3,5,5,5,0,0,2,2]
[null,null,null,null,null,null,null,null,null,null,null,null,null,null,null,null,null,null,5,3,1,5,5,2,0,0,2]
[null,null,null,null,null,null,null,null,null,null,null,null,null,null,null,null,null,null,6,3,4,5,6,4,0,0,0]
[null,null,null,null,null,null,null,null,null,null,null,null,null,null,null,null,null,null,7,4,9,5,9,0,0,4,0]
[]
[]
[]
[]
[]
[null,null,null,null,null,null,null,null,null,null,null,null,null,null,null,null,null,null,4,4,4,5,5,0,0,0,4]
[null,null,null,null,null,null,null,null,null,null,null,null,null,null,null,null,null,null,9,3,5,5,9,4,0,0,0]
[null,null,null,null,null,null,null,null,null,null,null,null,null,null,null,null,null,null,8,9,1,5,9,0,4,0,0]
[null,null,null,null,null,null,null,null,null,null,null,null,null,null,null,null,null,null,6,9,7,5,9,0,4,0,0]
[null,null,null,null,null,null,null,null,null,null,null,null,null,null,null,null,null,null,7,3,7,5,7,2,0,2,0]
[null,null,null,null,null,null,null,null,null,null,null,null,null,null,null,null,null,null,2,2,1,5,5,0,0,0,4]
[null,null,null,null,null,null,null,null,null,null,null,null,null,null,null,null,null,null,5,4,6,5,6,0,0,4,0]
[null,null,null,null,null,null,null,null,null,null,null,null,null,null,null,null,null,null,1,5,9,5,9,0,0,4,0]
[null,null,null,null,null,null,null,null,null,null,null,null,null,null,null,null,null,null,4,6,1,5,6,0,4,0,0]
[null,null,null,null,null,null,null,null,null,null,null,null,null,null,null,null,null,null,3,9,8,5,9,0,4,0,0]
[null,null,null,null,null,null,null,null,null,null,null,null,null,null,null,null,null,null,5,5,1,5,5,1,1,0,1]
[null,null,null,null,null,null,null,null,null,null,null,null,null,null,null,null,null,null,3,3,6,5,6,0,0,4,0]
[null,null,null,null,null,null,null,null,null,null,null,null,null,null,null,null,null,null,5,3,7,5,7,0,0,4,0]
[null,null,null,null,null,null,null,null,null,null,null,null,null,null,null,null,null,null,7,1,5,5,7,4,0,0,0]
[null,null,null,null,null,null,null,null,null,null,null,null,null,null,null,null,null,null,6,9,7,5,9,0,4,0,0]
[]
[]
[]
[]
[]
[null,null,null,null,null,null,null,null,null,null,null,null,null,null,null,null,null,null,4,3,6,5,6,0,0,4,0]
[null,null,null,null,null,null,null,null,null,null,null,null,null,null,null,null,null,null,6,5,1,5,6,4,0,0,0]
[null,null,null,null,null,null,null,null,null,null,null,null,null,null,null,null,null,null,9,6,5,5,9,4,0,0,0]
[null,null,null,null,null,null,null,null,null,null,null,null,null,null,null,null,null,null,8,2,9,5,9,0,0,4,0]
[null,null,null,null,null,null,null,null,null,null,null,null,null,null,null,null,null,null,2,9,5,5,9,0,4,0,0]
[null,null,null,null,null,null,null,null,null,null,null,null,null,null,null,null,null,null,7,9,7,5,9,0,4,0,0]
[null,null,null,null,null,null,null,null,null,null,null,null,null,null,null,null,null,null,5,5,7,5,7,0,0,4,0]
[null,null,null,null,null,null,null,null,null,null,null,null,null,null,null,null,null,null,7,3,1,5,7,4,0,0,0]
[null,null,null,null,null,null,null,null,null,null,null,null,null,null,null,null,null,null,1,4,7,5,7,0,0,4,0]
[null,null,null,null,null,null,null,null,null,null,null,null,null,null,null,null,null,null,5,3,1,5,5,2,0,0,2]
[null,null,null,null,null,null,null,null,null,null,null,null,null,null,null,null,null,null,4,4,8,5,8,0,0,4,0]
[null,null,null,null,null,null,null,null,null,null,null,null,null,null,null,null,null,null,3,9,1,5,9,0,4,0,0]
[null,null,null,null,null,null,null,null,null,null,null,null,null,null,null,null,null,null,3,3,7,5,7,0,0,4,0]
[null,null,null,null,null,null,null,null,null,null,null,null,null,null,null,null,null,null,6,9,4,5,9,0,4,0,0]
[null,null,null,null,null,null,null,null,null,null,null,null,null,null,null,null,null,null,5,1,6,5,6,0,0,4,0]
[]
[]
[]
[]
[]
[null,null,null,null,null,null,null,null,null,null,null,null,null,null,null,null,null,null,8,3,7,5,8,4,0,0,0]
[null,null,null,null,null,null,null,null,null,null,null,null,null,null,null,null,null,null,2,5,8,5,8,0,0,4,0]
[null,null,null,null,null,null,null,null,null,null,null,null,null,null,null,null,null,null,6,3,1,5,6,4,0,0,0]
[null,null,null,null,null,null,null,null,null,null,null,null,null,null,null,null,null,null,4,4,1,5,5,0,0,0,4]
[null,null,null,null,null,null,null,null,null,null,null,null,null,null,null,null,null,null,1,9,7,5,9,0,4,0,0]
[null,null,null,null,null,null,null,null,null,null,null,null,null,null,null,null,null,null,6,3,6,5,6,2,0,2,0]
[null,null,null,null,null,null,null,null,null,null,null,null,null,null,null,null,null,null,7,4,6,5,7,4,0,0,0]
[null,null,null,null,null,null,null,null,null,null,null,null,null,null,null,null,null,null,5,9,7,5,9,0,4,0,0]
[null,null,null,null,null,null,null,null,null,null,null,null,null,null,null,null,null,null,3,6,5,5,6,0,4,0,0]
[null,null,null,null,null,null,null,null,null,null,null,null,null,null,null,null,null,null,5,3,5,5,5,1,0,1,1]
[null,null,null,null,null,null,null,null,null,null,null,null,null,null,null,null,null,null,4,5,4,5,5,0,2,0,2]
[null,null,null,null,null,null,null,null,null,null,null,null,null,null,null,null,null,null,5,1,9,5,9,0,0,4,0]
[null,null,null,null,null,null,null,null,null,null,null,null,null,null,null,null,null,null,3,9,1,5,9,0,4,0,0]
[null,null,null,null,null,null,null,null,null,null,null,null,null,null,null,null,null,null,7,9,7,5,9,0,4,0,0]
[null,null,null,null,null,null,null,null,null,null,null,null,null,null,null,null,null,null,9,2,1,5,9,4,0,0,0]
[]
[]
[]
[]
[]
[null,null,null,null,null,null,null,null,null,null,null,null,null,null,null,null,null,null,6,3,7,5,7,0,0,4,0]
[null,null,null,null,null,null,null,null,null,null,null,null,null,null,null,null,null,null,8,5,1,5,8,4,0,0,0]
[null,null,null,null,null,null,null,null,null,null,null,null,null,null,null,null,null,null,3,3,7,5,7,0,0,4,0]
[null,null,null,null,null,null,null,null,null,null,null,null,null,null,null,null,null,null,5,4,8,5,8,0,0,4,0]
[null,null,null,null,null,null,null,null,null,null,null,null,null,null,null,null,null,null,6,9,1,5,9,0,4,0,0]
[null,null,null,null,null,null,null,null,null,null,null,null,null,null,null,null,null,null,1,3,6,5,6,0,0,4,0]
[null,null,null,null,null,null,null,null,null,null,null,null,null,null,null,null,null,null,5,1,1,5,5,2,0,0,2]
[null,null,null,null,null,null,null,null,null,null,null,null,null,null,null,null,null,null,3,2,6,5,6,0,0,4,0]
[null,null,null,null,null,null,null,null,null,null,null,null,null,null,null,null,null,null,4,6,7,5,7,0,0,4,0]
[null,null,null,null,null,null,null,null,null,null,null,null,null,null,null,null,null,null,2,9,1,5,9,0,4,0,0]
[null,null,null,null,null,null,null,null,null,null,null,null,null,null,null,null,null,null,7,3,5,5,7,4,0,0,0]
[null,null,null,null,null,null,null,null,null,null,null,null,null,null,null,null,null,null,4,4,4,5,5,0,0,0,4]
[null,null,null,null,null,null,null,null,null,null,null,null,null,null,null,null,null,null,9,9,5,5,9,2,2,0,0]
[null,null,null,null,null,null,null,null,null,null,null,null,null,null,null,null,null,null,7,9,7,5,9,0,4,0,0]
[null,null,null,null,null,null,null,null,null,null,null,null,null,null,null,null,null,null,5,5,9,5,9,0,0,4,0]
[]
[]
[]
[]
[]
[null,null,null,null,null,null,null,null,null,null,null,null,null,null,null,null,null,null,7,9,9,5,9,0,2,2,0]
[null,null,null,null,null,null,null,null,null,null,null,null,null,null,null,null,null,null,6,9,1,5,9,0,4,0,0]
[null,null,null,null,null,null,null,null,null,null,null,null,null,null,null,null,null,null,5,9,1,5,9,0,4,0,0]
[null,null,null,null,null,null,null,null,null,null,null,null,null,null,null,null,null,null,4,6,7,5,7,0,0,4,0]
[null,null,null,null,null,null,null,null,null,null,null,null,null,null,null,null,null,null,5,4,4,5,5,2,0,0,2]
[null,null,null,null,null,null,null,null,null,null,null,null,null,null,null,null,null,null,1,1,6,5,6,0,0,4,0]
[null,null,null,null,null,null,null,null,null,null,null,null,null,null,null,null,null,null,2,3,7,5,7,0,0,4,0]
[null,null,null,null,null,null,null,null,null,null,null,null,null,null,null,null,null,null,8,3,5,5,8,4,0,0,0]
[null,null,null,null,null,null,null,null,null,null,null,null,null,null,null,null,null,null,3,5,7,5,7,0,0,4,0]
[null,null,null,null,null,null,null,null,null,null,null,null,null,null,null,null,null,null,4,2,7,5,7,0,0,4,0]
[null,null,null,null,null,null,null,null,null,null,null,null,null,null,null,null,null,null,7,9,8,5,9,0,4,0,0]
[null,null,null,null,null,null,null,null,null,null,null,null,null,null,null,null,null,null,5,3,1,5,5,2,0,0,2]
[null,null,null,null,null,null,null,null,null,null,null,null,null,null,null,null,null,null,9,5,5,5,9,4,0,0,0]
[null,null,null,null,null,null,null,null,null,null,null,null,null,null,null,null,null,null,6,4,6,5,6,2,0,2,0]
[null,null,null,null,null,null,null,null,null,null,null,null,null,null,null,null,null,null,3,3,1,5,5,0,0,0,4]
[]
[]
[]
[]
[]
[null,null,null,null,null,null,null,null,null,null,null,null,null,null,null,null,null,null,7,3,1,5,7,4,0,0,0]
[null,null,null,null,null,null,null,null,null,null,null,null,null,null,null,null,null,null,9,5,1,5,9,4,0,0,0]
[null,null,null,null,null,null,null,null,null,null,null,null,null,null,null,null,null,null,6,1,9,5,9,0,0,4,0]
[null,null,null,null,null,null,null,null,null,null,null,null,null,null,null,null,null,null,5,5,5,5,5,1,1,1,1]
[null,null,null,null,null,null,null,null,null,null,null,null,null,null,null,null,null,null,2,3,6,5,6,0,0,4,0]
[null,null,null,null,null,null,null,null,null,null,null,null,null,null,null,null,null,null,6,2,6,5,6,2,0,2,0]
[null,null,null,null,null,null,null,null,null,null,null,null,null,null,null,null,null,null,8,9,7,5,9,0,4,0,0]
[null,null,null,null,null,null,null,null,null,null,null,null,null,null,null,null,null,null,1,9,5,5,9,0,4,0,0]
[null,null,null,null,null,null,null,null,null,null,null,null,null,null,null,null,null,null,4,4,7,5,7,0,0,4,0]
[null,null,null,null,null,null,null,null,null,null,null,null,null,null,null,null,null,null,3,4,4,5,5,0,0,0,4]
[null,null,null,null,null,null,null,null,null,null,null,null,null,null,null,null,null,null,3,9,1,5,9,0,4,0,0]
[null,null,null,null,null,null,null,null,null,null,null,null,null,null,null,null,null,null,5,9,1,5,9,0,4,0,0]
[null,null,null,null,null,null,null,null,null,null,null,null,null,null,null,null,null,null,4,3,7,5,7,0,0,4,0]
[null,null,null,null,null,null,null,null,null,null,null,null,null,null,null,null,null,null,5,3,7,5,7,0,0,4,0]
[null,null,null,null,null,null,null,null,null,null,null,null,null,null,null,null,null,null,7,6,8,5,8,0,0,4,0]
[]
[]
[]
[]
[]
[null,null,null,null,null,null,null,null,null,null,null,null,null,null,null,null,null,null,7,3,1,5,7,4,0,0,0]
[null,null,null,null,null,null,null,null,null,null,null,null,null,null,null,null,null,null,2,4,8,5,8,0,0,4,0]
[null,null,null,null,null,null,null,null,null,null,null,null,null,null,null,null,null,null,5,3,5,5,5,1,0,1,1]
[null,null,null,null,null,null,null,null,null,null,null,null,null,null,null,null,null,null,5,1,1,5,5,2,0,0,2]
[null,null,null,null,null,null,null,null,null,null,null,null,null,null,null,null,null,null,8,5,7,5,8,4,0,0,0]
[null,null,null,null,null,null,null,null,null,null,null,null,null,null,null,null,null,null,5,3,9,5,9,0,0,4,0]
[null,null,null,null,null,null,null,null,null,null,null,null,null,null,null,null,null,null,7,4,4,5,7,4,0,0,0]
[null,null,null,null,null,null,null,null,null,null,null,null,null,null,null,null,null,null,6,9,7,5,9,0,4,0,0]
[null,null,null,null,null,null,null,null,null,null,null,null,null,null,null,null,null,null,3,5,7,5,7,0,0,4,0]
[null,null,null,null,null,null,null,null,null,null,null,null,null,null,null,null,null,null,4,2,1,5,5,0,0,0,4]
[null,null,null,null,null,null,null,null,null,null,null,null,null,null,null,null,null,null,4,9,5,5,9,0,4,0,0]
[null,null,null,null,null,null,null,null,null,null,null,null,null,null,null,null,null,null,1,9,6,5,9,0,4,0,0]
[null,null,null,null,null,null,null,null,null,null,null,null,null,null,null,null,null,null,6,9,7,5,9,0,4,0,0]
[null,null,null,null,null,null,null,null,null,null,null,null,null,null,null,null,null,null,9,6,1,5,9,4,0,0,0]
[null,null,null,null,null,null,null,null,null,null,null,null,null,null,null,null,null,null,3,3,6,5,6,0,0,4,0]
[]
[]
[]
[]
[]
[null,null,null,null,null,null,null,null,null,null,null,null,null,null,null,null,null,null,4,6,7,5,7,0,0,4,0]
[null,null,null,null,null,null,null,null,null,null,null,null,null,null,null,null,null,null,6,3,7,5,7,0,0,4,0]
[null,null,null,null,null,null,null,null,null,null,null,null,null,null,null,null,null,null,6,5,5,5,6,4,0,0,0]
[null,null,null,null,null,null,null,null,null,null,null,null,null,null,null,null,null,null,7,1,1,5,7,4,0,0,0]
[null,null,null,null,null,null,null,null,null,null,null,null,null,null,null,null,null,null,2,9,8,5,9,0,4,0,0]
[null,null,null,null,null,null,null,null,null,null,null,null,null,null,null,null,null,null,9,4,7,5,9,4,0,0,0]
[null,null,null,null,null,null,null,null,null,null,null,null,null,null,null,null,null,null,4,3,1,5,5,0,0,0,4]
[null,null,null,null,null,null,null,null,null,null,null,null,null,null,null,null,null,null,3,2,1,5,5,0,0,0,4]
[null,null,null,null,null,null,null,null,null,null,null,null,null,null,null,null,null,null,5,9,1,5,9,0,4,0,0]
[null,null,null,null,null,null,null,null,null,null,null,null,null,null,null,null,null,null,8,9,6,5,9,0,4,0,0]
[null,null,null,null,null,null,null,null,null,null,null,null,null,null,null,null,null,null,5,4,7,5,7,0,0,4,0]
[null,null,null,null,null,null,null,null,null,null,null,null,null,null,null,null,null,null,3,3,4,5,5,0,0,0,4]
[null,null,null,null,null,null,null,null,null,null,null,null,null,null,null,null,null,null,7,5,6,5,7,4,0,0,0]
[null,null,null,null,null,null,null,null,null,null,null,null,null,null,null,null,null,null,1,3,9,5,9,0,0,4,0]
[null,null,null,null,null,null,null,null,null,null,null,null,null,null,null,null,null,null,5,9,5,5,9,0,4,0,0]
[]
[]
[]
[]
[]
[null,null,null,null,null,null,null,null,null,null,null,null,null,null,null,null,null,null,2,5,1,5,5,0,2,0,2]
[null,null,null,null,null,null,null,null,null,null,null,null,null,null,null,null,null,null,7,9,1,5,9,0,4,0,0]
[null,null,null,null,null,null,null,null,null,null,null,null,null,null,null,null,null,null,9,4,7,5,9,4,0,0,0]
[null,null,null,null,null,null,null,null,null,null,null,null,null,null,null,null,null,null,8,4,5,5,8,4,0,0,0]
[null,null,null,null,null,null,null,null,null,null,null,null,null,null,null,null,null,null,3,3,9,5,9,0,0,4,0]
[null,null,null,null,null,null,null,null,null,null,null,null,null,null,null,null,null,null,4,9,6,5,9,0,4,0,0]
[null,null,null,null,null,null,null,null,null,null,null,null,null,null,null,null,null,null,5,3,7,5,7,0,0,4,0]
[null,null,null,null,null,null,null,null,null,null,null,null,null,null,null,null,null,null,6,9,1,5,9,0,4,0,0]
[null,null,null,null,null,null,null,null,null,null,null,null,null,null,null,null,null,null,5,3,7,5,7,0,0,4,0]
[null,null,null,null,null,null,null,null,null,null,null,null,null,null,null,null,null,null,4,3,5,5,5,0,0,2,2]
[null,null,null,null,null,null,null,null,null,null,null,null,null,null,null,null,null,null,6,1,8,5,8,0,0,4,0]
[null,null,null,null,null,null,null,null,null,null,null,null,null,null,null,null,null,null,7,9,4,5,9,0,4,0,0]
[null,null,null,null,null,null,null,null,null,null,null,null,null,null,null,null,null,null,1,6,1,5,6,0,4,0,0]
[null,null,null,null,null,null,null,null,null,null,null,null,null,null,null,null,null,null,5,5,6,5,6,0,0,4,0]
[null,null,null,null,null,null,null,null,null,null,null,null,null,null,null,null,null,null,3,2,7,5,7,0,0,4,0]
[]
[]
[]
[]
[]
[null,null,null,null,null,null,null,null,null,null,null,null,null,null,null,null,null,null,5,2,6,5,6,0,0,4,0]
[null,null,null,null,null,null,null,null,null,null,null,null,null,null,null,null,null,null,6,3,1,5,6,4,0,0,0]
[null,null,null,null,null,null,null,null,null,null,null,null,null,null,null,null,null,null,6,9,9,5,9,0,2,2,0]
[null,null,null,null,null,null,null,null,null,null,null,null,null,null,null,null,null,null,2,9,5,5,9,0,4,0,0]
[null,null,null,null,null,null,null,null,null,null,null,null,null,null,null,null,null,null,7,4,7,5,7,2,0,2,0]
[null,null,null,null,null,null,null,null,null,null,null,null,null,null,null,null,null,null,4,3,4,5,5,0,0,0,4]
[null,null,null,null,null,null,null,null,null,null,null,null,null,null,null,null,null,null,3,3,6,5,6,0,0,4,0]
[null,null,null,null,null,null,null,null,null,null,null,null,null,null,null,null,null,null,8,4,5,5,8,4,0,0,0]
[null,null,null,null,null,null,null,null,null,null,null,null,null,null,null,null,null,null,9,3,7,5,9,4,0,0,0]
[null,null,null,null,null,null,null,null,null,null,null,null,null,null,null,null,null,null,4,5,1,5,5,0,2,0,2]
[null,null,null,null,null,null,null,null,null,null,null,null,null,null,null,null,null,null,5,9,7,5,9,0,4,0,0]
[null,null,null,null,null,null,null,null,null,null,null,null,null,null,null,null,null,null,3,9,1,5,9,0,4,0,0]
[null,null,null,null,null,null,null,null,null,null,null,null,null,null,null,null,null,null,1,6,7,5,7,0,0,4,0]
[null,null,null,null,null,null,null,null,null,null,null,null,null,null,null,null,null,null,5,5,8,5,8,0,0,4,0]
[null,null,null,null,null,null,null,null,null,null,null,null,null,null,null,null,null,null,7,1,1,5,7,4,0,0,0]
[]
[]
[]
[]
[]
[null,null,null,null,null,null,null,null,null,null,null,null,null,null,null,null,null,null,8,4,1,5,8,4,0,0,0]
[null,null,null,null,null,null,null,null,null,null,null,null,null,null,null,null,null,null,3,5,1,5,5,0,2,0,2]
[null,null,null,null,null,null,null,null,null,null,null,null,null,null,null,null,null,null,6,4,1,5,6,4,0,0,0]
[null,null,null,null,null,null,null,null,null,null,null,null,null,null,null,null,null,null,5,3,4,5,5,2,0,0,2]
[null,null,null,null,null,null,null,null,null,null,null,null,null,null,null,null,null,null,2,9,5,5,9,0,4,0,0]
[null,null,null,null,null,null,null,null,null,null,null,null,null,null,null,null,null,null,9,9,7,5,9,2,2,0,0]
[null,null,null,null,null,null,null,null,null,null,null,null,null,null,null,null,null,null,4,3,1,5,5,0,0,0,4]
[null,null,null,null,null,null,null,null,null,null,null,null,null,null,null,null,null,null,5,3,7,5,7,0,0,4,0]
[null,null,null,null,null,null,null,null,null,null,null,null,null,null,null,null,null,null,7,5,5,5,7,4,0,0,0]
[null,null,null,null,null,null,null,null,null,null,null,null,null,null,null,null,null,null,6,2,6,5,6,2,0,2,0]
[null,null,null,null,null,null,null,null,null,null,null,null,null,null,null,null,null,null,1,3,7,5,7,0,0,4,0]
[null,null,null,null,null,null,null,null,null,null,null,null,null,null,null,null,null,null,4,1,6,5,6,0,0,4,0]
[null,null,null,null,null,null,null,null,null,null,null,null,null,null,null,null,null,null,3,9,7,5,9,0,4,0,0]
[null,null,null,null,null,null,null,null,null,null,null,null,null,null,null,null,null,null,5,6,9,5,9,0,0,4,0]
[null,null,null,null,null,null,null,null,null,null,null,null,null,null,null,null,null,null,7,9,8,5,9,0,4,0,0]
[]
[]
[]
[]
[]
[null,null,null,null,null,null,null,null,null,null,null,null,null,null,null,null,null,null,6,6,9,5,9,0,0,4,0]
[null,null,null,null,null,null,null,null,null,null,null,null,null,null,null,null,null,null,4,3,1,5,5,0,0,0,4]
[null,null,null,null,null,null,null,null,null,null,null,null,null,null,null,null,null,null,1,5,1,5,5,0,2,0,2]
[null,null,null,null,null,null,null,null,null,null,null,null,null,null,null,null,null,null,7,3,8,5,8,0,0,4,0]
[null,null,null,null,null,null,null,null,null,null,null,null,null,null,null,null,null,null,2,4,7,5,7,0,0,4,0]
[null,null,null,null,null,null,null,null,null,null,null,null,null,null,null,null,null,null,3,9,1,5,9,0,4,0,0]
[null,null,null,null,null,null,null,null,null,null,null,null,null,null,null,null,null,null,9,9,1,5,9,2,2,0,0]
[null,null,null,null,null,null,null,null,null,null,null,null,null,null,null,null,null,null,4,3,5,5,5,0,0,2,2]
[null,null,null,null,null,null,null,null,null,null,null,null,null,null,null,null,null,null,5,1,7,5,7,0,0,4,0]
[null,null,null,null,null,null,null,null,null,null,null,null,null,null,null,null,null,null,3,2,5,5,5,0,0,2,2]
[null,null,null,null,null,null,null,null,null,null,null,null,null,null,null,null,null,null,8,9,4,5,9,0,4,0,0]
[null,null,null,null,null,null,null,null,null,null,null,null,null,null,null,null,null,null,7,9,6,5,9,0,4,0,0]
[null,null,null,null,null,null,null,null,null,null,null,null,null,null,null,null,null,null,5,3,7,5,7,0,0,4,0]
[null,null,null,null,null,null,null,null,null,null,null,null,null,null,null,null,null,null,5,4,7,5,7,0,0,4,0]
[null,null,null,null,null,null,null,null,null,null,null,null,null,null,null,null,null,null,6,5,6,5,6,2,0,2,0]
[]
[]
[]
[]
[]
[null,null,null,null,null,null,null,null,null,null,null,null,null,null,null,null,null,null,4,9,1,5,9,0,4,0,0]
[null,null,null,null,null,null,null,null,null,null,null,null,null,null,null,null,null,null,2,3,6,5,6,0,0,4,0]
[null,null,null,null,null,null,null,null,null,null,null,null,null,null,null,null,null,null,7,3,8,5,8,0,0,4,0]
[null,null,null,null,null,null,null,null,null,null,null,null,null,null,null,null,null,null,8,3,9,5,9,0,0,4,0]
[null,null,null,null,null,null,null,null,null,null,null,null,null,null,null,null,null,null,3,5,1,5,5,0,2,0,2]
[null,null,null,null,null,null,null,null,null,null,null,null,null,null,null,null,null,null,3,9,7,5,9,0,4,0,0]
[null,null,null,null,null,null,null,null,null,null,null,null,null,null,null,null,null,null,4,5,1,5,5,0,2,0,2]
[null,null,null,null,null,null,null,null,null,null,null,null,null,null,null,null,null,null,9,9,6,5,9,2,2,0,0]
[null,null,null,null,null,null,null,null,null,null,null,null,null,null,null,null,null,null,5,4,7,5,7,0,0,4,0]
[null,null,null,null,null,null,null,null,null,null,null,null,null,null,null,null,null,null,1,9,7,5,9,0,4,0,0]
[null,null,null,null,null,null,null,null,null,null,null,null,null,null,null,null,null,null,5,6,5,5,6,0,4,0,0]
[null,null,null,null,null,null,null,null,null,null,null,null,null,null,null,null,null,null,6,1,4,5,6,4,0,0,0]
[null,null,null,null,null,null,null,null,null,null,null,null,null,null,null,null,null,null,5,2,7,5,7,0,0,4,0]
[null,null,null,null,null,null,null,null,null,null,null,null,null,null,null,null,null,null,6,4,1,5,6,4,0,0,0]
[null,null,null,null,null,null,null,null,null,null,null,null,null,null,null,null,null,null,7,3,5,5,7,4,0,0,0]
[]
[]
[]
[]
[]
[null,null,null,null,null,null,null,null,null,null,null,null,null,null,null,null,null,null,4,9,7,5,9,0,4,0,0]
[null,null,null,null,null,null,null,null,null,null,null,null,null,null,null,null,null,null,5,9,1,5,9,0,4,0,0]
[null,null,null,null,null,null,null,null,null,null,null,null,null,null,null,null,null,null,3,1,1,5,5,0,0,0,4]
[null,null,null,null,null,null,null,null,null,null,null,null,null,null,null,null,null,null,8,4,9,5,9,0,0,4,0]
[null,null,null,null,null,null,null,null,null,null,null,null,null,null,null,null,null,null,4,3,4,5,5,0,0,0,4]
[null,null,null,null,null,null,null,null,null,null,null,null,null,null,null,null,null,null,7,9,5,5,9,0,4,0,0]
[null,null,null,null,null,null,null,null,null,null,null,null,null,null,null,null,null,null,7,3,8,5,8,0,0,4,0]
[null,null,null,null,null,null,null,null,null,null,null,null,null,null,null,null,null,null,5,2,1,5,5,2,0,0,2]
[null,null,null,null,null,null,null,null,null,null,null,null,null,null,null,null,null,null,2,5,1,5,5,0,2,0,2]
[null,null,null,null,null,null,null,null,null,null,null,null,null,null,null,null,null,null,1,4,6,5,6,0,0,4,0]
[null,null,null,null,null,null,null,null,null,null,null,null,null,null,null,null,null,null,6,3,7,5,7,0,0,4,0]
[null,null,null,null,null,null,null,null,null,null,null,null,null,null,null,null,null,null,6,9,7,5,9,0,4,0,0]
[null,null,null,null,null,null,null,null,null,null,null,null,null,null,null,null,null,null,5,5,6,5,6,0,0,4,0]
[null,null,null,null,null,null,null,null,null,null,null,null,null,null,null,null,null,null,3,6,7,5,7,0,0,4,0]
[null,null,null,null,null,null,null,null,null,null,null,null,null,null,null,null,null,null,9,3,5,5,9,4,0,0,0]
[]
[]
[]
[]
[]
[null,null,null,null,null,null,null,null,null,null,null,null,null,null,null,null,null,null,5,3,7,5,7,0,0,4,0]
[null,null,null,null,null,null,null,null,null,null,null,null,null,null,null,null,null,null,9,1,1,5,9,4,0,0,0]
[null,null,null,null,null,null,null,null,null,null,null,null,null,null,null,null,null,null,4,9,4,5,9,0,4,0,0]
[null,null,null,null,null,null,null,null,null,null,null,null,null,null,null,null,null,null,3,5,7,5,7,0,0,4,0]
[null,null,null,null,null,null,null,null,null,null,null,null,null,null,null,null,null,null,2,3,7,5,7,0,0,4,0]
[null,null,null,null,null,null,null,null,null,null,null,null,null,null,null,null,null,null,5,3,7,5,7,0,0,4,0]
[null,null,null,null,null,null,null,null,null,null,null,null,null,null,null,null,null,null,6,9,1,5,9,0,4,0,0]
[null,null,null,null,null,null,null,null,null,null,null,null,null,null,null,null,null,null,1,3,6,5,6,0,0,4,0]
[null,null,null,null,null,null,null,null,null,null,null,null,null,null,null,null,null,null,8,6,8,5,8,2,0,2,0]
[null,null,null,null,null,null,null,null,null,null,null,null,null,null,null,null,null,null,4,5,5,5,5,0,1,1,1]
[null,null,null,null,null,null,null,null,null,null,null,null,null,null,null,null,null,null,5,4,1,5,5,2,0,0,2]
[null,null,null,null,null,null,null,null,null,null,null,null,null,null,null,null,null,null,7,4,5,5,7,4,0,0,0]
[null,null,null,null,null,null,null,null,null,null,null,null,null,null,null,null,null,null,7,9,6,5,9,0,4,0,0]
[null,null,null,null,null,null,null,null,null,null,null,null,null,null,null,null,null,null,6,9,9,5,9,0,2,2,0]
[null,null,null,null,null,null,null,null,null,null,null,null,null,null,null,null,null,null,3,2,1,5,5,0,0,0,4]
[]
[]
[]
[]
[]
[null,null,null,null,null,null,null,null,null,null,null,null,null,null,null,null,null,null,5,4,4,5,5,2,0,0,2]
[null,null,null,null,null,null,null,null,null,null,null,null,null,null,null,null,null,null,7,5,8,5,8,0,0,4,0]
[null,null,null,null,null,null,null,null,null,null,null,null,null,null,null,null,null,null,5,9,6,5,9,0,4,0,0]
[null,null,null,null,null,null,null,null,null,null,null,null,null,null,null,null,null,null,9,2,9,5,9,2,0,2,0]
[null,null,null,null,null,null,null,null,null,null,null,null,null,null,null,null,null,null,4,3,7,5,7,0,0,4,0]
[null,null,null,null,null,null,null,null,null,null,null,null,null,null,null,null,null,null,6,6,5,5,6,2,2,0,0]
[null,null,null,null,null,null,null,null,null,null,null,null,null,null,null,null,null,null,6,5,1,5,6,4,0,0,0]
[null,null,null,null,null,null,null,null,null,null,null,null,null,null,null,null,null,null,2,1,6,5,6,0,0,4,0]
[null,null,null,null,null,null,null,null,null,null,null,null,null,null,null,null,null,null,8,9,1,5,9,0,4,0,0]
[null,null,null,null,null,null,null,null,null,null,null,null,null,null,null,null,null,null,7,3,1,5,7,4,0,0,0]
[null,null,null,null,null,null,null,null,null,null,null,null,null,null,null,null,null,null,4,9,1,5,9,0,4,0,0]
[null,null,null,null,null,null,null,null,null,null,null,null,null,null,null,null,null,null,3,3,7,5,7,0,0,4,0]
[null,null,null,null,null,null,null,null,null,null,null,null,null,null,null,null,null,null,1,4,7,5,7,0,0,4,0]
[null,null,null,null,null,null,null,null,null,null,null,null,null,null,null,null,null,null,5,9,7,5,9,0,4,0,0]
[null,null,null,null,null,null,null,null,null,null,null,null,null,null,null,null,null,null,3,3,5,5,5,0,0,2,2]
[]
[]
[]
[]
[]
[null,null,null,null,null,null,null,null,null,null,null,null,null,null,null,null,null,null,7,2,4,5,7,4,0,0,0]
[null,null,null,null,null,null,null,null,null,null,null,null,null,null,null,null,null,null,3,1,8,5,8,0,0,4,0]
[null,null,null,null,null,null,null,null,null,null,null,null,null,null,null,null,null,null,5,3,7,5,7,0,0,4,0]
[null,null,null,null,null,null,null,null,null,null,null,null,null,null,null,null,null,null,6,3,1,5,6,4,0,0,0]
[null,null,null,null,null,null,null,null,null,null,null,null,null,null,null,null,null,null,4,5,1,5,5,0,2,0,2]
[null,null,null,null,null,null,null,null,null,null,null,null,null,null,null,null,null,null,3,9,5,5,9,0,4,0,0]
[null,null,null,null,null,null,null,null,null,null,null,null,null,null,null,null,null,null,2,3,7,5,7,0,0,4,0]
[null,null,null,null,null,null,null,null,null,null,null,null,null,null,null,null,null,null,5,3,1,5,5,2,0,0,2]
[null,null,null,null,null,null,null,null,null,null,null,null,null,null,null,null,null,null,1,9,7,5,9,0,4,0,0]
[null,null,null,null,null,null,null,null,null,null,null,null,null,null,null,null,null,null,6,9,6,5,9,0,4,0,0]
[null,null,null,null,null,null,null,null,null,null,null,null,null,null,null,null,null,null,8,9,7,5,9,0,4,0,0]
[null,null,null,null,null,null,null,null,null,null,null,null,null,null,null,null,null,null,9,4,5,5,9,4,0,0,0]
[null,null,null,null,null,null,null,null,null,null,null,null,null,null,null,null,null,null,5,4,6,5,6,0,0,4,0]
[null,null,null,null,null,null,null,null,null,null,null,null,null,null,null,null,null,null,4,6,1,5,6,0,4,0,0]
[null,null,null,null,null,null,null,null,null,null,null,null,null,null,null,null,null,null,7,5,9,5,9,0,0,4,0]
[]
[]
[]
[]
[]
[null,null,null,null,null,null,null,null,null,null,null,null,null,null,null,null,null,null,1,3,8,5,8,0,0,4,0]
[null,null,null,null,null,null,null,null,null,null,null,null,null,null,null,null,null,null,8,9,9,5,9,0,2,2,0]
[null,null,null,null,null,null,null,null,null,null,null,null,null,null,null,null,null,null,4,5,1,5,5,0,2,0,2]
[null,null,null,null,null,null,null,null,null,null,null,null,null,null,null,null,null,null,5,4,1,5,5,2,0,0,2]
[null,null,null,null,null,null,null,null,null,null,null,null,null,null,null,null,null,null,7,2,5,5,7,4,0,0,0]
[null,null,null,null,null,null,null,null,null,null,null,null,null,null,null,null,null,null,5,3,6,5,6,0,0,4,0]
[null,null,null,null,null,null,null,null,null,null,null,null,null,null,null,null,null,null,9,9,4,5,9,2,2,0,0]
[null,null,null,null,null,null,null,null,null,null,null,null,null,null,null,null,null,null,3,1,1,5,5,0,0,0,4]
[null,null,null,null,null,null,null,null,null,null,null,null,null,null,null,null,null,null,4,9,7,5,9,0,4,0,0]
[null,null,null,null,null,null,null,null,null,null,null,null,null,null,null,null,null,null,6,3,7,5,7,0,0,4,0]
[null,null,null,null,null,null,null,null,null,null,null,null,null,null,null,null,null,null,6,9,5,5,9,0,4,0,0]
[null,null,null,null,null,null,null,null,null,null,null,null,null,null,null,null,null,null,5,6,6,5,6,0,2,2,0]
[null,null,null,null,null,null,null,null,null,null,null,null,null,null,null,null,null,null,7,4,7,5,7,2,0,2,0]
[null,null,null,null,null,null,null,null,null,null,null,null,null,null,null,null,null,null,2,5,1,5,5,0,2,0,2]
[null,null,null,null,null,null,null,null,null,null,null,null,null,null,null,null,null,null,3,3,7,5,7,0,0,4,0]
[]
[]
[]
[]
[]
[null,null,null,null,null,null,null,null,null,null,null,null,null,null,null,null,null,null,7,9,1,5,9,0,4,0,0]
[null,null,null,null,null,null,null,null,null,null,null,null,null,null,null,null,null,null,9,9,5,5,9,2,2,0,0]
[null,null,null,null,null,null,null,null,null,null,null,null,null,null,null,null,null,null,3,3,4,5,5,0,0,0,4]
[null,null,null,null,null,null,null,null,null,null,null,null,null,null,null,null,null,null,1,5,5,5,5,0,1,1,1]
[null,null,null,null,null,null,null,null,null,null,null,null,null,null,null,null,null,null,8,3,1,5,8,4,0,0,0]
[null,null,null,null,null,null,null,null,null,null,null,null,null,null,null,null,null,null,5,6,6,5,6,0,2,2,0]
[null,null,null,null,null,null,null,null,null,null,null,null,null,null,null,null,null,null,2,9,9,5,9,0,2,2,0]
[null,null,null,null,null,null,null,null,null,null,null,null,null,null,null,null,null,null,6,9,7,5,9,0,4,0,0]
[null,null,null,null,null,null,null,null,null,null,null,null,null,null,null,null,null,null,4,1,1,5,5,0,0,0,4]
[null,null,null,null,null,null,null,null,null,null,null,null,null,null,null,null,null,null,4,2,6,5,6,0,0,4,0]
[null,null,null,null,null,null,null,null,null,null,null,null,null,null,null,null,null,null,3,3,7,5,7,0,0,4,0]
[null,null,null,null,null,null,null,null,null,null,null,null,null,null,null,null,null,null,5,5,8,5,8,0,0,4,0]
[null,null,null,null,null,null,null,null,null,null,null,null,null,null,null,null,null,null,6,4,7,5,7,0,0,4,0]
[null,null,null,null,null,null,null,null,null,null,null,null,null,null,null,null,null,null,5,3,7,5,7,0,0,4,0]
[null,null,null,null,null,null,null,null,null,null,null,null,null,null,null,null,null,null,7,4,1,5,7,4,0,0,0]
[]
[]
[]
[]
[]
[null,null,null,null,null,null,null,null,null,null,null,null,null,null,null,null,null,null,9,4,8,5,9,4,0,0,0]
[null,null,null,null,null,null,null,null,null,null,null,null,null,null,null,null,null,null,3,3,1,5,5,0,0,0,4]
[null,null,null,null,null,null,null,null,null,null,null,null,null,null,null,null,null,null,7,2,7,5,7,2,0,2,0]
[null,null,null,null,null,null,null,null,null,null,null,null,null,null,null,null,null,null,5,3,7,5,7,0,0,4,0]
[null,null,null,null,null,null,null,null,null,null,null,null,null,null,null,null,null,null,1,5,6,5,6,0,0,4,0]
[null,null,null,null,null,null,null,null,null,null,null,null,null,null,null,null,null,null,5,3,9,5,9,0,0,4,0]
[null,null,null,null,null,null,null,null,null,null,null,null,null,null,null,null,null,null,6,3,5,5,6,4,0,0,0]
[null,null,null,null,null,null,null,null,null,null,null,null,null,null,null,null,null,null,6,6,4,5,6,2,2,0,0]
[null,null,null,null,null,null,null,null,null,null,null,null,null,null,null,null,null,null,5,9,7,5,9,0,4,0,0]
[null,null,null,null,null,null,null,null,null,null,null,null,null,null,null,null,null,null,4,9,7,5,9,0,4,0,0]
[null,null,null,null,null,null,null,null,null,null,null,null,null,null,null,null,null,null,7,5,1,5,7,4,0,0,0]
[null,null,null,null,null,null,null,null,null,null,null,null,null,null,null,null,null,null,4,4,6,5,6,0,0,4,0]
[null,null,null,null,null,null,null,null,null,null,null,null,null,null,null,null,null,null,3,1,1,5,5,0,0,0,4]
[null,null,null,null,null,null,null,null,null,null,null,null,null,null,null,null,null,null,8,9,5,5,9,0,4,0,0]
[null,null,null,null,null,null,null,null,null,null,null,null,null,null,null,null,null,null,2,9,1,5,9,0,4,0,0]
[]
[]
[]
[]
[]
[null,null,null,null,null,null,null,null,null,null,null,null,null,null,null,null,null,null,4,5,1,5,5,0,2,0,2]
[null,null,null,null,null,null,null,null,null,null,null,null,null,null,null,null,null,null,9,1,5,5,9,4,0,0,0]
[null,null,null,null,null,null,null,null,null,null,null,null,null,null,null,null,null,null,6,4,7,5,7,0,0,4,0]
[null,null,null,null,null,null,null,null,null,null,null,null,null,null,null,null,null,null,2,3,7,5,7,0,0,4,0]
[null,null,null,null,null,null,null,null,null,null,null,null,null,null,null,null,null,null,7,6,1,5,7,4,0,0,0]
[null,null,null,null,null,null,null,null,null,null,null,null,null,null,null,null,null,null,3,9,4,5,9,0,4,0,0]
[null,null,null,null,null,null,null,null,null,null,null,null,null,null,null,null,null,null,8,4,5,5,8,4,0,0,0]
[null,null,null,null,null,null,null,null,null,null,null,null,null,null,null,null,null,null,1,3,6,5,6,0,0,4,0]
[null,null,null,null,null,null,null,null,null,null,null,null,null,null,null,null,null,null,6,2,8,5,8,0,0,4,0]
[null,null,null,null,null,null,null,null,null,null,null,null,null,null,null,null,null,null,5,3,9,5,9,0,0,4,0]
[null,null,null,null,null,null,null,null,null,null,null,null,null,null,null,null,null,null,7,3,1,5,7,4,0,0,0]
[null,null,null,null,null,null,null,null,null,null,null,null,null,null,null,null,null,null,5,5,7,5,7,0,0,4,0]
[null,null,null,null,null,null,null,null,null,null,null,null,null,null,null,null,null,null,5,9,7,5,9,0,4,0,0]
[null,null,null,null,null,null,null,null,null,null,null,null,null,null,null,null,null,null,3,9,6,5,9,0,4,0,0]
[null,null,null,null,null,null,null,null,null,null,null,null,null,null,null,null,null,null,4,9,1,5,9,0,4,0,0]
[]
[]
[]
[]
[]
[null,null,null,null,null,null,null,null,null,null,null,null,null,null,null,null,null,null,5,5,9,5,9,0,0,4,0]
[null,null,null,null,null,null,null,null,null,null,null,null,null,null,null,null,null,null,5,3,6,5,6,0,0,4,0]
[null,null,null,null,null,null,null,null,null,null,null,null,null,null,null,null,null,null,5,9,6,5,9,0,4,0,0]
[null,null,null,null,null,null,null,null,null,null,null,null,null,null,null,null,null,null,6,3,1,5,6,4,0,0,0]
[null,null,null,null,null,null,null,null,null,null,null,null,null,null,null,null,null,null,3,2,5,5,5,0,0,2,2]
[null,null,null,null,null,null,null,null,null,null,null,null,null,null,null,null,null,null,7,5,7,5,7,2,0,2,0]
[null,null,null,null,null,null,null,null,null,null,null,null,null,null,null,null,null,null,4,1,7,5,7,0,0,4,0]
[null,null,null,null,null,null,null,null,null,null,null,null,null,null,null,null,null,null,1,9,5,5,9,0,4,0,0]
[null,null,null,null,null,null,null,null,null,null,null,null,null,null,null,null,null,null,7,9,4,5,9,0,4,0,0]
[null,null,null,null,null,null,null,null,null,null,null,null,null,null,null,null,null,null,2,9,1,5,9,0,4,0,0]
[null,null,null,null,null,null,null,null,null,null,null,null,null,null,null,null,null,null,9,4,7,5,9,4,0,0,0]
[null,null,null,null,null,null,null,null,null,null,null,null,null,null,null,null,null,null,4,3,8,5,8,0,0,4,0]
[null,null,null,null,null,null,null,null,null,null,null,null,null,null,null,null,null,null,3,4,1,5,5,0,0,0,4]
[null,null,null,null,null,null,null,null,null,null,null,null,null,null,null,null,null,null,8,3,7,5,8,4,0,0,0]
[null,null,null,null,null,null,null,null,null,null,null,null,null,null,null,null,null,null,6,6,1,5,6,2,2,0,0]
[]
[]
[]
[]
[]
[null,null,null,null,null,null,null,null,null,null,null,null,null,null,null,null,null,null,5,3,1,5,5,2,0,0,2]
[null,null,null,null,null,null,null,null,null,null,null,null,null,null,null,null,null,null,8,9,8,5,9,0,4,0,0]
[null,null,null,null,null,null,null,null,null,null,null,null,null,null,null,null,null,null,4,3,6,5,6,0,0,4,0]
[null,null,null,null,null,null,null,null,null,null,null,null,null,null,null,null,null,null,2,9,7,5,9,0,4,0,0]
[null,null,null,null,null,null,null,null,null,null,null,null,null,null,null,null,null,null,6,9,5,5,9,0,4,0,0]
[null,null,null,null,null,null,null,null,null,null,null,null,null,null,null,null,null,null,7,5,6,5,7,4,0,0,0]
[null,null,null,null,null,null,null,null,null,null,null,null,null,null,null,null,null,null,3,4,1,5,5,0,0,0,4]
[null,null,null,null,null,null,null,null,null,null,null,null,null,null,null,null,null,null,3,6,9,5,9,0,0,4,0]
[null,null,null,null,null,null,null,null,null,null,null,null,null,null,null,null,null,null,9,3,4,5,9,4,0,0,0]
[null,null,null,null,null,null,null,null,null,null,null,null,null,null,null,null,null,null,7,9,7,5,9,0,4,0,0]
[null,null,null,null,null,null,null,null,null,null,null,null,null,null,null,null,null,null,1,1,5,5,5,0,0,2,2]
[null,null,null,null,null,null,null,null,null,null,null,null,null,null,null,null,null,null,6,3,7,5,7,0,0,4,0]
[null,null,null,null,null,null,null,null,null,null,null,null,null,null,null,null,null,null,5,4,7,5,7,0,0,4,0]
[null,null,null,null,null,null,null,null,null,null,null,null,null,null,null,null,null,null,4,2,1,5,5,0,0,0,4]
[null,null,null,null,null,null,null,null,null,null,null,null,null,null,null,null,null,null,5,5,1,5,5,1,1,0,1]
[]
[]
[]
[]
[]
[null,null,null,null,null,null,null,null,null,null,null,null,null,null,null,null,null,null,2,1,4,5,5,0,0,0,4]
[null,null,null,null,null,null,null,null,null,null,null,null,null,null,null,null,null,null,9,9,5,5,9,2,2,0,0]
[null,null,null,null,null,null,null,null,null,null,null,null,null,null,null,null,null,null,5,2,7,5,7,0,0,4,0]
[null,null,null,null,null,null,null,null,null,null,null,null,null,null,null,null,null,null,7,9,7,5,9,0,4,0,0]
[null,null,null,null,null,null,null,null,null,null,null,null,null,null,null,null,null,null,3,6,1,5,6,0,4,0,0]
[null,null,null,null,null,null,null,null,null,null,null,null,null,null,null,null,null,null,7,4,1,5,7,4,0,0,0]
[null,null,null,null,null,null,null,null,null,null,null,null,null,null,null,null,null,null,8,5,7,5,8,4,0,0,0]
[null,null,null,null,null,null,null,null,null,null,null,null,null,null,null,null,null,null,5,3,1,5,5,2,0,0,2]
[null,null,null,null,null,null,null,null,null,null,null,null,null,null,null,null,null,null,4,3,5,5,5,0,0,2,2]
[null,null,null,null,null,null,null,null,null,null,null,null,null,null,null,null,null,null,4,3,6,5,6,0,0,4,0]
[null,null,null,null,null,null,null,null,null,null,null,null,null,null,null,null,null,null,1,9,7,5,9,0,4,0,0]
[null,null,null,null,null,null,null,null,null,null,null,null,null,null,null,null,null,null,6,3,9,5,9,0,0,4,0]
[null,null,null,null,null,null,null,null,null,null,null,null,null,null,null,null,null,null,5,5,6,5,6,0,0,4,0]
[null,null,null,null,null,null,null,null,null,null,null,null,null,null,null,null,null,null,3,4,1,5,5,0,0,0,4]
[null,null,null,null,null,null,null,null,null,null,null,null,null,null,null,null,null,null,6,9,8,5,9,0,4,0,0]
[]
[]
[]
[]
[]
[null,null,null,null,null,null,null,null,null,null,null,null,null,null,null,null,null,null,6,5,6,5,6,2,0,2,0]
[null,null,null,null,null,null,null,null,null,null,null,null,null,null,null,null,null,null,3,5,7,5,7,0,0,4,0]
[null,null,null,null,null,null,null,null,null,null,null,null,null,null,null,null,null,null,8,3,7,5,8,4,0,0,0]
[null,null,null,null,null,null,null,null,null,null,null,null,null,null,null,null,null,null,5,9,1,5,9,0,4,0,0]
[null,null,null,null,null,null,null,null,null,null,null,null,null,null,null,null,null,null,9,9,4,5,9,2,2,0,0]
[null,null,null,null,null,null,null,null,null,null,null,null,null,null,null,null,null,null,4,4,5,5,5,0,0,2,2]
[null,null,null,null,null,null,null,null,null,null,null,null,null,null,null,null,null,null,6,4,1,5,6,4,0,0,0]
[null,null,null,null,null,null,null,null,null,null,null,null,null,null,null,null,null,null,7,3,9,5,9,0,0,4,0]
[null,null,null,null,null,null,null,null,null,null,null,null,null,null,null,null,null,null,5,9,8,5,9,0,4,0,0]
[null,null,null,null,null,null,null,null,null,null,null,null,null,null,null,null,null,null,2,9,7,5,9,0,4,0,0]
[null,null,null,null,null,null,null,null,null,null,null,null,null,null,null,null,null,null,7,6,6,5,7,4,0,0,0]
[null,null,null,null,null,null,null,null,null,null,null,null,null,null,null,null,null,null,5,3,7,5,7,0,0,4,0]
[null,null,null,null,null,null,null,null,null,null,null,null,null,null,null,null,null,null,4,1,5,5,5,0,0,2,2]
[null,null,null,null,null,null,null,null,null,null,null,null,null,null,null,null,null,null,1,3,1,5,5,0,0,0,4]
[null,null,null,null,null,null,null,null,null,null,null,null,null,null,null,null,null,null,3,2,1,5,5,0,0,0,4]
[]
[]
[]
[]
[]
[null,null,null,null,null,null,null,null,null,null,null,null,null,null,null,null,null,null,7,9,7,5,9,0,4,0,0]
[null,null,null,null,null,null,null,null,null,null,null,null,null,null,null,null,null,null,7,4,9,5,9,0,0,4,0]
[null,null,null,null,null,null,null,null,null,null,null,null,null,null,null,null,null,null,8,5,1,5,8,4,0,0,0]
[null,null,null,null,null,null,null,null,null,null,null,null,null,null,null,null,null,null,4,6,7,5,7,0,0,4,0]
[null,null,null,null,null,null,null,null,null,null,null,null,null,null,null,null,null,null,5,9,7,5,9,0,4,0,0]
[null,null,null,null,null,null,null,null,null,null,null,null,null,null,null,null,null,null,2,5,1,5,5,0,2,0,2]
[null,null,null,null,null,null,null,null,null,null,null,null,null,null,null,null,null,null,3,9,5,5,9,0,4,0,0]
[null,null,null,null,null,null,null,null,null,null,null,null,null,null,null,null,null,null,6,3,1,5,6,4,0,0,0]
[null,null,null,null,null,null,null,null,null,null,null,null,null,null,null,null,null,null,3,3,8,5,8,0,0,4,0]
[null,null,null,null,null,null,null,null,null,null,null,null,null,null,null,null,null,null,1,1,5,5,5,0,0,2,2]
[null,null,null,null,null,null,null,null,null,null,null,null,null,null,null,null,null,null,5,9,4,5,9,0,4,0,0]
[null,null,null,null,null,null,null,null,null,null,null,null,null,null,null,null,null,null,4,2,1,5,5,0,0,0,4]
[null,null,null,null,null,null,null,null,null,null,null,null,null,null,null,null,null,null,5,3,6,5,6,0,0,4,0]
[null,null,null,null,null,null,null,null,null,null,null,null,null,null,null,null,null,null,6,3,6,5,6,2,0,2,0]
[null,null,null,null,null,null,null,null,null,null,null,null,null,null,null,null,null,null,9,4,7,5,9,4,0,0,0]
[]
[]
[]
[]
[]
[null,null,null,null,null,null,null,null,null,null,null,null,null,null,null,null,null,null,9,3,8,5,9,4,0,0,0]
[null,null,null,null,null,null,null,null,null,null,null,null,null,null,null,null,null,null,7,9,7,5,9,0,4,0,0]
[null,null,null,null,null,null,null,null,null,null,null,null,null,null,null,null,null,null,2,4,7,5,7,0,0,4,0]
[null,null,null,null,null,null,null,null,null,null,null,null,null,null,null,null,null,null,3,1,5,5,5,0,0,2,2]
[null,null,null,null,null,null,null,null,null,null,null,null,null,null,null,null,null,null,1,3,6,5,6,0,0,4,0]
[null,null,null,null,null,null,null,null,null,null,null,null,null,null,null,null,null,null,4,6,1,5,6,0,4,0,0]
[null,null,null,null,null,null,null,null,null,null,null,null,null,null,null,null,null,null,5,2,1,5,5,2,0,0,2]
[null,null,null,null,null,null,null,null,null,null,null,null,null,null,null,null,null,null,5,5,6,5,6,0,0,4,0]
[null,null,null,null,null,null,null,null,null,null,null,null,null,null,null,null,null,null,7,4,5,5,7,4,0,0,0]
[null,null,null,null,null,null,null,null,null,null,null,null,null,null,null,null,null,null,6,3,4,5,6,4,0,0,0]
[null,null,null,null,null,null,null,null,null,null,null,null,null,null,null,null,null,null,8,9,7,5,9,0,4,0,0]
[null,null,null,null,null,null,null,null,null,null,null,null,null,null,null,null,null,null,6,5,9,5,9,0,0,4,0]
[null,null,null,null,null,null,null,null,null,null,null,null,null,null,null,null,null,null,3,9,7,5,9,0,4,0,0]
[null,null,null,null,null,null,null,null,null,null,null,null,null,null,null,null,null,null,5,9,1,5,9,0,4,0,0]
[null,null,null,null,null,null,null,null,null,null,null,null,null,null,null,null,null,null,4,3,1,5,5,0,0,0,4]
[]
[]
[]
[]
[]
[null,null,null,null,null,null,null,null,null,null,null,null,null,null,null,null,null,null,7,3,1,5,7,4,0,0,0]
[null,null,null,null,null,null,null,null,null,null,null,null,null,null,null,null,null,null,6,5,8,5,8,0,0,4,0]
[null,null,null,null,null,null,null,null,null,null,null,null,null,null,null,null,null,null,3,3,5,5,5,0,0,2,2]
[null,null,null,null,null,null,null,null,null,null,null,null,null,null,null,null,null,null,9,4,9,5,9,2,0,2,0]
[null,null,null,null,null,null,null,null,null,null,null,null,null,null,null,null,null,null,5,9,7,5,9,0,4,0,0]
[null,null,null,null,null,null,null,null,null,null,null,null,null,null,null,null,null,null,6,3,4,5,6,4,0,0,0]
[null,null,null,null,null,null,null,null,null,null,null,null,null,null,null,null,null,null,5,9,1,5,9,0,4,0,0]
[null,null,null,null,null,null,null,null,null,null,null,null,null,null,null,null,null,null,2,9,1,5,9,0,4,0,0]
[null,null,null,null,null,null,null,null,null,null,null,null,null,null,null,null,null,null,8,3,7,5,8,4,0,0,0]
[null,null,null,null,null,null,null,null,null,null,null,null,null,null,null,null,null,null,4,5,6,5,6,0,0,4,0]
[null,null,null,null,null,null,null,null,null,null,null,null,null,null,null,null,null,null,3,1,6,5,6,0,0,4,0]
[null,null,null,null,null,null,null,null,null,null,null,null,null,null,null,null,null,null,4,4,7,5,7,0,0,4,0]
[null,null,null,null,null,null,null,null,null,null,null,null,null,null,null,null,null,null,7,9,7,5,9,0,4,0,0]
[null,null,null,null,null,null,null,null,null,null,null,null,null,null,null,null,null,null,1,2,1,5,5,0,0,0,4]
[null,null,null,null,null,null,null,null,null,null,null,null,null,null,null,null,null,null,5,6,5,5,6,0,4,0,0]
[]
[]
[]
[]
[]
[null,null,null,null,null,null,null,null,null,null,null,null,null,null,null,null,null,null,8,2,1,5,8,4,0,0,0]
[null,null,null,null,null,null,null,null,null,null,null,null,null,null,null,null,null,null,7,3,1,5,7,4,0,0,0]
[null,null,null,null,null,null,null,null,null,null,null,null,null,null,null,null,null,null,4,5,8,5,8,0,0,4,0]
[null,null,null,null,null,null,null,null,null,null,null,null,null,null,null,null,null,null,9,9,4,5,9,2,2,0,0]
[null,null,null,null,null,null,null,null,null,null,null,null,null,null,null,null,null,null,3,9,5,5,9,0,4,0,0]
[null,null,null,null,null,null,null,null,null,null,null,null,null,null,null,null,null,null,5,3,1,5,5,2,0,0,2]
[null,null,null,null,null,null,null,null,null,null,null,null,null,null,null,null,null,null,6,5,6,5,6,2,0,2,0]
[null,null,null,null,null,null,null,null,null,null,null,null,null,null,null,null,null,null,4,3,7,5,7,0,0,4,0]
[null,null,null,null,null,null,null,null,null,null,null,null,null,null,null,null,null,null,1,4,7,5,7,0,0,4,0]
[null,null,null,null,null,null,null,null,null,null,null,null,null,null,null,null,null,null,7,1,5,5,7,4,0,0,0]
[null,null,null,null,null,null,null,null,null,null,null,null,null,null,null,null,null,null,5,9,1,5,9,0,4,0,0]
[null,null,null,null,null,null,null,null,null,null,null,null,null,null,null,null,null,null,5,6,7,5,7,0,0,4,0]
[null,null,null,null,null,null,null,null,null,null,null,null,null,null,null,null,null,null,6,9,6,5,9,0,4,0,0]
[null,null,null,null,null,null,null,null,null,null,null,null,null,null,null,null,null,null,3,4,9,5,9,0,0,4,0]
[null,null,null,null,null,null,null,null,null,null,null,null,null,null,null,null,null,null,2,3,7,5,7,0,0,4,0]
[]
[]
[]
[]
[]
[null,null,null,null,null,null,null,null,null,null,null,null,null,null,null,null,null,null,1,6,1,5,6,0,4,0,0]
[null,null,null,null,null,null,null,null,null,null,null,null,null,null,null,null,null,null,4,9,1,5,9,0,4,0,0]
[null,null,null,null,null,null,null,null,null,null,null,null,null,null,null,null,null,null,6,5,5,5,6,4,0,0,0]
[null,null,null,null,null,null,null,null,null,null,null,null,null,null,null,null,null,null,7,9,9,5,9,0,2,2,0]
[null,null,null,null,null,null,null,null,null,null,null,null,null,null,null,null,null,null,5,3,7,5,7,0,0,4,0]
[null,null,null,null,null,null,null,null,null,null,null,null,null,null,null,null,null,null,3,5,4,5,5,0,2,0,2]
[null,null,null,null,null,null,null,null,null,null,null,null,null,null,null,null,null,null,5,3,5,5,5,1,0,1,1]
[null,null,null,null,null,null,null,null,null,null,null,null,null,null,null,null,null,null,9,3,7,5,9,4,0,0,0]
[null,null,null,null,null,null,null,null,null,null,null,null,null,null,null,null,null,null,5,4,1,5,5,2,0,0,2]
[null,null,null,null,null,null,null,null,null,null,null,null,null,null,null,null,null,null,4,9,1,5,9,0,4,0,0]
[null,null,null,null,null,null,null,null,null,null,null,null,null,null,null,null,null,null,7,2,6,5,7,4,0,0,0]
[null,null,null,null,null,null,null,null,null,null,null,null,null,null,null,null,null,null,2,4,8,5,8,0,0,4,0]
[null,null,null,null,null,null,null,null,null,null,null,null,null,null,null,null,null,null,8,1,7,5,8,4,0,0,0]
[null,null,null,null,null,null,null,null,null,null,null,null,null,null,null,null,null,null,6,9,7,5,9,0,4,0,0]
[null,null,null,null,null,null,null,null,null,null,null,null,null,null,null,null,null,null,3,3,6,5,6,0,0,4,0]
[]
[]
[]
[]
[]
[null,null,null,null,null,null,null,null,null,null,null,null,null,null,null,null,null,null,7,6,6,5,7,4,0,0,0]
[null,null,null,null,null,null,null,null,null,null,null,null,null,null,null,null,null,null,2,5,1,5,5,0,2,0,2]
[null,null,null,null,null,null,null,null,null,null,null,null,null,null,null,null,null,null,6,4,5,5,6,4,0,0,0]
[null,null,null,null,null,null,null,null,null,null,null,null,null,null,null,null,null,null,5,2,1,5,5,2,0,0,2]
[null,null,null,null,null,null,null,null,null,null,null,null,null,null,null,null,null,null,7,3,9,5,9,0,0,4,0]
[null,null,null,null,null,null,null,null,null,null,null,null,null,null,null,null,null,null,3,3,6,5,6,0,0,4,0]
[null,null,null,null,null,null,null,null,null,null,null,null,null,null,null,null,null,null,6,3,4,5,6,4,0,0,0]
[null,null,null,null,null,null,null,null,null,null,null,null,null,null,null,null,null,null,8,5,1,5,8,4,0,0,0]
[null,null,null,null,null,null,null,null,null,null,null,null,null,null,null,null,null,null,5,9,7,5,9,0,4,0,0]
[null,null,null,null,null,null,null,null,null,null,null,null,null,null,null,null,null,null,1,4,7,5,7,0,0,4,0]
[null,null,null,null,null,null,null,null,null,null,null,null,null,null,null,null,null,null,4,9,5,5,9,0,4,0,0]
[null,null,null,null,null,null,null,null,null,null,null,null,null,null,null,null,null,null,4,9,7,5,9,0,4,0,0]
[null,null,null,null,null,null,null,null,null,null,null,null,null,null,null,null,null,null,5,9,8,5,9,0,4,0,0]
[null,null,null,null,null,null,null,null,null,null,null,null,null,null,null,null,null,null,3,3,7,5,7,0,0,4,0]
[null,null,null,null,null,null,null,null,null,null,null,null,null,null,null,null,null,null,9,1,1,5,9,4,0,0,0]
[]
[]
[]
[]
[]
[null,null,null,null,null,null,null,null,null,null,null,null,null,null,null,null,null,null,9,4,7,5,9,4,0,0,0]
[null,null,null,null,null,null,null,null,null,null,null,null,null,null,null,null,null,null,2,2,1,5,5,0,0,0,4]
[null,null,null,null,null,null,null,null,null,null,null,null,null,null,null,null,null,null,3,9,7,5,9,0,4,0,0]
[null,null,null,null,null,null,null,null,null,null,null,null,null,null,null,null,null,null,7,9,9,5,9,0,2,2,0]
[null,null,null,null,null,null,null,null,null,null,null,null,null,null,null,null,null,null,6,6,6,5,6,1,1,1,0]
[null,null,null,null,null,null,null,null,null,null,null,null,null,null,null,null,null,null,6,4,7,5,7,0,0,4,0]
[null,null,null,null,null,null,null,null,null,null,null,null,null,null,null,null,null,null,4,3,5,5,5,0,0,2,2]
[null,null,null,null,null,null,null,null,null,null,null,null,null,null,null,null,null,null,3,3,8,5,8,0,0,4,0]
[null,null,null,null,null,null,null,null,null,null,null,null,null,null,null,null,null,null,7,1,7,5,7,2,0,2,0]
[null,null,null,null,null,null,null,null,null,null,null,null,null,null,null,null,null,null,5,5,6,5,6,0,0,4,0]
[null,null,null,null,null,null,null,null,null,null,null,null,null,null,null,null,null,null,4,3,4,5,5,0,0,0,4]
[null,null,null,null,null,null,null,null,null,null,null,null,null,null,null,null,null,null,8,3,1,5,8,4,0,0,0]
[null,null,null,null,null,null,null,null,null,null,null,null,null,null,null,null,null,null,5,9,5,5,9,0,4,0,0]
[null,null,null,null,null,null,null,null,null,null,null,null,null,null,null,null,null,null,1,9,1,5,9,0,4,0,0]
[null,null,null,null,null,null,null,null,null,null,null,null,null,null,null,null,null,null,5,5,1,5,5,1,1,0,1]
[]
[]
[]
[]
[]
[null,null,null,null,null,null,null,null,null,null,null,null,null,null,null,null,null,null,3,3,9,5,9,0,0,4,0]
[null,null,null,null,null,null,null,null,null,null,null,null,null,null,null,null,null,null,5,4,1,5,5,2,0,0,2]
[null,null,null,null,null,null,null,null,null,null,null,null,null,null,null,null,null,null,7,2,1,5,7,4,0,0,0]
[null,null,null,null,null,null,null,null,null,null,null,null,null,null,null,null,null,null,3,9,6,5,9,0,4,0,0]
[null,null,null,null,null,null,null,null,null,null,null,null,null,null,null,null,null,null,7,9,7,5,9,0,4,0,0]
[null,null,null,null,null,null,null,null,null,null,null,null,null,null,null,null,null,null,6,5,5,5,6,4,0,0,0]
[null,null,null,null,null,null,null,null,null,null,null,null,null,null,null,null,null,null,5,3,7,5,7,0,0,4,0]
[null,null,null,null,null,null,null,null,null,null,null,null,null,null,null,null,null,null,4,9,5,5,9,0,4,0,0]
[null,null,null,null,null,null,null,null,null,null,null,null,null,null,null,null,null,null,9,4,4,5,9,4,0,0,0]
[null,null,null,null,null,null,null,null,null,null,null,null,null,null,null,null,null,null,4,5,7,5,7,0,0,4,0]
[null,null,null,null,null,null,null,null,null,null,null,null,null,null,null,null,null,null,1,1,6,5,6,0,0,4,0]
[null,null,null,null,null,null,null,null,null,null,null,null,null,null,null,null,null,null,2,3,1,5,5,0,0,0,4]
[null,null,null,null,null,null,null,null,null,null,null,null,null,null,null,null,null,null,8,9,7,5,9,0,4,0,0]
[null,null,null,null,null,null,null,null,null,null,null,null,null,null,null,null,null,null,6,6,1,5,6,2,2,0,0]
[null,null,null,null,null,null,null,null,null,null,null,null,null,null,null,null,null,null,5,3,8,5,8,0,0,4,0]
[]
[]
[]
[]
[]
[null,null,null,null,null,null,null,null,null,null,null,null,null,null,null,null,null,null,6,4,7,5,7,0,0,4,0]
[null,null,null,null,null,null,null,null,null,null,null,null,null,null,null,null,null,null,3,2,1,5,5,0,0,0,4]
[null,null,null,null,null,null,null,null,null,null,null,null,null,null,null,null,null,null,4,3,1,5,5,0,0,0,4]
[null,null,null,null,null,null,null,null,null,null,null,null,null,null,null,null,null,null,5,5,7,5,7,0,0,4,0]
[null,null,null,null,null,null,null,null,null,null,null,null,null,null,null,null,null,null,9,1,9,5,9,2,0,2,0]
[null,null,null,null,null,null,null,null,null,null,null,null,null,null,null,null,null,null,4,3,4,5,5,0,0,0,4]
[null,null,null,null,null,null,null,null,null,null,null,null,null,null,null,null,null,null,5,5,7,5,7,0,0,4,0]
[null,null,null,null,null,null,null,null,null,null,null,null,null,null,null,null,null,null,1,9,6,5,9,0,4,0,0]
[null,null,null,null,null,null,null,null,null,null,null,null,null,null,null,null,null,null,6,9,6,5,9,0,4,0,0]
[null,null,null,null,null,null,null,null,null,null,null,null,null,null,null,null,null,null,7,3,5,5,7,4,0,0,0]
[null,null,null,null,null,null,null,null,null,null,null,null,null,null,null,null,null,null,8,9,7,5,9,0,4,0,0]
[null,null,null,null,null,null,null,null,null,null,null,null,null,null,null,null,null,null,2,6,8,5,8,0,0,4,0]
[null,null,null,null,null,null,null,null,null,null,null,null,null,null,null,null,null,null,3,9,5,5,9,0,4,0,0]
[null,null,null,null,null,null,null,null,null,null,null,null,null,null,null,null,null,null,7,4,1,5,7,4,0,0,0]
[null,null,null,null,null,null,null,null,null,null,null,null,null,null,null,null,null,null,5,3,1,5,5,2,0,0,2]
[]
[]
[]
[]
[]
[null,null,null,null,null,null,null,null,null,null,null,null,null,null,null,null,null,null,5,9,7,5,9,0,4,0,0]
[null,null,null,null,null,null,null,null,null,null,null,null,null,null,null,null,null,null,4,3,9,5,9,0,0,4,0]
[null,null,null,null,null,null,null,null,null,null,null,null,null,null,null,null,null,null,4,6,1,5,6,0,4,0,0]
[null,null,null,null,null,null,null,null,null,null,null,null,null,null,null,null,null,null,7,1,4,5,7,4,0,0,0]
[null,null,null,null,null,null,null,null,null,null,null,null,null,null,null,null,null,null,1,4,7,5,7,0,0,4,0]
[null,null,null,null,null,null,null,null,null,null,null,null,null,null,null,null,null,null,8,5,6,5,8,4,0,0,0]
[null,null,null,null,null,null,null,null,null,null,null,null,null,null,null,null,null,null,6,9,1,5,9,0,4,0,0]
[null,null,null,null,null,null,null,null,null,null,null,null,null,null,null,null,null,null,3,4,7,5,7,0,0,4,0]
[null,null,null,null,null,null,null,null,null,null,null,null,null,null,null,null,null,null,5,3,8,5,8,0,0,4,0]
[null,null,null,null,null,null,null,null,null,null,null,null,null,null,null,null,null,null,9,9,5,5,9,2,2,0,0]
[null,null,null,null,null,null,null,null,null,null,null,null,null,null,null,null,null,null,5,9,5,5,9,0,4,0,0]
[null,null,null,null,null,null,null,null,null,null,null,null,null,null,null,null,null,null,2,2,1,5,5,0,0,0,4]
[null,null,null,null,null,null,null,null,null,null,null,null,null,null,null,null,null,null,7,5,7,5,7,2,0,2,0]
[null,null,null,null,null,null,null,null,null,null,null,null,null,null,null,null,null,null,6,3,1,5,6,4,0,0,0]
[null,null,null,null,null,null,null,null,null,null,null,null,null,null,null,null,null,null,3,3,6,5,6,0,0,4,0]
[]
[]
[]
[]
[]
[null,null,null,null,null,null,null,null,null,null,null,null,null,null,null,null,null,null,9,5,7,5,9,4,0,0,0]
[null,null,null,null,null,null,null,null,null,null,null,null,null,null,null,null,null,null,1,3,1,5,5,0,0,0,4]
[null,null,null,null,null,null,null,null,null,null,null,null,null,null,null,null,null,null,2,9,7,5,9,0,4,0,0]
[null,null,null,null,null,null,null,null,null,null,null,null,null,null,null,null,null,null,4,1,1,5,5,0,0,0,4]
[null,null,null,null,null,null,null,null,null,null,null,null,null,null,null,null,null,null,8,9,5,5,9,0,4,0,0]
[null,null,null,null,null,null,null,null,null,null,null,null,null,null,null,null,null,null,4,9,8,5,9,0,4,0,0]
[null,null,null,null,null,null,null,null,null,null,null,null,null,null,null,null,null,null,5,9,5,5,9,0,4,0,0]
[null,null,null,null,null,null,null,null,null,null,null,null,null,null,null,null,null,null,5,3,4,5,5,2,0,0,2]
[null,null,null,null,null,null,null,null,null,null,null,null,null,null,null,null,null,null,7,4,6,5,7,4,0,0,0]
[null,null,null,null,null,null,null,null,null,null,null,null,null,null,null,null,null,null,6,5,1,5,6,4,0,0,0]
[null,null,null,null,null,null,null,null,null,null,null,null,null,null,null,null,null,null,3,4,7,5,7,0,0,4,0]
[null,null,null,null,null,null,null,null,null,null,null,null,null,null,null,null,null,null,5,3,6,5,6,0,0,4,0]
[null,null,null,null,null,null,null,null,null,null,null,null,null,null,null,null,null,null,3,6,7,5,7,0,0,4,0]
[null,null,null,null,null,null,null,null,null,null,null,null,null,null,null,null,null,null,7,3,9,5,9,0,0,4,0]
[null,null,null,null,null,null,null,null,null,null,null,null,null,null,null,null,null,null,6,2,1,5,6,4,0,0,0]
[]
[]
[]
[]
[]
[null,null,null,null,null,null,null,null,null,null,null,null,null,null,null,null,null,null,9,9,1,5,9,2,2,0,0]
[null,null,null,null,null,null,null,null,null,null,null,null,null,null,null,null,null,null,1,3,5,5,5,0,0,2,2]
[null,null,null,null,null,null,null,null,null,null,null,null,null,null,null,null,null,null,7,9,7,5,9,0,4,0,0]
[null,null,null,null,null,null,null,null,null,null,null,null,null,null,null,null,null,null,6,9,5,5,9,0,4,0,0]
[null,null,null,null,null,null,null,null,null,null,null,null,null,null,null,null,null,null,7,4,7,5,7,2,0,2,0]
[null,null,null,null,null,null,null,null,null,null,null,null,null,null,null,null,null,null,6,3,7,5,7,0,0,4,0]
[null,null,null,null,null,null,null,null,null,null,null,null,null,null,null,null,null,null,5,1,1,5,5,2,0,0,2]
[null,null,null,null,null,null,null,null,null,null,null,null,null,null,null,null,null,null,3,3,6,5,6,0,0,4,0]
[null,null,null,null,null,null,null,null,null,null,null,null,null,null,null,null,null,null,5,3,4,5,5,2,0,0,2]
[null,null,null,null,null,null,null,null,null,null,null,null,null,null,null,null,null,null,3,2,9,5,9,0,0,4,0]
[null,null,null,null,null,null,null,null,null,null,null,null,null,null,null,null,null,null,4,4,1,5,5,0,0,0,4]
[null,null,null,null,null,null,null,null,null,null,null,null,null,null,null,null,null,null,5,5,6,5,6,0,0,4,0]
[null,null,null,null,null,null,null,null,null,null,null,null,null,null,null,null,null,null,8,9,7,5,9,0,4,0,0]
[null,null,null,null,null,null,null,null,null,null,null,null,null,null,null,null,null,null,4,5,8,5,8,0,0,4,0]
[null,null,null,null,null,null,null,null,null,null,null,null,null,null,null,null,null,null,2,6,1,5,6,0,4,0,0]
[]
[]
[]
[]
[]
[null,null,null,null,null,null,null,null,null,null,null,null,null,null,null,null,null,null,4,4,1,5,5,0,0,0,4]
[null,null,null,null,null,null,null,null,null,null,null,null,null,null,null,null,null,null,1,9,1,5,9,0,4,0,0]
[null,null,null,null,null,null,null,null,null,null,null,null,null,null,null,null,null,null,3,9,9,5,9,0,2,2,0]
[null,null,null,null,null,null,null,null,null,null,null,null,null,null,null,null,null,null,9,3,6,5,9,4,0,0,0]
[null,null,null,null,null,null,null,null,null,null,null,null,null,null,null,null,null,null,5,1,5,5,5,1,0,1,1]
[null,null,null,null,null,null,null,null,null,null,null,null,null,null,null,null,null,null,5,3,8,5,8,0,0,4,0]
[null,null,null,null,null,null,null,null,null,null,null,null,null,null,null,null,null,null,2,5,6,5,6,0,0,4,0]
[null,null,null,null,null,null,null,null,null,null,null,null,null,null,null,null,null,null,7,4,7,5,7,2,0,2,0]
[null,null,null,null,null,null,null,null,null,null,null,null,null,null,null,null,null,null,3,9,1,5,9,0,4,0,0]
[null,null,null,null,null,null,null,null,null,null,null,null,null,null,null,null,null,null,6,9,4,5,9,0,4,0,0]
[null,null,null,null,null,null,null,null,null,null,null,null,null,null,null,null,null,null,4,3,1,5,5,0,0,0,4]
[null,null,null,null,null,null,null,null,null,null,null,null,null,null,null,null,null,null,7,2,7,5,7,2,0,2,0]
[null,null,null,null,null,null,null,null,null,null,null,null,null,null,null,null,null,null,5,5,5,5,5,1,1,1,1]
[null,null,null,null,null,null,null,null,null,null,null,null,null,null,null,null,null,null,6,6,7,5,7,0,0,4,0]
[null,null,null,null,null,null,null,null,null,null,null,null,null,null,null,null,null,null,8,3,7,5,8,4,0,0,0]
[]
[]
[]
[]
[]
[null,null,null,null,null,null,null,null,null,null,null,null,null,null,null,null,null,null,5,9,7,5,9,0,4,0,0]
[null,null,null,null,null,null,null,null,null,null,null,null,null,null,null,null,null,null,6,4,6,5,6,2,0,2,0]
[null,null,null,null,null,null,null,null,null,null,null,null,null,null,null,null,null,null,8,3,1,5,8,4,0,0,0]
[null,null,null,null,null,null,null,null,null,null,null,null,null,null,null,null,null,null,1,3,9,5,9,0,0,4,0]
[null,null,null,null,null,null,null,null,null,null,null,null,null,null,null,null,null,null,2,3,7,5,7,0,0,4,0]
[null,null,null,null,null,null,null,null,null,null,null,null,null,null,null,null,null,null,9,2,8,5,9,4,0,0,0]
[null,null,null,null,null,null,null,null,null,null,null,null,null,null,null,null,null,null,4,1,1,5,5,0,0,0,4]
[null,null,null,null,null,null,null,null,null,null,null,null,null,null,null,null,null,null,3,9,7,5,9,0,4,0,0]
[null,null,null,null,null,null,null,null,null,null,null,null,null,null,null,null,null,null,5,3,5,5,5,1,0,1,1]
[null,null,null,null,null,null,null,null,null,null,null,null,null,null,null,null,null,null,4,5,5,5,5,0,1,1,1]
[null,null,null,null,null,null,null,null,null,null,null,null,null,null,null,null,null,null,5,9,1,5,9,0,4,0,0]
[null,null,null,null,null,null,null,null,null,null,null,null,null,null,null,null,null,null,6,5,7,5,7,0,0,4,0]
[null,null,null,null,null,null,null,null,null,null,null,null,null,null,null,null,null,null,7,4,1,5,7,4,0,0,0]
[null,null,null,null,null,null,null,null,null,null,null,null,null,null,null,null,null,null,3,9,6,5,9,0,4,0,0]
[null,null,null,null,null,null,null,null,null,null,null,null,null,null,null,null,null,null,7,6,4,5,7,4,0,0,0]
[]
[]
[]
[]
[]
[null,null,null,null,null,null,null,null,null,null,null,null,null,null,null,null,null,null,2,9,6,5,9,0,4,0,0]
[null,null,null,null,null,null,null,null,null,null,null,null,null,null,null,null,null,null,4,3,7,5,7,0,0,4,0]
[null,null,null,null,null,null,null,null,null,null,null,null,null,null,null,null,null,null,5,9,5,5,9,0,4,0,0]
[null,null,null,null,null,null,null,null,null,null,null,null,null,null,null,null,null,null,7,1,4,5,7,4,0,0,0]
[null,null,null,null,null,null,null,null,null,null,null,null,null,null,null,null,null,null,1,5,7,5,7,0,0,4,0]
[null,null,null,null,null,null,null,null,null,null,null,null,null,null,null,null,null,null,9,4,6,5,9,4,0,0,0]
[null,null,null,null,null,null,null,null,null,null,null,null,null,null,null,null,null,null,3,4,7,5,7,0,0,4,0]
[null,null,null,null,null,null,null,null,null,null,null,null,null,null,null,null,null,null,6,9,1,5,9,0,4,0,0]
[null,null,null,null,null,null,null,null,null,null,null,null,null,null,null,null,null,null,3,2,8,5,8,0,0,4,0]
[null,null,null,null,null,null,null,null,null,null,null,null,null,null,null,null,null,null,4,3,1,5,5,0,0,0,4]
[null,null,null,null,null,null,null,null,null,null,null,null,null,null,null,null,null,null,8,9,1,5,9,0,4,0,0]
[null,null,null,null,null,null,null,null,null,null,null,null,null,null,null,null,null,null,6,3,9,5,9,0,0,4,0]
[null,null,null,null,null,null,null,null,null,null,null,null,null,null,null,null,null,null,7,3,1,5,7,4,0,0,0]
[null,null,null,null,null,null,null,null,null,null,null,null,null,null,null,null,null,null,5,6,5,5,6,0,4,0,0]
[null,null,null,null,null,null,null,null,null,null,null,null,null,null,null,null,null,null,5,5,7,5,7,0,0,4,0]
[]
[]
[]
[]
[]
[null,null,null,null,null,null,null,null,null,null,null,null,null,null,null,null,null,null,5,5,9,5,9,0,0,4,0]
[null,null,null,null,null,null,null,null,null,null,null,null,null,null,null,null,null,null,6,9,6,5,9,0,4,0,0]
[null,null,null,null,null,null,null,null,null,null,null,null,null,null,null,null,null,null,8,9,7,5,9,0,4,0,0]
[null,null,null,null,null,null,null,null,null,null,null,null,null,null,null,null,null,null,1,3,7,5,7,0,0,4,0]
[null,null,null,null,null,null,null,null,null,null,null,null,null,null,null,null,null,null,9,5,6,5,9,4,0,0,0]
[null,null,null,null,null,null,null,null,null,null,null,null,null,null,null,null,null,null,5,1,4,5,5,2,0,0,2]
[null,null,null,null,null,null,null,null,null,null,null,null,null,null,null,null,null,null,7,9,7,5,9,0,4,0,0]
[null,null,null,null,null,null,null,null,null,null,null,null,null,null,null,null,null,null,4,6,5,5,6,0,4,0,0]
[null,null,null,null,null,null,null,null,null,null,null,null,null,null,null,null,null,null,2,4,1,5,5,0,0,0,4]
[null,null,null,null,null,null,null,null,null,null,null,null,null,null,null,null,null,null,7,3,1,5,7,4,0,0,0]
[null,null,null,null,null,null,null,null,null,null,null,null,null,null,null,null,null,null,5,4,1,5,5,2,0,0,2]
[null,null,null,null,null,null,null,null,null,null,null,null,null,null,null,null,null,null,3,2,5,5,5,0,0,2,2]
[null,null,null,null,null,null,null,null,null,null,null,null,null,null,null,null,null,null,6,9,8,5,9,0,4,0,0]
[null,null,null,null,null,null,null,null,null,null,null,null,null,null,null,null,null,null,4,3,1,5,5,0,0,0,4]
[null,null,null,null,null,null,null,null,null,null,null,null,null,null,null,null,null,null,3,3,7,5,7,0,0,4,0]
[]
[]
[]
[]
[]
[null,null,null,null,null,null,null,null,null,null,null,null,null,null,null,null,null,null,5,3,8,5,8,0,0,4,0]
[null,null,null,null,null,null,null,null,null,null,null,null,null,null,null,null,null,null,7,1,7,5,7,2,0,2,0]
[null,null,null,null,null,null,null,null,null,null,null,null,null,null,null,null,null,null,3,2,1,5,5,0,0,0,4]
[null,null,null,null,null,null,null,null,null,null,null,null,null,null,null,null,null,null,7,3,1,5,7,4,0,0,0]
[null,null,null,null,null,null,null,null,null,null,null,null,null,null,null,null,null,null,3,4,5,5,5,0,0,2,2]
[null,null,null,null,null,null,null,null,null,null,null,null,null,null,null,null,null,null,6,9,6,5,9,0,4,0,0]
[null,null,null,null,null,null,null,null,null,null,null,null,null,null,null,null,null,null,8,9,7,5,9,0,4,0,0]
[null,null,null,null,null,null,null,null,null,null,null,null,null,null,null,null,null,null,5,9,6,5,9,0,4,0,0]
[null,null,null,null,null,null,null,null,null,null,null,null,null,null,null,null,null,null,1,9,5,5,9,0,4,0,0]
[null,null,null,null,null,null,null,null,null,null,null,null,null,null,null,null,null,null,2,3,9,5,9,0,0,4,0]
[null,null,null,null,null,null,null,null,null,null,null,null,null,null,null,null,null,null,4,4,1,5,5,0,0,0,4]
[null,null,null,null,null,null,null,null,null,null,null,null,null,null,null,null,null,null,9,5,4,5,9,4,0,0,0]
[null,null,null,null,null,null,null,null,null,null,null,null,null,null,null,null,null,null,6,6,7,5,7,0,0,4,0]
[null,null,null,null,null,null,null,null,null,null,null,null,null,null,null,null,null,null,5,5,1,5,5,1,1,0,1]
[null,null,null,null,null,null,null,null,null,null,null,null,null,null,null,null,null,null,4,3,7,5,7,0,0,4,0]
[]
[]
[]
[]
[]
[null,null,null,null,null,null,null,null,null,null,null,null,null,null,null,null,null,null,4,4,1,5,5,0,0,0,4]
[null,null,null,null,null,null,null,null,null,null,null,null,null,null,null,null,null,null,7,9,5,5,9,0,4,0,0]
[null,null,null,null,null,null,null,null,null,null,null,null,null,null,null,null,null,null,5,9,5,5,9,0,4,0,0]
[null,null,null,null,null,null,null,null,null,null,null,null,null,null,null,null,null,null,8,2,7,5,8,4,0,0,0]
[null,null,null,null,null,null,null,null,null,null,null,null,null,null,null,null,null,null,6,4,6,5,6,2,0,2,0]
[null,null,null,null,null,null,null,null,null,null,null,null,null,null,null,null,null,null,6,5,6,5,6,2,0,2,0]
[null,null,null,null,null,null,null,null,null,null,null,null,null,null,null,null,null,null,4,9,1,5,9,0,4,0,0]
[null,null,null,null,null,null,null,null,null,null,null,null,null,null,null,null,null,null,2,5,7,5,7,0,0,4,0]
[null,null,null,null,null,null,null,null,null,null,null,null,null,null,null,null,null,null,5,1,4,5,5,2,0,0,2]
[null,null,null,null,null,null,null,null,null,null,null,null,null,null,null,null,null,null,3,3,8,5,8,0,0,4,0]
[null,null,null,null,null,null,null,null,null,null,null,null,null,null,null,null,null,null,5,3,1,5,5,2,0,0,2]
[null,null,null,null,null,null,null,null,null,null,null,null,null,null,null,null,null,null,3,3,9,5,9,0,0,4,0]
[null,null,null,null,null,null,null,null,null,null,null,null,null,null,null,null,null,null,9,3,1,5,9,4,0,0,0]
[null,null,null,null,null,null,null,null,null,null,null,null,null,null,null,null,null,null,7,6,7,5,7,2,0,2,0]
[null,null,null,null,null,null,null,null,null,null,null,null,null,null,null,null,null,null,1,9,7,5,9,0,4,0,0]
[]
[]
[]
[]
[]
[null,null,null,null,null,null,null,null,null,null,null,null,null,null,null,null,null,null,6,4,1,5,6,4,0,0,0]
[null,null,null,null,null,null,null,null,null,null,null,null,null,null,null,null,null,null,8,1,6,5,8,4,0,0,0]
[null,null,null,null,null,null,null,null,null,null,null,null,null,null,null,null,null,null,1,9,1,5,9,0,4,0,0]
[null,null,null,null,null,null,null,null,null,null,null,null,null,null,null,null,null,null,3,3,7,5,7,0,0,4,0]
[null,null,null,null,null,null,null,null,null,null,null,null,null,null,null,null,null,null,5,3,6,5,6,0,0,4,0]
[null,null,null,null,null,null,null,null,null,null,null,null,null,null,null,null,null,null,7,9,5,5,9,0,4,0,0]
[null,null,null,null,null,null,null,null,null,null,null,null,null,null,null,null,null,null,2,9,1,5,9,0,4,0,0]
[null,null,null,null,null,null,null,null,null,null,null,null,null,null,null,null,null,null,4,9,9,5,9,0,2,2,0]
[null,null,null,null,null,null,null,null,null,null,null,null,null,null,null,null,null,null,7,3,5,5,7,4,0,0,0]
[null,null,null,null,null,null,null,null,null,null,null,null,null,null,null,null,null,null,5,4,7,5,7,0,0,4,0]
[null,null,null,null,null,null,null,null,null,null,null,null,null,null,null,null,null,null,5,5,1,5,5,1,1,0,1]
[null,null,null,null,null,null,null,null,null,null,null,null,null,null,null,null,null,null,4,6,7,5,7,0,0,4,0]
[null,null,null,null,null,null,null,null,null,null,null,null,null,null,null,null,null,null,6,2,7,5,7,0,0,4,0]
[null,null,null,null,null,null,null,null,null,null,null,null,null,null,null,null,null,null,9,3,4,5,9,4,0,0,0]
[null,null,null,null,null,null,null,null,null,null,null,null,null,null,null,null,null,null,3,5,8,5,8,0,0,4,0]
[]
[]
[]
[]
[]
[null,null,null,null,null,null,null,null,null,null,null,null,null,null,null,null,null,null,7,2,6,5,7,4,0,0,0]
[null,null,null,null,null,null,null,null,null,null,null,null,null,null,null,null,null,null,7,1,1,5,7,4,0,0,0]
[null,null,null,null,null,null,null,null,null,null,null,null,null,null,null,null,null,null,2,5,5,5,5,0,1,1,1]
[null,null,null,null,null,null,null,null,null,null,null,null,null,null,null,null,null,null,5,9,7,5,9,0,4,0,0]
[null,null,null,null,null,null,null,null,null,null,null,null,null,null,null,null,null,null,5,3,1,5,5,2,0,0,2]
[null,null,null,null,null,null,null,null,null,null,null,null,null,null,null,null,null,null,4,9,7,5,9,0,4,0,0]
[null,null,null,null,null,null,null,null,null,null,null,null,null,null,null,null,null,null,4,3,5,5,5,0,0,2,2]
[null,null,null,null,null,null,null,null,null,null,null,null,null,null,null,null,null,null,6,4,7,5,7,0,0,4,0]
[null,null,null,null,null,null,null,null,null,null,null,null,null,null,null,null,null,null,3,3,7,5,7,0,0,4,0]
[null,null,null,null,null,null,null,null,null,null,null,null,null,null,null,null,null,null,8,5,9,5,9,0,0,4,0]
[null,null,null,null,null,null,null,null,null,null,null,null,null,null,null,null,null,null,3,9,8,5,9,0,4,0,0]
[null,null,null,null,null,null,null,null,null,null,null,null,null,null,null,null,null,null,1,3,1,5,5,0,0,0,4]
[null,null,null,null,null,null,null,null,null,null,null,null,null,null,null,null,null,null,9,4,4,5,9,4,0,0,0]
[null,null,null,null,null,null,null,null,null,null,null,null,null,null,null,null,null,null,6,9,1,5,9,0,4,0,0]
[null,null,null,null,null,null,null,null,null,null,null,null,null,null,null,null,null,null,5,6,6,5,6,0,2,2,0]
[]
[]
[]
[]
[]
[null,null,null,null,null,null,null,null,null,null,null,null,null,null,null,null,null,null,5,3,1,5,5,2,0,0,2]
[null,null,null,null,null,null,null,null,null,null,null,null,null,null,null,null,null,null,5,2,4,5,5,2,0,0,2]
[null,null,null,null,null,null,null,null,null,null,null,null,null,null,null,null,null,null,7,9,7,5,9,0,4,0,0]
[null,null,null,null,null,null,null,null,null,null,null,null,null,null,null,null,null,null,1,9,6,5,9,0,4,0,0]
[null,null,null,null,null,null,null,null,null,null,null,null,null,null,null,null,null,null,6,4,5,5,6,4,0,0,0]
[null,null,null,null,null,null,null,null,null,null,null,null,null,null,null,null,null,null,4,6,9,5,9,0,0,4,0]
[null,null,null,null,null,null,null,null,null,null,null,null,null,null,null,null,null,null,3,9,1,5,9,0,4,0,0]
[null,null,null,null,null,null,null,null,null,null,null,null,null,null,null,null,null,null,5,3,1,5,5,2,0,0,2]
[null,null,null,null,null,null,null,null,null,null,null,null,null,null,null,null,null,null,8,9,6,5,9,0,4,0,0]
[null,null,null,null,null,null,null,null,null,null,null,null,null,null,null,null,null,null,7,4,7,5,7,2,0,2,0]
[null,null,null,null,null,null,null,null,null,null,null,null,null,null,null,null,null,null,9,5,7,5,9,4,0,0,0]
[null,null,null,null,null,null,null,null,null,null,null,null,null,null,null,null,null,null,4,3,8,5,8,0,0,4,0]
[null,null,null,null,null,null,null,null,null,null,null,null,null,null,null,null,null,null,6,1,7,5,7,0,0,4,0]
[null,null,null,null,null,null,null,null,null,null,null,null,null,null,null,null,null,null,3,3,5,5,5,0,0,2,2]
[null,null,null,null,null,null,null,null,null,null,null,null,null,null,null,null,null,null,2,5,1,5,5,0,2,0,2]
[]
[]
[]
[]
[]
[null,null,null,null,null,null,null,null,null,null,null,null,null,null,null,null,null,null,6,3,5,5,6,4,0,0,0]
[null,null,null,null,null,null,null,null,null,null,null,null,null,null,null,null,null,null,3,2,7,5,7,0,0,4,0]
[null,null,null,null,null,null,null,null,null,null,null,null,null,null,null,null,null,null,4,5,7,5,7,0,0,4,0]
[null,null,null,null,null,null,null,null,null,null,null,null,null,null,null,null,null,null,8,5,6,5,8,4,0,0,0]
[null,null,null,null,null,null,null,null,null,null,null,null,null,null,null,null,null,null,6,9,7,5,9,0,4,0,0]
[null,null,null,null,null,null,null,null,null,null,null,null,null,null,null,null,null,null,5,4,5,5,5,1,0,1,1]
[null,null,null,null,null,null,null,null,null,null,null,null,null,null,null,null,null,null,4,3,1,5,5,0,0,0,4]
[null,null,null,null,null,null,null,null,null,null,null,null,null,null,null,null,null,null,7,4,1,5,7,4,0,0,0]
[null,null,null,null,null,null,null,null,null,null,null,null,null,null,null,null,null,null,3,9,8,5,9,0,4,0,0]
[null,null,null,null,null,null,null,null,null,null,null,null,null,null,null,null,null,null,7,6,4,5,7,4,0,0,0]
[null,null,null,null,null,null,null,null,null,null,null,null,null,null,null,null,null,null,5,3,9,5,9,0,0,4,0]
[null,null,null,null,null,null,null,null,null,null,null,null,null,null,null,null,null,null,2,3,6,5,6,0,0,4,0]
[null,null,null,null,null,null,null,null,null,null,null,null,null,null,null,null,null,null,1,9,1,5,9,0,4,0,0]
[null,null,null,null,null,null,null,null,null,null,null,null,null,null,null,null,null,null,5,9,1,5,9,0,4,0,0]
[null,null,null,null,null,null,null,null,null,null,null,null,null,null,null,null,null,null,9,1,7,5,9,4,0,0,0]
[]
[]
[]
[]
[]
[null,null,null,null,null,null,null,null,null,null,null,null,null,null,null,null,null,null,3,9,5,5,9,0,4,0,0]
[null,null,null,null,null,null,null,null,null,null,null,null,null,null,null,null,null,null,5,4,5,5,5,1,0,1,1]
[null,null,null,null,null,null,null,null,null,null,null,null,null,null,null,null,null,null,5,3,1,5,5,2,0,0,2]
[null,null,null,null,null,null,null,null,null,null,null,null,null,null,null,null,null,null,5,6,1,5,6,0,4,0,0]
[null,null,null,null,null,null,null,null,null,null,null,null,null,null,null,null,null,null,4,9,9,5,9,0,2,2,0]
[null,null,null,null,null,null,null,null,null,null,null,null,null,null,null,null,null,null,6,9,8,5,9,0,4,0,0]
[null,null,null,null,null,null,null,null,null,null,null,null,null,null,null,null,null,null,7,3,7,5,7,2,0,2,0]
[null,null,null,null,null,null,null,null,null,null,null,null,null,null,null,null,null,null,4,1,7,5,7,0,0,4,0]
[null,null,null,null,null,null,null,null,null,null,null,null,null,null,null,null,null,null,8,3,4,5,8,4,0,0,0]
[null,null,null,null,null,null,null,null,null,null,null,null,null,null,null,null,null,null,9,5,7,5,9,4,0,0,0]
[null,null,null,null,null,null,null,null,null,null,null,null,null,null,null,null,null,null,2,2,1,5,5,0,0,0,4]
[null,null,null,null,null,null,null,null,null,null,null,null,null,null,null,null,null,null,3,4,7,5,7,0,0,4,0]
[null,null,null,null,null,null,null,null,null,null,null,null,null,null,null,null,null,null,1,5,1,5,5,0,2,0,2]
[null,null,null,null,null,null,null,null,null,null,null,null,null,null,null,null,null,null,6,3,6,5,6,2,0,2,0]
[null,null,null,null,null,null,null,null,null,null,null,null,null,null,null,null,null,null,7,9,6,5,9,0,4,0,0]
[]
[]
[]
[]
[]
[null,null,null,null,null,null,null,null,null,null,null,null,null,null,null,null,null,null,1,1,5,5,5,0,0,2,2]
[null,null,null,null,null,null,null,null,null,null,null,null,null,null,null,null,null,null,8,4,4,5,8,4,0,0,0]
[null,null,null,null,null,null,null,null,null,null,null,null,null,null,null,null,null,null,5,5,5,5,5,1,1,1,1]
[null,null,null,null,null,null,null,null,null,null,null,null,null,null,null,null,null,null,4,3,7,5,7,0,0,4,0]
[null,null,null,null,null,null,null,null,null,null,null,null,null,null,null,null,null,null,3,9,1,5,9,0,4,0,0]
[null,null,null,null,null,null,null,null,null,null,null,null,null,null,null,null,null,null,7,5,9,5,9,0,0,4,0]
[null,null,null,null,null,null,null,null,null,null,null,null,null,null,null,null,null,null,6,3,8,5,8,0,0,4,0]
[null,null,null,null,null,null,null,null,null,null,null,null,null,null,null,null,null,null,6,9,6,5,9,0,4,0,0]
[null,null,null,null,null,null,null,null,null,null,null,null,null,null,null,null,null,null,7,9,1,5,9,0,4,0,0]
[null,null,null,null,null,null,null,null,null,null,null,null,null,null,null,null,null,null,9,3,1,5,9,4,0,0,0]
[null,null,null,null,null,null,null,null,null,null,null,null,null,null,null,null,null,null,4,9,7,5,9,0,4,0,0]
[null,null,null,null,null,null,null,null,null,null,null,null,null,null,null,null,null,null,3,6,7,5,7,0,0,4,0]
[null,null,null,null,null,null,null,null,null,null,null,null,null,null,null,null,null,null,5,4,1,5,5,2,0,0,2]
[null,null,null,null,null,null,null,null,null,null,null,null,null,null,null,null,null,null,2,2,7,5,7,0,0,4,0]
[null,null,null,null,null,null,null,null,null,null,null,null,null,null,null,null,null,null,5,3,6,5,6,0,0,4,0]
[]
[]
[]
[]
[]
[null,null,null,null,null,null,null,null,null,null,null,null,null,null,null,null,null,null,4,3,8,5,8,0,0,4,0]
[null,null,null,null,null,null,null,null,null,null,null,null,null,null,null,null,null,null,3,6,1,5,6,0,4,0,0]
[null,null,null,null,null,null,null,null,null,null,null,null,null,null,null,null,null,null,5,9,7,5,9,0,4,0,0]
[null,null,null,null,null,null,null,null,null,null,null,null,null,null,null,null,null,null,8,4,7,5,8,4,0,0,0]
[null,null,null,null,null,null,null,null,null,null,null,null,null,null,null,null,null,null,4,9,1,5,9,0,4,0,0]
[null,null,null,null,null,null,null,null,null,null,null,null,null,null,null,null,null,null,5,3,5,5,5,1,0,1,1]
[null,null,null,null,null,null,null,null,null,null,null,null,null,null,null,null,null,null,3,3,9,5,9,0,0,4,0]
[null,null,null,null,null,null,null,null,null,null,null,null,null,null,null,null,null,null,7,9,6,5,9,0,4,0,0]
[null,null,null,null,null,null,null,null,null,null,null,null,null,null,null,null,null,null,7,9,7,5,9,0,4,0,0]
[null,null,null,null,null,null,null,null,null,null,null,null,null,null,null,null,null,null,9,1,4,5,9,4,0,0,0]
[null,null,null,null,null,null,null,null,null,null,null,null,null,null,null,null,null,null,1,4,7,5,7,0,0,4,0]
[null,null,null,null,null,null,null,null,null,null,null,null,null,null,null,null,null,null,2,5,1,5,5,0,2,0,2]
[null,null,null,null,null,null,null,null,null,null,null,null,null,null,null,null,null,null,6,5,5,5,6,4,0,0,0]
[null,null,null,null,null,null,null,null,null,null,null,null,null,null,null,null,null,null,6,3,6,5,6,2,0,2,0]
[null,null,null,null,null,null,null,null,null,null,null,null,null,null,null,null,null,null,5,2,1,5,5,2,0,0,2]
[]
[]
[]
[]
[]
[null,null,null,null,null,null,null,null,null,null,null,null,null,null,null,null,null,null,3,3,1,5,5,0,0,0,4]
[null,null,null,null,null,null,null,null,null,null,null,null,null,null,null,null,null,null,5,9,7,5,9,0,4,0,0]
[null,null,null,null,null,null,null,null,null,null,null,null,null,null,null,null,null,null,6,5,1,5,6,4,0,0,0]
[null,null,null,null,null,null,null,null,null,null,null,null,null,null,null,null,null,null,9,3,4,5,9,4,0,0,0]
[null,null,null,null,null,null,null,null,null,null,null,null,null,null,null,null,null,null,2,1,1,5,5,0,0,0,4]
[null,null,null,null,null,null,null,null,null,null,null,null,null,null,null,null,null,null,1,2,1,5,5,0,0,0,4]
[null,null,null,null,null,null,null,null,null,null,null,null,null,null,null,null,null,null,8,5,5,5,8,4,0,0,0]
[null,null,null,null,null,null,null,null,null,null,null,null,null,null,null,null,null,null,6,3,5,5,6,4,0,0,0]
[null,null,null,null,null,null,null,null,null,null,null,null,null,null,null,null,null,null,5,9,7,5,9,0,4,0,0]
[null,null,null,null,null,null,null,null,null,null,null,null,null,null,null,null,null,null,7,6,6,5,7,4,0,0,0]
[null,null,null,null,null,null,null,null,null,null,null,null,null,null,null,null,null,null,5,9,7,5,9,0,4,0,0]
[null,null,null,null,null,null,null,null,null,null,null,null,null,null,null,null,null,null,4,3,9,5,9,0,0,4,0]
[null,null,null,null,null,null,null,null,null,null,null,null,null,null,null,null,null,null,4,9,7,5,9,0,4,0,0]
[null,null,null,null,null,null,null,null,null,null,null,null,null,null,null,null,null,null,3,4,8,5,8,0,0,4,0]
[null,null,null,null,null,null,null,null,null,null,null,null,null,null,null,null,null,null,7,4,6,5,7,4,0,0,0]
[]
[]
[]
[]
[]
[null,null,null,null,null,null,null,null,null,null,null,null,null,null,null,null,null,null,5,3,6,5,6,0,0,4,0]
[null,null,null,null,null,null,null,null,null,null,null,null,null,null,null,null,null,null,8,3,1,5,8,4,0,0,0]
[null,null,null,null,null,null,null,null,null,null,null,null,null,null,null,null,null,null,5,9,1,5,9,0,4,0,0]
[null,null,null,null,null,null,null,null,null,null,null,null,null,null,null,null,null,null,1,4,7,5,7,0,0,4,0]
[null,null,null,null,null,null,null,null,null,null,null,null,null,null,null,null,null,null,2,9,1,5,9,0,4,0,0]
[null,null,null,null,null,null,null,null,null,null,null,null,null,null,null,null,null,null,4,9,4,5,9,0,4,0,0]
[null,null,null,null,null,null,null,null,null,null,null,null,null,null,null,null,null,null,7,4,8,5,8,0,0,4,0]
[null,null,null,null,null,null,null,null,null,null,null,null,null,null,null,null,null,null,9,1,7,5,9,4,0,0,0]
[null,null,null,null,null,null,null,null,null,null,null,null,null,null,null,null,null,null,7,3,7,5,7,2,0,2,0]
[null,null,null,null,null,null,null,null,null,null,null,null,null,null,null,null,null,null,5,5,1,5,5,1,1,0,1]
[null,null,null,null,null,null,null,null,null,null,null,null,null,null,null,null,null,null,3,3,6,5,6,0,0,4,0]
[null,null,null,null,null,null,null,null,null,null,null,null,null,null,null,null,null,null,6,6,9,5,9,0,0,4,0]
[null,null,null,null,null,null,null,null,null,null,null,null,null,null,null,null,null,null,6,9,5,5,9,0,4,0,0]
[null,null,null,null,null,null,null,null,null,null,null,null,null,null,null,null,null,null,4,5,7,5,7,0,0,4,0]
[null,null,null,null,null,null,null,null,null,null,null,null,null,null,null,null,null,null,3,2,5,5,5,0,0,2,2]
[]
[]
[]
[]
[]
[null,null,null,null,null,null,null,null,null,null,null,null,null,null,null,null,null,null,5,5,1,5,5,1,1,0,1]
[null,null,null,null,null,null,null,null,null,null,null,null,null,null,null,null,null,null,8,3,7,5,8,4,0,0,0]
[null,null,null,null,null,null,null,null,null,null,null,null,null,null,null,null,null,null,7,1,1,5,7,4,0,0,0]
[null,null,null,null,null,null,null,null,null,null,null,null,null,null,null,null,null,null,4,6,6,5,6,0,2,2,0]
[null,null,null,null,null,null,null,null,null,null,null,null,null,null,null,null,null,null,6,9,1,5,9,0,4,0,0]
[null,null,null,null,null,null,null,null,null,null,null,null,null,null,null,null,null,null,9,5,1,5,9,4,0,0,0]
[null,null,null,null,null,null,null,null,null,null,null,null,null,null,null,null,null,null,2,3,6,5,6,0,0,4,0]
[null,null,null,null,null,null,null,null,null,null,null,null,null,null,null,null,null,null,4,9,9,5,9,0,2,2,0]
[null,null,null,null,null,null,null,null,null,null,null,null,null,null,null,null,null,null,7,3,4,5,7,4,0,0,0]
[null,null,null,null,null,null,null,null,null,null,null,null,null,null,null,null,null,null,6,4,7,5,7,0,0,4,0]
[null,null,null,null,null,null,null,null,null,null,null,null,null,null,null,null,null,null,3,3,5,5,5,0,0,2,2]
[null,null,null,null,null,null,null,null,null,null,null,null,null,null,null,null,null,null,3,9,8,5,9,0,4,0,0]
[null,null,null,null,null,null,null,null,null,null,null,null,null,null,null,null,null,null,1,4,7,5,7,0,0,4,0]
[null,null,null,null,null,null,null,null,null,null,null,null,null,null,null,null,null,null,5,2,7,5,7,0,0,4,0]
[null,null,null,null,null,null,null,null,null,null,null,null,null,null,null,null,null,null,5,9,5,5,9,0,4,0,0]
[]
[]
[]
[]
[]
[null,null,null,null,null,null,null,null,null,null,null,null,null,null,null,null,null,null,5,2,5,5,5,1,0,1,1]
[null,null,null,null,null,null,null,null,null,null,null,null,null,null,null,null,null,null,3,3,1,5,5,0,0,0,4]
[null,null,null,null,null,null,null,null,null,null,null,null,null,null,null,null,null,null,4,6,6,5,6,0,2,2,0]
[null,null,null,null,null,null,null,null,null,null,null,null,null,null,null,null,null,null,5,5,1,5,5,1,1,0,1]
[null,null,null,null,null,null,null,null,null,null,null,null,null,null,null,null,null,null,6,3,4,5,6,4,0,0,0]
[null,null,null,null,null,null,null,null,null,null,null,null,null,null,null,null,null,null,8,5,5,5,8,4,0,0,0]
[null,null,null,null,null,null,null,null,null,null,null,null,null,null,null,null,null,null,1,9,7,5,9,0,4,0,0]
[null,null,null,null,null,null,null,null,null,null,null,null,null,null,null,null,null,null,5,1,7,5,7,0,0,4,0]
[null,null,null,null,null,null,null,null,null,null,null,null,null,null,null,null,null,null,7,4,1,5,7,4,0,0,0]
[null,null,null,null,null,null,null,null,null,null,null,null,null,null,null,null,null,null,3,9,7,5,9,0,4,0,0]
[null,null,null,null,null,null,null,null,null,null,null,null,null,null,null,null,null,null,4,9,8,5,9,0,4,0,0]
[null,null,null,null,null,null,null,null,null,null,null,null,null,null,null,null,null,null,6,4,1,5,6,4,0,0,0]
[null,null,null,null,null,null,null,null,null,null,null,null,null,null,null,null,null,null,7,9,7,5,9,0,4,0,0]
[null,null,null,null,null,null,null,null,null,null,null,null,null,null,null,null,null,null,2,3,6,5,6,0,0,4,0]
[null,null,null,null,null,null,null,null,null,null,null,null,null,null,null,null,null,null,9,3,9,5,9,2,0,2,0]
[]
[]
[]
[]
[]
[null,null,null,null,null,null,null,null,null,null,null,null,null,null,null,null,null,null,3,9,6,5,9,0,4,0,0]
[null,null,null,null,null,null,null,null,null,null,null,null,null,null,null,null,null,null,1,3,7,5,7,0,0,4,0]
[null,null,null,null,null,null,null,null,null,null,null,null,null,null,null,null,null,null,6,9,7,5,9,0,4,0,0]
[null,null,null,null,null,null,null,null,null,null,null,null,null,null,null,null,null,null,5,9,9,5,9,0,2,2,0]
[null,null,null,null,null,null,null,null,null,null,null,null,null,null,null,null,null,null,5,5,1,5,5,1,1,0,1]
[null,null,null,null,null,null,null,null,null,null,null,null,null,null,null,null,null,null,3,1,7,5,7,0,0,4,0]
[null,null,null,null,null,null,null,null,null,null,null,null,null,null,null,null,null,null,4,3,5,5,5,0,0,2,2]
[null,null,null,null,null,null,null,null,null,null,null,null,null,null,null,null,null,null,4,4,4,5,5,0,0,0,4]
[null,null,null,null,null,null,null,null,null,null,null,null,null,null,null,null,null,null,2,3,1,5,5,0,0,0,4]
[null,null,null,null,null,null,null,null,null,null,null,null,null,null,null,null,null,null,5,3,7,5,7,0,0,4,0]
[null,null,null,null,null,null,null,null,null,null,null,null,null,null,null,null,null,null,9,6,5,5,9,4,0,0,0]
[null,null,null,null,null,null,null,null,null,null,null,null,null,null,null,null,null,null,6,5,1,5,6,4,0,0,0]
[null,null,null,null,null,null,null,null,null,null,null,null,null,null,null,null,null,null,8,9,8,5,9,0,4,0,0]
[null,null,null,null,null,null,null,null,null,null,null,null,null,null,null,null,null,null,7,4,6,5,7,4,0,0,0]
[null,null,null,null,null,null,null,null,null,null,null,null,null,null,null,null,null,null,7,2,1,5,7,4,0,0,0]
[]
[]
[]
[]
[]
[null,null,null,null,null,null,null,null,null,null,null,null,null,null,null,null,null,null,5,3,7,5,7,0,0,4,0]
[null,null,null,null,null,null,null,null,null,null,null,null,null,null,null,null,null,null,6,9,9,5,9,0,2,2,0]
[null,null,null,null,null,null,null,null,null,null,null,null,null,null,null,null,null,null,4,5,6,5,6,0,0,4,0]
[null,null,null,null,null,null,null,null,null,null,null,null,null,null,null,null,null,null,8,6,4,5,8,4,0,0,0]
[null,null,null,null,null,null,null,null,null,null,null,null,null,null,null,null,null,null,3,9,7,5,9,0,4,0,0]
[null,null,null,null,null,null,null,null,null,null,null,null,null,null,null,null,null,null,3,4,1,5,5,0,0,0,4]
[null,null,null,null,null,null,null,null,null,null,null,null,null,null,null,null,null,null,2,5,5,5,5,0,1,1,1]
[null,null,null,null,null,null,null,null,null,null,null,null,null,null,null,null,null,null,7,3,1,5,7,4,0,0,0]
[null,null,null,null,null,null,null,null,null,null,null,null,null,null,null,null,null,null,6,9,6,5,9,0,4,0,0]
[null,null,null,null,null,null,null,null,null,null,null,null,null,null,null,null,null,null,5,4,8,5,8,0,0,4,0]
[null,null,null,null,null,null,null,null,null,null,null,null,null,null,null,null,null,null,1,1,1,5,5,0,0,0,4]
[null,null,null,null,null,null,null,null,null,null,null,null,null,null,null,null,null,null,5,9,7,5,9,0,4,0,0]
[null,null,null,null,null,null,null,null,null,null,null,null,null,null,null,null,null,null,9,3,1,5,9,4,0,0,0]
[null,null,null,null,null,null,null,null,null,null,null,null,null,null,null,null,null,null,4,2,5,5,5,0,0,2,2]
[null,null,null,null,null,null,null,null,null,null,null,null,null,null,null,null,null,null,7,3,7,5,7,2,0,2,0]
[]
[]
[]
[]
[]
[null,null,null,null,null,null,null,null,null,null,null,null,null,null,null,null,null,null,6,9,9,5,9,0,2,2,0]
[null,null,null,null,null,null,null,null,null,null,null,null,null,null,null,null,null,null,4,9,1,5,9,0,4,0,0]
[null,null,null,null,null,null,null,null,null,null,null,null,null,null,null,null,null,null,4,4,4,5,5,0,0,0,4]
[null,null,null,null,null,null,null,null,null,null,null,null,null,null,null,null,null,null,1,5,8,5,8,0,0,4,0]
[null,null,null,null,null,null,null,null,null,null,null,null,null,null,null,null,null,null,3,5,6,5,6,0,0,4,0]
[null,null,null,null,null,null,null,null,null,null,null,null,null,null,null,null,null,null,2,4,1,5,5,0,0,0,4]
[null,null,null,null,null,null,null,null,null,null,null,null,null,null,null,null,null,null,7,3,6,5,7,4,0,0,0]
[null,null,null,null,null,null,null,null,null,null,null,null,null,null,null,null,null,null,5,9,7,5,9,0,4,0,0]
[null,null,null,null,null,null,null,null,null,null,null,null,null,null,null,null,null,null,6,1,7,5,7,0,0,4,0]
[null,null,null,null,null,null,null,null,null,null,null,null,null,null,null,null,null,null,8,3,5,5,8,4,0,0,0]
[null,null,null,null,null,null,null,null,null,null,null,null,null,null,null,null,null,null,5,6,7,5,7,0,0,4,0]
[null,null,null,null,null,null,null,null,null,null,null,null,null,null,null,null,null,null,5,3,7,5,7,0,0,4,0]
[null,null,null,null,null,null,null,null,null,null,null,null,null,null,null,null,null,null,3,3,5,5,5,0,0,2,2]
[null,null,null,null,null,null,null,null,null,null,null,null,null,null,null,null,null,null,7,9,1,5,9,0,4,0,0]
[null,null,null,null,null,null,null,null,null,null,null,null,null,null,null,null,null,null,9,2,1,5,9,4,0,0,0]
[]
[]
[]
[]
[]
[null,null,null,null,null,null,null,null,null,null,null,null,null,null,null,null,null,null,2,4,9,5,9,0,0,4,0]
[null,null,null,null,null,null,null,null,null,null,null,null,null,null,null,null,null,null,3,3,7,5,7,0,0,4,0]
[null,null,null,null,null,null,null,null,null,null,null,null,null,null,null,null,null,null,5,9,7,5,9,0,4,0,0]
[null,null,null,null,null,null,null,null,null,null,null,null,null,null,null,null,null,null,3,1,6,5,6,0,0,4,0]
[null,null,null,null,null,null,null,null,null,null,null,null,null,null,null,null,null,null,5,3,4,5,5,2,0,0,2]
[null,null,null,null,null,null,null,null,null,null,null,null,null,null,null,null,null,null,5,9,6,5,9,0,4,0,0]
[null,null,null,null,null,null,null,null,null,null,null,null,null,null,null,null,null,null,6,3,1,5,6,4,0,0,0]
[null,null,null,null,null,null,null,null,null,null,null,null,null,null,null,null,null,null,7,4,8,5,8,0,0,4,0]
[null,null,null,null,null,null,null,null,null,null,null,null,null,null,null,null,null,null,4,2,5,5,5,0,0,2,2]
[null,null,null,null,null,null,null,null,null,null,null,null,null,null,null,null,null,null,7,9,1,5,9,0,4,0,0]
[null,null,null,null,null,null,null,null,null,null,null,null,null,null,null,null,null,null,4,5,1,5,5,0,2,0,2]
[null,null,null,null,null,null,null,null,null,null,null,null,null,null,null,null,null,null,6,5,7,5,7,0,0,4,0]
[null,null,null,null,null,null,null,null,null,null,null,null,null,null,null,null,null,null,8,6,7,5,8,4,0,0,0]
[null,null,null,null,null,null,null,null,null,null,null,null,null,null,null,null,null,null,9,3,1,5,9,4,0,0,0]
[null,null,null,null,null,null,null,null,null,null,null,null,null,null,null,null,null,null,1,9,5,5,9,0,4,0,0]
[]
[]
[]
[]
[]
[null,null,null,null,null,null,null,null,null,null,null,null,null,null,null,null,null,null,5,4,8,5,8,0,0,4,0]
[null,null,null,null,null,null,null,null,null,null,null,null,null,null,null,null,null,null,7,2,1,5,7,4,0,0,0]
[null,null,null,null,null,null,null,null,null,null,null,null,null,null,null,null,null,null,5,3,6,5,6,0,0,4,0]
[null,null,null,null,null,null,null,null,null,null,null,null,null,null,null,null,null,null,4,1,1,5,5,0,0,0,4]
[null,null,null,null,null,null,null,null,null,null,null,null,null,null,null,null,null,null,1,3,7,5,7,0,0,4,0]
[null,null,null,null,null,null,null,null,null,null,null,null,null,null,null,null,null,null,2,9,9,5,9,0,2,2,0]
[null,null,null,null,null,null,null,null,null,null,null,null,null,null,null,null,null,null,6,4,7,5,7,0,0,4,0]
[null,null,null,null,null,null,null,null,null,null,null,null,null,null,null,null,null,null,3,5,6,5,6,0,0,4,0]
[null,null,null,null,null,null,null,null,null,null,null,null,null,null,null,null,null,null,8,3,5,5,8,4,0,0,0]
[null,null,null,null,null,null,null,null,null,null,null,null,null,null,null,null,null,null,4,6,1,5,6,0,4,0,0]
[null,null,null,null,null,null,null,null,null,null,null,null,null,null,null,null,null,null,3,9,5,5,9,0,4,0,0]
[null,null,null,null,null,null,null,null,null,null,null,null,null,null,null,null,null,null,7,5,7,5,7,2,0,2,0]
[null,null,null,null,null,null,null,null,null,null,null,null,null,null,null,null,null,null,9,9,4,5,9,2,2,0,0]
[null,null,null,null,null,null,null,null,null,null,null,null,null,null,null,null,null,null,5,3,7,5,7,0,0,4,0]
[null,null,null,null,null,null,null,null,null,null,null,null,null,null,null,null,null,null,6,9,1,5,9,0,4,0,0]
[]
[]
[]
[]
[]
[null,null,null,null,null,null,null,null,null,null,null,null,null,null,null,null,null,null,5,5,7,5,7,0,0,4,0]
[null,null,null,null,null,null,null,null,null,null,null,null,null,null,null,null,null,null,6,9,7,5,9,0,4,0,0]
[null,null,null,null,null,null,null,null,null,null,null,null,null,null,null,null,null,null,3,3,5,5,5,0,0,2,2]
[null,null,null,null,null,null,null,null,null,null,null,null,null,null,null,null,null,null,5,9,6,5,9,0,4,0,0]
[null,null,null,null,null,null,null,null,null,null,null,null,null,null,null,null,null,null,9,5,1,5,9,4,0,0,0]
[null,null,null,null,null,null,null,null,null,null,null,null,null,null,null,null,null,null,7,9,8,5,9,0,4,0,0]
[null,null,null,null,null,null,null,null,null,null,null,null,null,null,null,null,null,null,3,6,1,5,6,0,4,0,0]
[null,null,null,null,null,null,null,null,null,null,null,null,null,null,null,null,null,null,5,3,9,5,9,0,0,4,0]
[null,null,null,null,null,null,null,null,null,null,null,null,null,null,null,null,null,null,2,2,6,5,6,0,0,4,0]
[null,null,null,null,null,null,null,null,null,null,null,null,null,null,null,null,null,null,4,1,7,5,7,0,0,4,0]
[null,null,null,null,null,null,null,null,null,null,null,null,null,null,null,null,null,null,6,3,1,5,6,4,0,0,0]
[null,null,null,null,null,null,null,null,null,null,null,null,null,null,null,null,null,null,7,3,7,5,7,2,0,2,0]
[null,null,null,null,null,null,null,null,null,null,null,null,null,null,null,null,null,null,1,4,1,5,5,0,0,0,4]
[null,null,null,null,null,null,null,null,null,null,null,null,null,null,null,null,null,null,8,4,4,5,8,4,0,0,0]
[null,null,null,null,null,null,null,null,null,null,null,null,null,null,null,null,null,null,4,9,5,5,9,0,4,0,0]
[]
[]
[]
[]
[]
[null,null,null,null,null,null,null,null,null,null,null,null,null,null,null,null,null,null,6,5,1,5,6,4,0,0,0]
[null,null,null,null,null,null,null,null,null,null,null,null,null,null,null,null,null,null,9,9,1,5,9,2,2,0,0]
[null,null,null,null,null,null,null,null,null,null,null,null,null,null,null,null,null,null,5,2,4,5,5,2,0,0,2]
[null,null,null,null,null,null,null,null,null,null,null,null,null,null,null,null,null,null,8,6,1,5,8,4,0,0,0]
[null,null,null,null,null,null,null,null,null,null,null,null,null,null,null,null,null,null,7,1,1,5,7,4,0,0,0]
[null,null,null,null,null,null,null,null,null,null,null,null,null,null,null,null,null,null,7,9,7,5,9,0,4,0,0]
[null,null,null,null,null,null,null,null,null,null,null,null,null,null,null,null,null,null,5,5,6,5,6,0,0,4,0]
[null,null,null,null,null,null,null,null,null,null,null,null,null,null,null,null,null,null,1,3,7,5,7,0,0,4,0]
[null,null,null,null,null,null,null,null,null,null,null,null,null,null,null,null,null,null,3,3,8,5,8,0,0,4,0]
[null,null,null,null,null,null,null,null,null,null,null,null,null,null,null,null,null,null,6,9,7,5,9,0,4,0,0]
[null,null,null,null,null,null,null,null,null,null,null,null,null,null,null,null,null,null,3,3,9,5,9,0,0,4,0]
[null,null,null,null,null,null,null,null,null,null,null,null,null,null,null,null,null,null,4,4,6,5,6,0,0,4,0]
[null,null,null,null,null,null,null,null,null,null,null,null,null,null,null,null,null,null,2,4,5,5,5,0,0,2,2]
[null,null,null,null,null,null,null,null,null,null,null,null,null,null,null,null,null,null,4,9,5,5,9,0,4,0,0]
[null,null,null,null,null,null,null,null,null,null,null,null,null,null,null,null,null,null,5,3,7,5,7,0,0,4,0]
[]
[]
[]
[]
[]
[null,null,null,null,null,null,null,null,null,null,null,null,null,null,null,null,null,null,5,3,5,5,5,1,0,1,1]
[null,null,null,null,null,null,null,null,null,null,null,null,null,null,null,null,null,null,4,4,7,5,7,0,0,4,0]
[null,null,null,null,null,null,null,null,null,null,null,null,null,null,null,null,null,null,7,1,7,5,7,2,0,2,0]
[null,null,null,null,null,null,null,null,null,null,null,null,null,null,null,null,null,null,6,9,5,5,9,0,4,0,0]
[null,null,null,null,null,null,null,null,null,null,null,null,null,null,null,null,null,null,3,3,1,5,5,0,0,0,4]
[null,null,null,null,null,null,null,null,null,null,null,null,null,null,null,null,null,null,8,3,1,5,8,4,0,0,0]
[null,null,null,null,null,null,null,null,null,null,null,null,null,null,null,null,null,null,4,2,9,5,9,0,0,4,0]
[null,null,null,null,null,null,null,null,null,null,null,null,null,null,null,null,null,null,5,5,7,5,7,0,0,4,0]
[null,null,null,null,null,null,null,null,null,null,null,null,null,null,null,null,null,null,5,9,7,5,9,0,4,0,0]
[null,null,null,null,null,null,null,null,null,null,null,null,null,null,null,null,null,null,2,3,6,5,6,0,0,4,0]
[null,null,null,null,null,null,null,null,null,null,null,null,null,null,null,null,null,null,3,9,4,5,9,0,4,0,0]
[null,null,null,null,null,null,null,null,null,null,null,null,null,null,null,null,null,null,1,6,1,5,6,0,4,0,0]
[null,null,null,null,null,null,null,null,null,null,null,null,null,null,null,null,null,null,7,9,8,5,9,0,4,0,0]
[null,null,null,null,null,null,null,null,null,null,null,null,null,null,null,null,null,null,6,5,6,5,6,2,0,2,0]
[null,null,null,null,null,null,null,null,null,null,null,null,null,null,null,null,null,null,9,4,1,5,9,4,0,0,0]
[]
[]
[]
[]
[]
[null,null,null,null,null,null,null,null,null,null,null,null,null,null,null,null,null,null,9,5,7,5,9,4,0,0,0]
[null,null,null,null,null,null,null,null,null,null,null,null,null,null,null,null,null,null,7,6,6,5,7,4,0,0,0]
[null,null,null,null,null,null,null,null,null,null,null,null,null,null,null,null,null,null,3,9,9,5,9,0,2,2,0]
[null,null,null,null,null,null,null,null,null,null,null,null,null,null,null,null,null,null,4,3,7,5,7,0,0,4,0]
[null,null,null,null,null,null,null,null,null,null,null,null,null,null,null,null,null,null,6,4,5,5,6,4,0,0,0]
[null,null,null,null,null,null,null,null,null,null,null,null,null,null,null,null,null,null,5,9,5,5,9,0,4,0,0]
[null,null,null,null,null,null,null,null,null,null,null,null,null,null,null,null,null,null,5,9,1,5,9,0,4,0,0]
[null,null,null,null,null,null,null,null,null,null,null,null,null,null,null,null,null,null,5,3,7,5,7,0,0,4,0]
[null,null,null,null,null,null,null,null,null,null,null,null,null,null,null,null,null,null,8,5,1,5,8,4,0,0,0]
[null,null,null,null,null,null,null,null,null,null,null,null,null,null,null,null,null,null,7,9,1,5,9,0,4,0,0]
[null,null,null,null,null,null,null,null,null,null,null,null,null,null,null,null,null,null,4,3,7,5,7,0,0,4,0]
[null,null,null,null,null,null,null,null,null,null,null,null,null,null,null,null,null,null,6,1,4,5,6,4,0,0,0]
[null,null,null,null,null,null,null,null,null,null,null,null,null,null,null,null,null,null,1,4,1,5,5,0,0,0,4]
[null,null,null,null,null,null,null,null,null,null,null,null,null,null,null,null,null,null,2,2,6,5,6,0,0,4,0]
[null,null,null,null,null,null,null,null,null,null,null,null,null,null,null,null,null,null,3,3,8,5,8,0,0,4,0]
[]
[]
[]
[]
[]
[null,null,null,null,null,null,null,null,null,null,null,null,null,null,null,null,null,null,4,6,7,5,7,0,0,4,0]
[null,null,null,null,null,null,null,null,null,null,null,null,null,null,null,null,null,null,5,9,6,5,9,0,4,0,0]
[null,null,null,null,null,null,null,null,null,null,null,null,null,null,null,null,null,null,4,3,5,5,5,0,0,2,2]
[null,null,null,null,null,null,null,null,null,null,null,null,null,null,null,null,null,null,8,3,4,5,8,4,0,0,0]
[null,null,null,null,null,null,null,null,null,null,null,null,null,null,null,null,null,null,1,9,5,5,9,0,4,0,0]
[null,null,null,null,null,null,null,null,null,null,null,null,null,null,null,null,null,null,6,4,6,5,6,2,0,2,0]
[null,null,null,null,null,null,null,null,null,null,null,null,null,null,null,null,null,null,3,3,1,5,5,0,0,0,4]
[null,null,null,null,null,null,null,null,null,null,null,null,null,null,null,null,null,null,7,5,1,5,7,4,0,0,0]
[null,null,null,null,null,null,null,null,null,null,null,null,null,null,null,null,null,null,3,2,8,5,8,0,0,4,0]
[null,null,null,null,null,null,null,null,null,null,null,null,null,null,null,null,null,null,7,5,7,5,7,2,0,2,0]
[null,null,null,null,null,null,null,null,null,null,null,null,null,null,null,null,null,null,6,9,1,5,9,0,4,0,0]
[null,null,null,null,null,null,null,null,null,null,null,null,null,null,null,null,null,null,5,1,1,5,5,2,0,0,2]
[null,null,null,null,null,null,null,null,null,null,null,null,null,null,null,null,null,null,2,9,7,5,9,0,4,0,0]
[null,null,null,null,null,null,null,null,null,null,null,null,null,null,null,null,null,null,5,3,7,5,7,0,0,4,0]
[null,null,null,null,null,null,null,null,null,null,null,null,null,null,null,null,null,null,9,4,9,5,9,2,0,2,0]
[]
[]
[]
[]
[]
[null,null,null,null,null,null,null,null,null,null,null,null,null,null,null,null,null,null,7,1,8,5,8,0,0,4,0]
[null,null,null,null,null,null,null,null,null,null,null,null,null,null,null,null,null,null,7,3,7,5,7,2,0,2,0]
[null,null,null,null,null,null,null,null,null,null,null,null,null,null,null,null,null,null,5,3,7,5,7,0,0,4,0]
[null,null,null,null,null,null,null,null,null,null,null,null,null,null,null,null,null,null,5,9,6,5,9,0,4,0,0]
[null,null,null,null,null,null,null,null,null,null,null,null,null,null,null,null,null,null,1,3,5,5,5,0,0,2,2]
[null,null,null,null,null,null,null,null,null,null,null,null,null,null,null,null,null,null,8,6,7,5,8,4,0,0,0]
[null,null,null,null,null,null,null,null,null,null,null,null,null,null,null,null,null,null,6,2,5,5,6,4,0,0,0]
[null,null,null,null,null,null,null,null,null,null,null,null,null,null,null,null,null,null,9,4,7,5,9,4,0,0,0]
[null,null,null,null,null,null,null,null,null,null,null,null,null,null,null,null,null,null,3,5,9,5,9,0,0,4,0]
[null,null,null,null,null,null,null,null,null,null,null,null,null,null,null,null,null,null,3,3,4,5,5,0,0,0,4]
[null,null,null,null,null,null,null,null,null,null,null,null,null,null,null,null,null,null,4,9,1,5,9,0,4,0,0]
[null,null,null,null,null,null,null,null,null,null,null,null,null,null,null,null,null,null,5,4,1,5,5,2,0,0,2]
[null,null,null,null,null,null,null,null,null,null,null,null,null,null,null,null,null,null,6,5,1,5,6,4,0,0,0]
[null,null,null,null,null,null,null,null,null,null,null,null,null,null,null,null,null,null,4,9,6,5,9,0,4,0,0]
[null,null,null,null,null,null,null,null,null,null,null,null,null,null,null,null,null,null,2,9,1,5,9,0,4,0,0]
[]
[]
[]
[]
[]
[null,null,null,null,null,null,null,null,null,null,null,null,null,null,null,null,null,null,3,3,7,5,7,0,0,4,0]
[null,null,null,null,null,null,null,null,null,null,null,null,null,null,null,null,null,null,7,1,6,5,7,4,0,0,0]
[null,null,null,null,null,null,null,null,null,null,null,null,null,null,null,null,null,null,3,3,9,5,9,0,0,4,0]
[null,null,null,null,null,null,null,null,null,null,null,null,null,null,null,null,null,null,8,9,1,5,9,0,4,0,0]
[null,null,null,null,null,null,null,null,null,null,null,null,null,null,null,null,null,null,4,3,1,5,5,0,0,0,4]
[null,null,null,null,null,null,null,null,null,null,null,null,null,null,null,null,null,null,5,5,6,5,6,0,0,4,0]
[null,null,null,null,null,null,null,null,null,null,null,null,null,null,null,null,null,null,6,4,4,5,6,4,0,0,0]
[null,null,null,null,null,null,null,null,null,null,null,null,null,null,null,null,null,null,2,9,5,5,9,0,4,0,0]
[null,null,null,null,null,null,null,null,null,null,null,null,null,null,null,null,null,null,9,2,5,5,9,4,0,0,0]
[null,null,null,null,null,null,null,null,null,null,null,null,null,null,null,null,null,null,1,6,7,5,7,0,0,4,0]
[null,null,null,null,null,null,null,null,null,null,null,null,null,null,null,null,null,null,5,9,7,5,9,0,4,0,0]
[null,null,null,null,null,null,null,null,null,null,null,null,null,null,null,null,null,null,5,9,1,5,9,0,4,0,0]
[null,null,null,null,null,null,null,null,null,null,null,null,null,null,null,null,null,null,7,4,1,5,7,4,0,0,0]
[null,null,null,null,null,null,null,null,null,null,null,null,null,null,null,null,null,null,6,3,8,5,8,0,0,4,0]
[null,null,null,null,null,null,null,null,null,null,null,null,null,null,null,null,null,null,4,5,7,5,7,0,0,4,0]
[]
[]
[]
[]
[]
[null,null,null,null,null,null,null,null,null,null,null,null,null,null,null,null,null,null,4,3,7,5,7,0,0,4,0]
[null,null,null,null,null,null,null,null,null,null,null,null,null,null,null,null,null,null,7,3,1,5,7,4,0,0,0]
[null,null,null,null,null,null,null,null,null,null,null,null,null,null,null,null,null,null,2,4,1,5,5,0,0,0,4]
[null,null,null,null,null,null,null,null,null,null,null,null,null,null,null,null,null,null,6,5,9,5,9,0,0,4,0]
[null,null,null,null,null,null,null,null,null,null,null,null,null,null,null,null,null,null,5,3,7,5,7,0,0,4,0]
[null,null,null,null,null,null,null,null,null,null,null,null,null,null,null,null,null,null,5,3,7,5,7,0,0,4,0]
[null,null,null,null,null,null,null,null,null,null,null,null,null,null,null,null,null,null,1,9,6,5,9,0,4,0,0]
[null,null,null,null,null,null,null,null,null,null,null,null,null,null,null,null,null,null,7,1,4,5,7,4,0,0,0]
[null,null,null,null,null,null,null,null,null,null,null,null,null,null,null,null,null,null,6,9,5,5,9,0,4,0,0]
[null,null,null,null,null,null,null,null,null,null,null,null,null,null,null,null,null,null,5,9,6,5,9,0,4,0,0]
[null,null,null,null,null,null,null,null,null,null,null,null,null,null,null,null,null,null,8,5,7,5,8,4,0,0,0]
[null,null,null,null,null,null,null,null,null,null,null,null,null,null,null,null,null,null,3,4,1,5,5,0,0,0,4]
[null,null,null,null,null,null,null,null,null,null,null,null,null,null,null,null,null,null,9,6,1,5,9,4,0,0,0]
[null,null,null,null,null,null,null,null,null,null,null,null,null,null,null,null,null,null,3,9,5,5,9,0,4,0,0]
[null,null,null,null,null,null,null,null,null,null,null,null,null,null,null,null,null,null,4,2,8,5,8,0,0,4,0]
[]
[]
[]
[]
[]
[null,null,null,null,null,null,null,null,null,null,null,null,null,null,null,null,null,null,4,3,7,5,7,0,0,4,0]
[null,null,null,null,null,null,null,null,null,null,null,null,null,null,null,null,null,null,5,2,6,5,6,0,0,4,0]
[null,null,null,null,null,null,null,null,null,null,null,null,null,null,null,null,null,null,7,5,7,5,7,2,0,2,0]
[null,null,null,null,null,null,null,null,null,null,null,null,null,null,null,null,null,null,6,9,1,5,9,0,4,0,0]
[null,null,null,null,null,null,null,null,null,null,null,null,null,null,null,null,null,null,5,3,1,5,5,2,0,0,2]
[null,null,null,null,null,null,null,null,null,null,null,null,null,null,null,null,null,null,3,1,9,5,9,0,0,4,0]
[null,null,null,null,null,null,null,null,null,null,null,null,null,null,null,null,null,null,8,5,7,5,8,4,0,0,0]
[null,null,null,null,null,null,null,null,null,null,null,null,null,null,null,null,null,null,9,4,8,5,9,4,0,0,0]
[null,null,null,null,null,null,null,null,null,null,null,null,null,null,null,null,null,null,2,3,5,5,5,0,0,2,2]
[null,null,null,null,null,null,null,null,null,null,null,null,null,null,null,null,null,null,7,6,1,5,7,4,0,0,0]
[null,null,null,null,null,null,null,null,null,null,null,null,null,null,null,null,null,null,5,4,1,5,5,2,0,0,2]
[null,null,null,null,null,null,null,null,null,null,null,null,null,null,null,null,null,null,3,3,6,5,6,0,0,4,0]
[null,null,null,null,null,null,null,null,null,null,null,null,null,null,null,null,null,null,4,9,5,5,9,0,4,0,0]
[null,null,null,null,null,null,null,null,null,null,null,null,null,null,null,null,null,null,1,9,7,5,9,0,4,0,0]
[null,null,null,null,null,null,null,null,null,null,null,null,null,null,null,null,null,null,6,9,4,5,9,0,4,0,0]
[]
[]
[]
[]
[]
[null,null,null,null,null,null,null,null,null,null,null,null,null,null,null,null,null,null,4,9,5,5,9,0,4,0,0]
[null,null,null,null,null,null,null,null,null,null,null,null,null,null,null,null,null,null,7,3,5,5,7,4,0,0,0]
[null,null,null,null,null,null,null,null,null,null,null,null,null,null,null,null,null,null,3,6,1,5,6,0,4,0,0]
[null,null,null,null,null,null,null,null,null,null,null,null,null,null,null,null,null,null,1,3,7,5,7,0,0,4,0]
[null,null,null,null,null,null,null,null,null,null,null,null,null,null,null,null,null,null,5,9,1,5,9,0,4,0,0]
[null,null,null,null,null,null,null,null,null,null,null,null,null,null,null,null,null,null,9,3,7,5,9,4,0,0,0]
[null,null,null,null,null,null,null,null,null,null,null,null,null,null,null,null,null,null,5,5,6,5,6,0,0,4,0]
[null,null,null,null,null,null,null,null,null,null,null,null,null,null,null,null,null,null,4,4,7,5,7,0,0,4,0]
[null,null,null,null,null,null,null,null,null,null,null,null,null,null,null,null,null,null,8,9,7,5,9,0,4,0,0]
[null,null,null,null,null,null,null,null,null,null,null,null,null,null,null,null,null,null,2,2,1,5,5,0,0,0,4]
[null,null,null,null,null,null,null,null,null,null,null,null,null,null,null,null,null,null,5,9,4,5,9,0,4,0,0]
[null,null,null,null,null,null,null,null,null,null,null,null,null,null,null,null,null,null,3,5,1,5,5,0,2,0,2]
[null,null,null,null,null,null,null,null,null,null,null,null,null,null,null,null,null,null,6,4,8,5,8,0,0,4,0]
[null,null,null,null,null,null,null,null,null,null,null,null,null,null,null,null,null,null,6,1,6,5,6,2,0,2,0]
[null,null,null,null,null,null,null,null,null,null,null,null,null,null,null,null,null,null,7,3,9,5,9,0,0,4,0]
[]
[]
[]
[]
[]
[null,null,null,null,null,null,null,null,null,null,null,null,null,null,null,null,null,null,5,6,5,5,6,0,4,0,0]
[null,null,null,null,null,null,null,null,null,null,null,null,null,null,null,null,null,null,7,5,6,5,7,4,0,0,0]
[null,null,null,null,null,null,null,null,null,null,null,null,null,null,null,null,null,null,4,3,1,5,5,0,0,0,4]
[null,null,null,null,null,null,null,null,null,null,null,null,null,null,null,null,null,null,7,9,4,5,9,0,4,0,0]
[null,null,null,null,null,null,null,null,null,null,null,null,null,null,null,null,null,null,8,4,9,5,9,0,0,4,0]
[null,null,null,null,null,null,null,null,null,null,null,null,null,null,null,null,null,null,5,3,6,5,6,0,0,4,0]
[null,null,null,null,null,null,null,null,null,null,null,null,null,null,null,null,null,null,5,9,7,5,9,0,4,0,0]
[null,null,null,null,null,null,null,null,null,null,null,null,null,null,null,null,null,null,1,9,8,5,9,0,4,0,0]
[null,null,null,null,null,null,null,null,null,null,null,null,null,null,null,null,null,null,2,3,7,5,7,0,0,4,0]
[null,null,null,null,null,null,null,null,null,null,null,null,null,null,null,null,null,null,3,9,5,5,9,0,4,0,0]
[null,null,null,null,null,null,null,null,null,null,null,null,null,null,null,null,null,null,3,4,7,5,7,0,0,4,0]
[null,null,null,null,null,null,null,null,null,null,null,null,null,null,null,null,null,null,4,5,7,5,7,0,0,4,0]
[null,null,null,null,null,null,null,null,null,null,null,null,null,null,null,null,null,null,9,1,1,5,9,4,0,0,0]
[null,null,null,null,null,null,null,null,null,null,null,null,null,null,null,null,null,null,6,3,1,5,6,4,0,0,0]
[null,null,null,null,null,null,null,null,null,null,null,null,null,null,null,null,null,null,6,2,1,5,6,4,0,0,0]
[]
[]
[]
[]
[]
[null,null,null,null,null,null,null,null,null,null,null,null,null,null,null,null,null,null,6,3,1,5,6,4,0,0,0]
[null,null,null,null,null,null,null,null,null,null,null,null,null,null,null,null,null,null,5,6,8,5,8,0,0,4,0]
[null,null,null,null,null,null,null,null,null,null,null,null,null,null,null,null,null,null,5,9,7,5,9,0,4,0,0]
[null,null,null,null,null,null,null,null,null,null,null,null,null,null,null,null,null,null,2,9,7,5,9,0,4,0,0]
[null,null,null,null,null,null,null,null,null,null,null,null,null,null,null,null,null,null,7,1,1,5,7,4,0,0,0]
[null,null,null,null,null,null,null,null,null,null,null,null,null,null,null,null,null,null,3,3,4,5,5,0,0,0,4]
[null,null,null,null,null,null,null,null,null,null,null,null,null,null,null,null,null,null,8,3,9,5,9,0,0,4,0]
[null,null,null,null,null,null,null,null,null,null,null,null,null,null,null,null,null,null,9,9,5,5,9,2,2,0,0]
[null,null,null,null,null,null,null,null,null,null,null,null,null,null,null,null,null,null,7,4,1,5,7,4,0,0,0]
[null,null,null,null,null,null,null,null,null,null,null,null,null,null,null,null,null,null,4,4,7,5,7,0,0,4,0]
[null,null,null,null,null,null,null,null,null,null,null,null,null,null,null,null,null,null,5,2,5,5,5,1,0,1,1]
[null,null,null,null,null,null,null,null,null,null,null,null,null,null,null,null,null,null,4,5,6,5,6,0,0,4,0]
[null,null,null,null,null,null,null,null,null,null,null,null,null,null,null,null,null,null,6,3,1,5,6,4,0,0,0]
[null,null,null,null,null,null,null,null,null,null,null,null,null,null,null,null,null,null,1,5,7,5,7,0,0,4,0]
[null,null,null,null,null,null,null,null,null,null,null,null,null,null,null,null,null,null,3,9,6,5,9,0,4,0,0]
[]
[]
[]
[]
[]
[null,null,null,null,null,null,null,null,null,null,null,null,null,null,null,null,null,null,5,1,1,5,5,2,0,0,2]
[null,null,null,null,null,null,null,null,null,null,null,null,null,null,null,null,null,null,2,3,8,5,8,0,0,4,0]
[null,null,null,null,null,null,null,null,null,null,null,null,null,null,null,null,null,null,1,4,7,5,7,0,0,4,0]
[null,null,null,null,null,null,null,null,null,null,null,null,null,null,null,null,null,null,4,5,5,5,5,0,1,1,1]
[null,null,null,null,null,null,null,null,null,null,null,null,null,null,null,null,null,null,6,3,1,5,6,4,0,0,0]
[null,null,null,null,null,null,null,null,null,null,null,null,null,null,null,null,null,null,7,5,7,5,7,2,0,2,0]
[null,null,null,null,null,null,null,null,null,null,null,null,null,null,null,null,null,null,9,3,6,5,9,4,0,0,0]
[null,null,null,null,null,null,null,null,null,null,null,null,null,null,null,null,null,null,4,9,7,5,9,0,4,0,0]
[null,null,null,null,null,null,null,null,null,null,null,null,null,null,null,null,null,null,5,9,9,5,9,0,2,2,0]
[null,null,null,null,null,null,null,null,null,null,null,null,null,null,null,null,null,null,6,2,6,5,6,2,0,2,0]
[null,null,null,null,null,null,null,null,null,null,null,null,null,null,null,null,null,null,5,3,7,5,7,0,0,4,0]
[null,null,null,null,null,null,null,null,null,null,null,null,null,null,null,null,null,null,3,9,5,5,9,0,4,0,0]
[null,null,null,null,null,null,null,null,null,null,null,null,null,null,null,null,null,null,8,4,1,5,8,4,0,0,0]
[null,null,null,null,null,null,null,null,null,null,null,null,null,null,null,null,null,null,3,6,4,5,6,0,4,0,0]
[null,null,null,null,null,null,null,null,null,null,null,null,null,null,null,null,null,null,7,9,1,5,9,0,4,0,0]
[]
[]
[]
[]
[]
[null,null,null,null,null,null,null,null,null,null,null,null,null,null,null,null,null,null,2,9,1,5,9,0,4,0,0]
[null,null,null,null,null,null,null,null,null,null,null,null,null,null,null,null,null,null,5,4,1,5,5,2,0,0,2]
[null,null,null,null,null,null,null,null,null,null,null,null,null,null,null,null,null,null,1,6,6,5,6,0,2,2,0]
[null,null,null,null,null,null,null,null,null,null,null,null,null,null,null,null,null,null,3,1,7,5,7,0,0,4,0]
[null,null,null,null,null,null,null,null,null,null,null,null,null,null,null,null,null,null,7,9,8,5,9,0,4,0,0]
[null,null,null,null,null,null,null,null,null,null,null,null,null,null,null,null,null,null,3,5,6,5,6,0,0,4,0]
[null,null,null,null,null,null,null,null,null,null,null,null,null,null,null,null,null,null,4,9,1,5,9,0,4,0,0]
[null,null,null,null,null,null,null,null,null,null,null,null,null,null,null,null,null,null,6,5,7,5,7,0,0,4,0]
[null,null,null,null,null,null,null,null,null,null,null,null,null,null,null,null,null,null,7,3,7,5,7,2,0,2,0]
[null,null,null,null,null,null,null,null,null,null,null,null,null,null,null,null,null,null,5,9,9,5,9,0,2,2,0]
[null,null,null,null,null,null,null,null,null,null,null,null,null,null,null,null,null,null,4,4,5,5,5,0,0,2,2]
[null,null,null,null,null,null,null,null,null,null,null,null,null,null,null,null,null,null,5,3,4,5,5,2,0,0,2]
[null,null,null,null,null,null,null,null,null,null,null,null,null,null,null,null,null,null,8,3,1,5,8,4,0,0,0]
[null,null,null,null,null,null,null,null,null,null,null,null,null,null,null,null,null,null,6,2,7,5,7,0,0,4,0]
[null,null,null,null,null,null,null,null,null,null,null,null,null,null,null,null,null,null,9,3,5,5,9,4,0,0,0]
[]
[]
[]
[]
[]
[null,null,null,null,null,null,null,null,null,null,null,null,null,null,null,null,null,null,4,1,6,5,6,0,0,4,0]
[null,null,null,null,null,null,null,null,null,null,null,null,null,null,null,null,null,null,7,3,4,5,7,4,0,0,0]
[null,null,null,null,null,null,null,null,null,null,null,null,null,null,null,null,null,null,7,2,7,5,7,2,0,2,0]
[null,null,null,null,null,null,null,null,null,null,null,null,null,null,null,null,null,null,9,9,1,5,9,2,2,0,0]
[null,null,null,null,null,null,null,null,null,null,null,null,null,null,null,null,null,null,4,3,6,5,6,0,0,4,0]
[null,null,null,null,null,null,null,null,null,null,null,null,null,null,null,null,null,null,5,5,5,5,5,1,1,1,1]
[null,null,null,null,null,null,null,null,null,null,null,null,null,null,null,null,null,null,5,3,1,5,5,2,0,0,2]
[null,null,null,null,null,null,null,null,null,null,null,null,null,null,null,null,null,null,6,5,5,5,6,4,0,0,0]
[null,null,null,null,null,null,null,null,null,null,null,null,null,null,null,null,null,null,3,9,9,5,9,0,2,2,0]
[null,null,null,null,null,null,null,null,null,null,null,null,null,null,null,null,null,null,3,3,8,5,8,0,0,4,0]
[null,null,null,null,null,null,null,null,null,null,null,null,null,null,null,null,null,null,6,9,7,5,9,0,4,0,0]
[null,null,null,null,null,null,null,null,null,null,null,null,null,null,null,null,null,null,1,4,1,5,5,0,0,0,4]
[null,null,null,null,null,null,null,null,null,null,null,null,null,null,null,null,null,null,2,9,7,5,9,0,4,0,0]
[null,null,null,null,null,null,null,null,null,null,null,null,null,null,null,null,null,null,5,6,1,5,6,0,4,0,0]
[null,null,null,null,null,null,null,null,null,null,null,null,null,null,null,null,null,null,8,4,7,5,8,4,0,0,0]
[]
[]
[]
[]
[]
[null,null,null,null,null,null,null,null,null,null,null,null,null,null,null,null,null,null,4,9,1,5,9,0,4,0,0]
[null,null,null,null,null,null,null,null,null,null,null,null,null,null,null,null,null,null,3,9,4,5,9,0,4,0,0]
[null,null,null,null,null,null,null,null,null,null,null,null,null,null,null,null,null,null,8,9,7,5,9,0,4,0,0]
[null,null,null,null,null,null,null,null,null,null,null,null,null,null,null,null,null,null,5,6,9,5,9,0,0,4,0]
[null,null,null,null,null,null,null,null,null,null,null,null,null,null,null,null,null,null,9,4,5,5,9,4,0,0,0]
[null,null,null,null,null,null,null,null,null,null,null,null,null,null,null,null,null,null,6,1,7,5,7,0,0,4,0]
[null,null,null,null,null,null,null,null,null,null,null,null,null,null,null,null,null,null,5,5,7,5,7,0,0,4,0]
[null,null,null,null,null,null,null,null,null,null,null,null,null,null,null,null,null,null,7,2,1,5,7,4,0,0,0]
[null,null,null,null,null,null,null,null,null,null,null,null,null,null,null,null,null,null,4,4,7,5,7,0,0,4,0]
[null,null,null,null,null,null,null,null,null,null,null,null,null,null,null,null,null,null,2,3,5,5,5,0,0,2,2]
[null,null,null,null,null,null,null,null,null,null,null,null,null,null,null,null,null,null,7,5,1,5,7,4,0,0,0]
[null,null,null,null,null,null,null,null,null,null,null,null,null,null,null,null,null,null,1,3,1,5,5,0,0,0,4]
[null,null,null,null,null,null,null,null,null,null,null,null,null,null,null,null,null,null,6,9,6,5,9,0,4,0,0]
[null,null,null,null,null,null,null,null,null,null,null,null,null,null,null,null,null,null,3,3,8,5,8,0,0,4,0]
[null,null,null,null,null,null,null,null,null,null,null,null,null,null,null,null,null,null,5,3,6,5,6,0,0,4,0]
[]
[]
[]
[]
[]
[null,null,null,null,null,null,null,null,null,null,null,null,null,null,null,null,null,null,7,3,1,5,7,4,0,0,0]
[null,null,null,null,null,null,null,null,null,null,null,null,null,null,null,null,null,null,5,9,1,5,9,0,4,0,0]
[null,null,null,null,null,null,null,null,null,null,null,null,null,null,null,null,null,null,4,3,1,5,5,0,0,0,4]
[null,null,null,null,null,null,null,null,null,null,null,null,null,null,null,null,null,null,9,3,7,5,9,4,0,0,0]
[null,null,null,null,null,null,null,null,null,null,null,null,null,null,null,null,null,null,6,3,7,5,7,0,0,4,0]
[null,null,null,null,null,null,null,null,null,null,null,null,null,null,null,null,null,null,5,2,6,5,6,0,0,4,0]
[null,null,null,null,null,null,null,null,null,null,null,null,null,null,null,null,null,null,1,4,9,5,9,0,0,4,0]
[null,null,null,null,null,null,null,null,null,null,null,null,null,null,null,null,null,null,3,9,7,5,9,0,4,0,0]
[null,null,null,null,null,null,null,null,null,null,null,null,null,null,null,null,null,null,7,4,5,5,7,4,0,0,0]
[null,null,null,null,null,null,null,null,null,null,null,null,null,null,null,null,null,null,4,5,8,5,8,0,0,4,0]
[null,null,null,null,null,null,null,null,null,null,null,null,null,null,null,null,null,null,2,9,5,5,9,0,4,0,0]
[null,null,null,null,null,null,null,null,null,null,null,null,null,null,null,null,null,null,5,6,4,5,6,0,4,0,0]
[null,null,null,null,null,null,null,null,null,null,null,null,null,null,null,null,null,null,6,1,7,5,7,0,0,4,0]
[null,null,null,null,null,null,null,null,null,null,null,null,null,null,null,null,null,null,3,5,6,5,6,0,0,4,0]
[null,null,null,null,null,null,null,null,null,null,null,null,null,null,null,null,null,null,8,9,1,5,9,0,4,0,0]
[]
[]
[]
[]
[]
[null,null,null,null,null,null,null,null,null,null,null,null,null,null,null,null,null,null,8,3,7,5,8,4,0,0,0]
[null,null,null,null,null,null,null,null,null,null,null,null,null,null,null,null,null,null,5,5,4,5,5,1,1,0,1]
[null,null,null,null,null,null,null,null,null,null,null,null,null,null,null,null,null,null,5,5,7,5,7,0,0,4,0]
[null,null,null,null,null,null,null,null,null,null,null,null,null,null,null,null,null,null,3,9,1,5,9,0,4,0,0]
[null,null,null,null,null,null,null,null,null,null,null,null,null,null,null,null,null,null,6,3,7,5,7,0,0,4,0]
[null,null,null,null,null,null,null,null,null,null,null,null,null,null,null,null,null,null,7,1,9,5,9,0,0,4,0]
[null,null,null,null,null,null,null,null,null,null,null,null,null,null,null,null,null,null,7,4,7,5,7,2,0,2,0]
[null,null,null,null,null,null,null,null,null,null,null,null,null,null,null,null,null,null,6,9,8,5,9,0,4,0,0]
[null,null,null,null,null,null,null,null,null,null,null,null,null,null,null,null,null,null,2,3,5,5,5,0,0,2,2]
[null,null,null,null,null,null,null,null,null,null,null,null,null,null,null,null,null,null,9,9,1,5,9,2,2,0,0]
[null,null,null,null,null,null,null,null,null,null,null,null,null,null,null,null,null,null,3,9,1,5,9,0,4,0,0]
[null,null,null,null,null,null,null,null,null,null,null,null,null,null,null,null,null,null,5,4,5,5,5,1,0,1,1]
[null,null,null,null,null,null,null,null,null,null,null,null,null,null,null,null,null,null,4,2,6,5,6,0,0,4,0]
[null,null,null,null,null,null,null,null,null,null,null,null,null,null,null,null,null,null,4,6,6,5,6,0,2,2,0]
[null,null,null,null,null,null,null,null,null,null,null,null,null,null,null,null,null,null,1,3,1,5,5,0,0,0,4]
[]
[]
[]
[]
[]
[null,null,null,null,null,null,null,null,null,null,null,null,null,null,null,null,null,null,4,2,1,5,5,0,0,0,4]
[null,null,null,null,null,null,null,null,null,null,null,null,null,null,null,null,null,null,6,1,1,5,6,4,0,0,0]
[null,null,null,null,null,null,null,null,null,null,null,null,null,null,null,null,null,null,4,9,5,5,9,0,4,0,0]
[null,null,null,null,null,null,null,null,null,null,null,null,null,null,null,null,null,null,6,9,1,5,9,0,4,0,0]
[null,null,null,null,null,null,null,null,null,null,null,null,null,null,null,null,null,null,3,4,6,5,6,0,0,4,0]
[null,null,null,null,null,null,null,null,null,null,null,null,null,null,null,null,null,null,9,4,7,5,9,4,0,0,0]
[null,null,null,null,null,null,null,null,null,null,null,null,null,null,null,null,null,null,7,5,5,5,7,4,0,0,0]
[null,null,null,null,null,null,null,null,null,null,null,null,null,null,null,null,null,null,5,3,7,5,7,0,0,4,0]
[null,null,null,null,null,null,null,null,null,null,null,null,null,null,null,null,null,null,5,3,6,5,6,0,0,4,0]
[null,null,null,null,null,null,null,null,null,null,null,null,null,null,null,null,null,null,5,5,4,5,5,1,1,0,1]
[null,null,null,null,null,null,null,null,null,null,null,null,null,null,null,null,null,null,2,3,7,5,7,0,0,4,0]
[null,null,null,null,null,null,null,null,null,null,null,null,null,null,null,null,null,null,1,3,9,5,9,0,0,4,0]
[null,null,null,null,null,null,null,null,null,null,null,null,null,null,null,null,null,null,7,9,1,5,9,0,4,0,0]
[null,null,null,null,null,null,null,null,null,null,null,null,null,null,null,null,null,null,3,9,7,5,9,0,4,0,0]
[null,null,null,null,null,null,null,null,null,null,null,null,null,null,null,null,null,null,8,6,8,5,8,2,0,2,0]
[]
[]
[]
[]
[]
[null,null,null,null,null,null,null,null,null,null,null,null,null,null,null,null,null,null,1,9,7,5,9,0,4,0,0]
[null,null,null,null,null,null,null,null,null,null,null,null,null,null,null,null,null,null,5,3,1,5,5,2,0,0,2]
[null,null,null,null,null,null,null,null,null,null,null,null,null,null,null,null,null,null,7,4,1,5,7,4,0,0,0]
[null,null,null,null,null,null,null,null,null,null,null,null,null,null,null,null,null,null,4,3,6,5,6,0,0,4,0]
[null,null,null,null,null,null,null,null,null,null,null,null,null,null,null,null,null,null,5,9,7,5,9,0,4,0,0]
[null,null,null,null,null,null,null,null,null,null,null,null,null,null,null,null,null,null,3,6,5,5,6,0,4,0,0]
[null,null,null,null,null,null,null,null,null,null,null,null,null,null,null,null,null,null,4,9,1,5,9,0,4,0,0]
[null,null,null,null,null,null,null,null,null,null,null,null,null,null,null,null,null,null,8,4,6,5,8,4,0,0,0]
[null,null,null,null,null,null,null,null,null,null,null,null,null,null,null,null,null,null,3,5,5,5,5,0,1,1,1]
[null,null,null,null,null,null,null,null,null,null,null,null,null,null,null,null,null,null,9,2,4,5,9,4,0,0,0]
[null,null,null,null,null,null,null,null,null,null,null,null,null,null,null,null,null,null,5,5,9,5,9,0,0,4,0]
[null,null,null,null,null,null,null,null,null,null,null,null,null,null,null,null,null,null,7,3,7,5,7,2,0,2,0]
[null,null,null,null,null,null,null,null,null,null,null,null,null,null,null,null,null,null,6,1,1,5,6,4,0,0,0]
[null,null,null,null,null,null,null,null,null,null,null,null,null,null,null,null,null,null,6,9,8,5,9,0,4,0,0]
[null,null,null,null,null,null,null,null,null,null,null,null,null,null,null,null,null,null,2,3,7,5,7,0,0,4,0]
[]
[]
[]
[]
[]
[null,null,null,null,null,null,null,null,null,null,null,null,null,null,null,null,null,null,7,9,7,5,9,0,4,0,0]
[null,null,null,null,null,null,null,null,null,null,null,null,null,null,null,null,null,null,9,3,4,5,9,4,0,0,0]
[null,null,null,null,null,null,null,null,null,null,null,null,null,null,null,null,null,null,3,5,1,5,5,0,2,0,2]
[null,null,null,null,null,null,null,null,null,null,null,null,null,null,null,null,null,null,4,4,5,5,5,0,0,2,2]
[null,null,null,null,null,null,null,null,null,null,null,null,null,null,null,null,null,null,8,9,8,5,9,0,4,0,0]
[null,null,null,null,null,null,null,null,null,null,null,null,null,null,null,null,null,null,4,9,1,5,9,0,4,0,0]
[null,null,null,null,null,null,null,null,null,null,null,null,null,null,null,null,null,null,5,5,7,5,7,0,0,4,0]
[null,null,null,null,null,null,null,null,null,null,null,null,null,null,null,null,null,null,5,1,1,5,5,2,0,0,2]
[null,null,null,null,null,null,null,null,null,null,null,null,null,null,null,null,null,null,6,3,5,5,6,4,0,0,0]
[null,null,null,null,null,null,null,null,null,null,null,null,null,null,null,null,null,null,1,2,9,5,9,0,0,4,0]
[null,null,null,null,null,null,null,null,null,null,null,null,null,null,null,null,null,null,7,6,6,5,7,4,0,0,0]
[null,null,null,null,null,null,null,null,null,null,null,null,null,null,null,null,null,null,3,3,6,5,6,0,0,4,0]
[null,null,null,null,null,null,null,null,null,null,null,null,null,null,null,null,null,null,6,9,7,5,9,0,4,0,0]
[null,null,null,null,null,null,null,null,null,null,null,null,null,null,null,null,null,null,2,3,7,5,7,0,0,4,0]
[null,null,null,null,null,null,null,null,null,null,null,null,null,null,null,null,null,null,5,4,1,5,5,2,0,0,2]
[]
[]
[]
[]
[]
[null,null,null,null,null,null,null,null,null,null,null,null,null,null,null,null,null,null,2,5,5,5,5,0,1,1,1]
[null,null,null,null,null,null,null,null,null,null,null,null,null,null,null,null,null,null,8,6,1,5,8,4,0,0,0]
[null,null,null,null,null,null,null,null,null,null,null,null,null,null,null,null,null,null,1,5,6,5,6,0,0,4,0]
[null,null,null,null,null,null,null,null,null,null,null,null,null,null,null,null,null,null,7,9,8,5,9,0,4,0,0]
[null,null,null,null,null,null,null,null,null,null,null,null,null,null,null,null,null,null,5,3,7,5,7,0,0,4,0]
[null,null,null,null,null,null,null,null,null,null,null,null,null,null,null,null,null,null,5,1,1,5,5,2,0,0,2]
[null,null,null,null,null,null,null,null,null,null,null,null,null,null,null,null,null,null,9,3,7,5,9,4,0,0,0]
[null,null,null,null,null,null,null,null,null,null,null,null,null,null,null,null,null,null,6,4,6,5,6,2,0,2,0]
[null,null,null,null,null,null,null,null,null,null,null,null,null,null,null,null,null,null,7,3,4,5,7,4,0,0,0]
[null,null,null,null,null,null,null,null,null,null,null,null,null,null,null,null,null,null,3,2,7,5,7,0,0,4,0]
[null,null,null,null,null,null,null,null,null,null,null,null,null,null,null,null,null,null,3,3,1,5,5,0,0,0,4]
[null,null,null,null,null,null,null,null,null,null,null,null,null,null,null,null,null,null,5,9,1,5,9,0,4,0,0]
[null,null,null,null,null,null,null,null,null,null,null,null,null,null,null,null,null,null,4,9,9,5,9,0,2,2,0]
[null,null,null,null,null,null,null,null,null,null,null,null,null,null,null,null,null,null,6,4,7,5,7,0,0,4,0]
[null,null,null,null,null,null,null,null,null,null,null,null,null,null,null,null,null,null,4,9,5,5,9,0,4,0,0]
[]
[]
[]
[]
[]
[null,null,null,null,null,null,null,null,null,null,null,null,null,null,null,null,null,null,4,9,4,5,9,0,4,0,0]
[null,null,null,null,null,null,null,null,null,null,null,null,null,null,null,null,null,null,5,5,1,5,5,1,1,0,1]
[null,null,null,null,null,null,null,null,null,null,null,null,null,null,null,null,null,null,6,3,7,5,7,0,0,4,0]
[null,null,null,null,null,null,null,null,null,null,null,null,null,null,null,null,null,null,8,9,1,5,9,0,4,0,0]
[null,null,null,null,null,null,null,null,null,null,null,null,null,null,null,null,null,null,5,5,7,5,7,0,0,4,0]
[null,null,null,null,null,null,null,null,null,null,null,null,null,null,null,null,null,null,9,3,7,5,9,4,0,0,0]
[null,null,null,null,null,null,null,null,null,null,null,null,null,null,null,null,null,null,5,3,8,5,8,0,0,4,0]
[null,null,null,null,null,null,null,null,null,null,null,null,null,null,null,null,null,null,3,1,1,5,5,0,0,0,4]
[null,null,null,null,null,null,null,null,null,null,null,null,null,null,null,null,null,null,7,9,5,5,9,0,4,0,0]
[null,null,null,null,null,null,null,null,null,null,null,null,null,null,null,null,null,null,6,6,5,5,6,2,2,0,0]
[null,null,null,null,null,null,null,null,null,null,null,null,null,null,null,null,null,null,1,3,6,5,6,0,0,4,0]
[null,null,null,null,null,null,null,null,null,null,null,null,null,null,null,null,null,null,4,4,9,5,9,0,0,4,0]
[null,null,null,null,null,null,null,null,null,null,null,null,null,null,null,null,null,null,2,2,1,5,5,0,0,0,4]
[null,null,null,null,null,null,null,null,null,null,null,null,null,null,null,null,null,null,7,9,7,5,9,0,4,0,0]
[null,null,null,null,null,null,null,null,null,null,null,null,null,null,null,null,null,null,3,4,6,5,6,0,0,4,0]
[]
[]
[]
[]
[]
[null,null,null,null,null,null,null,null,null,null,null,null,null,null,null,null,null,null,7,1,1,5,7,4,0,0,0]
[null,null,null,null,null,null,null,null,null,null,null,null,null,null,null,null,null,null,5,3,4,5,5,2,0,0,2]
[null,null,null,null,null,null,null,null,null,null,null,null,null,null,null,null,null,null,6,9,1,5,9,0,4,0,0]
[null,null,null,null,null,null,null,null,null,null,null,null,null,null,null,null,null,null,4,3,7,5,7,0,0,4,0]
[null,null,null,null,null,null,null,null,null,null,null,null,null,null,null,null,null,null,1,3,7,5,7,0,0,4,0]
[null,null,null,null,null,null,null,null,null,null,null,null,null,null,null,null,null,null,3,9,6,5,9,0,4,0,0]
[null,null,null,null,null,null,null,null,null,null,null,null,null,null,null,null,null,null,9,3,5,5,9,4,0,0,0]
[null,null,null,null,null,null,null,null,null,null,null,null,null,null,null,null,null,null,5,4,7,5,7,0,0,4,0]
[null,null,null,null,null,null,null,null,null,null,null,null,null,null,null,null,null,null,3,9,7,5,9,0,4,0,0]
[null,null,null,null,null,null,null,null,null,null,null,null,null,null,null,null,null,null,5,6,1,5,6,0,4,0,0]
[null,null,null,null,null,null,null,null,null,null,null,null,null,null,null,null,null,null,6,4,8,5,8,0,0,4,0]
[null,null,null,null,null,null,null,null,null,null,null,null,null,null,null,null,null,null,4,5,9,5,9,0,0,4,0]
[null,null,null,null,null,null,null,null,null,null,null,null,null,null,null,null,null,null,2,5,6,5,6,0,0,4,0]
[null,null,null,null,null,null,null,null,null,null,null,null,null,null,null,null,null,null,7,2,5,5,7,4,0,0,0]
[null,null,null,null,null,null,null,null,null,null,null,null,null,null,null,null,null,null,8,9,1,5,9,0,4,0,0]
[]
[]
[]
[]
[]
[null,null,null,null,null,null,null,null,null,null,null,null,null,null,null,null,null,null,9,3,8,5,9,4,0,0,0]
[null,null,null,null,null,null,null,null,null,null,null,null,null,null,null,null,null,null,5,9,7,5,9,0,4,0,0]
[null,null,null,null,null,null,null,null,null,null,null,null,null,null,null,null,null,null,7,9,4,5,9,0,4,0,0]
[null,null,null,null,null,null,null,null,null,null,null,null,null,null,null,null,null,null,8,3,7,5,8,4,0,0,0]
[null,null,null,null,null,null,null,null,null,null,null,null,null,null,null,null,null,null,1,4,1,5,5,0,0,0,4]
[null,null,null,null,null,null,null,null,null,null,null,null,null,null,null,null,null,null,2,2,6,5,6,0,0,4,0]
[null,null,null,null,null,null,null,null,null,null,null,null,null,null,null,null,null,null,3,6,1,5,6,0,4,0,0]
[null,null,null,null,null,null,null,null,null,null,null,null,null,null,null,null,null,null,6,5,1,5,6,4,0,0,0]
[null,null,null,null,null,null,null,null,null,null,null,null,null,null,null,null,null,null,3,5,7,5,7,0,0,4,0]
[null,null,null,null,null,null,null,null,null,null,null,null,null,null,null,null,null,null,4,1,5,5,5,0,0,2,2]
[null,null,null,null,null,null,null,null,null,null,null,null,null,null,null,null,null,null,5,9,7,5,9,0,4,0,0]
[null,null,null,null,null,null,null,null,null,null,null,null,null,null,null,null,null,null,6,3,9,5,9,0,0,4,0]
[null,null,null,null,null,null,null,null,null,null,null,null,null,null,null,null,null,null,5,4,6,5,6,0,0,4,0]
[null,null,null,null,null,null,null,null,null,null,null,null,null,null,null,null,null,null,4,3,5,5,5,0,0,2,2]
[null,null,null,null,null,null,null,null,null,null,null,null,null,null,null,null,null,null,7,9,1,5,9,0,4,0,0]
[]
[]
[]
[]
[]
[null,null,null,null,null,null,null,null,null,null,null,null,null,null,null,null,null,null,8,9,1,5,9,0,4,0,0]
[null,null,null,null,null,null,null,null,null,null,null,null,null,null,null,null,null,null,5,9,6,5,9,0,4,0,0]
[null,null,null,null,null,null,null,null,null,null,null,null,null,null,null,null,null,null,6,5,7,5,7,0,0,4,0]
[null,null,null,null,null,null,null,null,null,null,null,null,null,null,null,null,null,null,4,9,5,5,9,0,4,0,0]
[null,null,null,null,null,null,null,null,null,null,null,null,null,null,null,null,null,null,5,4,7,5,7,0,0,4,0]
[null,null,null,null,null,null,null,null,null,null,null,null,null,null,null,null,null,null,7,9,6,5,9,0,4,0,0]
[null,null,null,null,null,null,null,null,null,null,null,null,null,null,null,null,null,null,1,3,5,5,5,0,0,2,2]
[null,null,null,null,null,null,null,null,null,null,null,null,null,null,null,null,null,null,6,3,9,5,9,0,0,4,0]
[null,null,null,null,null,null,null,null,null,null,null,null,null,null,null,null,null,null,7,3,7,5,7,2,0,2,0]
[null,null,null,null,null,null,null,null,null,null,null,null,null,null,null,null,null,null,4,2,1,5,5,0,0,0,4]
[null,null,null,null,null,null,null,null,null,null,null,null,null,null,null,null,null,null,9,1,4,5,9,4,0,0,0]
[null,null,null,null,null,null,null,null,null,null,null,null,null,null,null,null,null,null,5,3,1,5,5,2,0,0,2]
[null,null,null,null,null,null,null,null,null,null,null,null,null,null,null,null,null,null,2,5,1,5,5,0,2,0,2]
[null,null,null,null,null,null,null,null,null,null,null,null,null,null,null,null,null,null,3,4,7,5,7,0,0,4,0]
[null,null,null,null,null,null,null,null,null,null,null,null,null,null,null,null,null,null,3,6,8,5,8,0,0,4,0]
[]
[]
[]
[]
[]
[null,null,null,null,null,null,null,null,null,null,null,null,null,null,null,null,null,null,5,5,1,5,5,1,1,0,1]
[null,null,null,null,null,null,null,null,null,null,null,null,null,null,null,null,null,null,3,3,5,5,5,0,0,2,2]
[null,null,null,null,null,null,null,null,null,null,null,null,null,null,null,null,null,null,6,3,4,5,6,4,0,0,0]
[null,null,null,null,null,null,null,null,null,null,null,null,null,null,null,null,null,null,8,1,7,5,8,4,0,0,0]
[null,null,null,null,null,null,null,null,null,null,null,null,null,null,null,null,null,null,4,9,7,5,9,0,4,0,0]
[null,null,null,null,null,null,null,null,null,null,null,null,null,null,null,null,null,null,6,9,9,5,9,0,2,2,0]
[null,null,null,null,null,null,null,null,null,null,null,null,null,null,null,null,null,null,1,6,1,5,6,0,4,0,0]
[null,null,null,null,null,null,null,null,null,null,null,null,null,null,null,null,null,null,3,3,7,5,7,0,0,4,0]
[null,null,null,null,null,null,null,null,null,null,null,null,null,null,null,null,null,null,7,4,1,5,7,4,0,0,0]
[null,null,null,null,null,null,null,null,null,null,null,null,null,null,null,null,null,null,4,2,6,5,6,0,0,4,0]
[null,null,null,null,null,null,null,null,null,null,null,null,null,null,null,null,null,null,7,4,7,5,7,2,0,2,0]
[null,null,null,null,null,null,null,null,null,null,null,null,null,null,null,null,null,null,5,9,8,5,9,0,4,0,0]
[null,null,null,null,null,null,null,null,null,null,null,null,null,null,null,null,null,null,9,5,5,5,9,4,0,0,0]
[null,null,null,null,null,null,null,null,null,null,null,null,null,null,null,null,null,null,5,3,6,5,6,0,0,4,0]
[null,null,null,null,null,null,null,null,null,null,null,null,null,null,null,null,null,null,2,9,1,5,9,0,4,0,0]
[]
[]
[]
[]
[]
[null,null,null,null,null,null,null,null,null,null,null,null,null,null,null,null,null,null,5,9,7,5,9,0,4,0,0]
[null,null,null,null,null,null,null,null,null,null,null,null,null,null,null,null,null,null,1,3,5,5,5,0,0,2,2]
[null,null,null,null,null,null,null,null,null,null,null,null,null,null,null,null,null,null,8,9,7,5,9,0,4,0,0]
[null,null,null,null,null,null,null,null,null,null,null,null,null,null,null,null,null,null,5,4,6,5,6,0,0,4,0]
[null,null,null,null,null,null,null,null,null,null,null,null,null,null,null,null,null,null,3,2,1,5,5,0,0,0,4]
[null,null,null,null,null,null,null,null,null,null,null,null,null,null,null,null,null,null,3,3,1,5,5,0,0,0,4]
[null,null,null,null,null,null,null,null,null,null,null,null,null,null,null,null,null,null,5,5,1,5,5,1,1,0,1]
[null,null,null,null,null,null,null,null,null,null,null,null,null,null,null,null,null,null,2,3,1,5,5,0,0,0,4]
[null,null,null,null,null,null,null,null,null,null,null,null,null,null,null,null,null,null,6,6,5,5,6,2,2,0,0]
[null,null,null,null,null,null,null,null,null,null,null,null,null,null,null,null,null,null,6,4,7,5,7,0,0,4,0]
[null,null,null,null,null,null,null,null,null,null,null,null,null,null,null,null,null,null,7,5,8,5,8,0,0,4,0]
[null,null,null,null,null,null,null,null,null,null,null,null,null,null,null,null,null,null,9,9,9,5,9,1,1,1,0]
[null,null,null,null,null,null,null,null,null,null,null,null,null,null,null,null,null,null,4,3,6,5,6,0,0,4,0]
[null,null,null,null,null,null,null,null,null,null,null,null,null,null,null,null,null,null,7,1,7,5,7,2,0,2,0]
[null,null,null,null,null,null,null,null,null,null,null,null,null,null,null,null,null,null,4,9,4,5,9,0,4,0,0]
[]
[]
[]
[]
[]
[null,null,null,null,null,null,null,null,null,null,null,null,null,null,null,null,null,null,6,4,1,5,6,4,0,0,0]
[null,null,null,null,null,null,null,null,null,null,null,null,null,null,null,null,null,null,9,9,9,5,9,1,1,1,0]
[null,null,null,null,null,null,null,null,null,null,null,null,null,null,null,null,null,null,7,3,1,5,7,4,0,0,0]
[null,null,null,null,null,null,null,null,null,null,null,null,null,null,null,null,null,null,3,4,6,5,6,0,0,4,0]
[null,null,null,null,null,null,null,null,null,null,null,null,null,null,null,null,null,null,2,6,5,5,6,0,4,0,0]
[null,null,null,null,null,null,null,null,null,null,null,null,null,null,null,null,null,null,8,1,5,5,8,4,0,0,0]
[null,null,null,null,null,null,null,null,null,null,null,null,null,null,null,null,null,null,7,3,1,5,7,4,0,0,0]
[null,null,null,null,null,null,null,null,null,null,null,null,null,null,null,null,null,null,5,5,7,5,7,0,0,4,0]
[null,null,null,null,null,null,null,null,null,null,null,null,null,null,null,null,null,null,1,3,4,5,5,0,0,0,4]
[null,null,null,null,null,null,null,null,null,null,null,null,null,null,null,null,null,null,4,2,7,5,7,0,0,4,0]
[null,null,null,null,null,null,null,null,null,null,null,null,null,null,null,null,null,null,5,9,7,5,9,0,4,0,0]
[null,null,null,null,null,null,null,null,null,null,null,null,null,null,null,null,null,null,3,9,1,5,9,0,4,0,0]
[null,null,null,null,null,null,null,null,null,null,null,null,null,null,null,null,null,null,5,3,8,5,8,0,0,4,0]
[null,null,null,null,null,null,null,null,null,null,null,null,null,null,null,null,null,null,6,9,6,5,9,0,4,0,0]
[null,null,null,null,null,null,null,null,null,null,null,null,null,null,null,null,null,null,4,5,7,5,7,0,0,4,0]